Workbook

Sheet 표지
H2: "사회적 가치실현으로 시민과 상생하는 공기업"
H5: 2023. 12.
A6: 2024년도
A8: 세입·세출 예산서

Sheet 목차
A1: 목 차
D2: 1. 사업운영계획 ……………………………………… | I2: 1
D4: 2. 예산총칙 ……………………………………………………………… | I4: 3
D6: 3. 2024년 예산 총괄표 ……………………………………………………………… | I6: 6
D7: 3-1. 사업예산 총괄표 ……………………… | I7: 8
D8: 3-2. 자본예산 총괄표………………………… | I8: 9
D9: 가. 수입예산 총괄표 ……………………………………………………… | I9: 10
D10: 나. 지출예산 총괄표 ……………………………………………………… | I10: 12
D11: 다. 지출예산 ……………………………………………………………… | I11: 25
D13: 4. 자금운영계획 …………………………………………………… | I13: 69
D14: ○ 수입자금 ……………………………………………………………… | I14: 70
D15: ○ 지출자금 ……………………………………………………………… | I15: 71

Sheet 1.사업운영계획
B10: 1. 사 업 운 영 계 획

Sheet 사업운영계획1장
A1: 1. 사 업 운 영 계 획
A3: 구 분 | C3: 단위 | D3: 당년도 | E3: 전년도 | F3: 증감 | G3: 비고
A4: 1. 시설현황 | B4: 1) 공영주차장수 | C4: 개소 | D4: 34 | E4: 33 | F4: =D4-E4 -> 1 | G4: 신기동 신규
B5: 2) 휴양림 관리 | C5: 개소 | D5: 1 | E5: 1 | F5: =D5-E5 -> 0
B6: 3) 장애인국민체육센터 관리 | C6: 개소 | D6: 1 | E6: 1 | F6: =D6-E6 -> 0
B7: 4) 수영장관리 | C7: 개소 | D7: 2 | E7: 2 | F7: =D7-E7 -> 0 | G7: 진남/망마수영장
A8: 2. 업무현황 | B8: 1) 1일주차대수 | C8: 대/일 | D8: 1.6만대/1 | E8: 1.5만대/1
B9: 2) 년간 주차요금수입 | C9: 백만원 | D9: =E9*1.1 -> 1,659 | E9: 1,508 | F9: =D9-E9 -> 151
B10: 3) 년간 휴양림관리수입 | C10: 백만원 | D10: =E10*1.1 -> 453 | E10: 412 | F10: 41
B11: 4) 년간 종량제물품판매수입 | C11: 백만원 | D11: 7,240 | E11: 7,129 | F11: 111
B12: 5) 년간 수영장관리수입 | C12: 백만원 | D12: =E12*1.1 -> 1,416 | E12: 1,287 | F12: 129
B13: 6) 년간 장애인국민체육센터관리수입 | C13: 백만원 | D13: 10 | E13: 7 | F13: 3
A14: 3. 대행사업현황 | B14: 1) 공영주차장 관리 운영 | C14: 천원 | D14: ='가. 수입예산 총괄표(사업수익+자본적수입)'!F11+'가. 수입예산 총괄표(사업수익+자본적수입)'!F32 -> 1,584,381 | E14: 1,194,643 | F14: 389,738
B15: 2) 돌산공원주차장 운영 | C15: 천원 | D15: ='가. 수입예산 총괄표(사업수익+자본적수입)'!F12+'가. 수입예산 총괄표(사업수익+자본적수입)'!F33 -> 230,088 | E15: 230,888 | F15: =D15-E15 -> △800
B16: 3) 봉황산자연휴양림 운영 | C16: 천원 | D16: ='가. 수입예산 총괄표(사업수익+자본적수입)'!F13+'가. 수입예산 총괄표(사업수익+자본적수입)'!F34 -> 299,424 | E16: 299,424 | F16: 0
B17: 4) 생활폐기물수집운반 | C17: 천원 | D17: ='가. 수입예산 총괄표(사업수익+자본적수입)'!F14+'가. 수입예산 총괄표(사업수익+자본적수입)'!F35 -> 22,493,349 | E17: 20,837,466 | F17: 1,655,883
B18: 5) 종량제물품공급 | C18: 천원 | D18: ='가. 수입예산 총괄표(사업수익+자본적수입)'!F15+'가. 수입예산 총괄표(사업수익+자본적수입)'!F36 -> 101,745 | E18: 106,284 | F18: △4,539
B19: 6) 진남수영장 | C19: 천원 | D19: ='가. 수입예산 총괄표(사업수익+자본적수입)'!F16+'가. 수입예산 총괄표(사업수익+자본적수입)'!F37 -> 1,032,834 | E19: 1,277,344 | F19: △244,510
B20: 7) 망마국민체육센터 | C20: 천원 | D20: ='가. 수입예산 총괄표(사업수익+자본적수입)'!F17+'가. 수입예산 총괄표(사업수익+자본적수입)'!F38 -> 767,169 | E20: 1,121,894 | F20: △354,725
B21: 8) 장애인국민체육센터 | C21: 천원 | D21: ='가. 수입예산 총괄표(사업수익+자본적수입)'!F18+'가. 수입예산 총괄표(사업수익+자본적수입)'!F39 -> 224,991 | E21: 224,410 | F21: 581
B22: 9) 도시형폐기물처리시설 | C22: 천원 | D22: ='가. 수입예산 총괄표(사업수익+자본적수입)'!F19+'가. 수입예산 총괄표(사업수익+자본적수입)'!F40 -> 6,530,023 | E22: 5,770,937 | F22: 759,086
A23: 4. 인력관리현황 | B23: 계 | C23: 명 | D23: =SUM(D24:D30) -> 485 | E23: =SUM(E24:E30) -> 481 | F23: 4
B24: 1) 임 원 | C24: 명 | D24: 3 | E24: 3 | F24: 0 | G24: 이사장포함
B25: 2) 일 반 직 | C25: 명 | D25: 47 | E25: 46 | F25: 1 | H25: 정원 1 증
B26: 3) 기 능 직 | C26: 명 | D26: 30 | E26: 30 | F26: 0
B27: 4) 환경미화직 | C27: 명 | D27: 274 | E27: 274 | F27: 0 | G27: 정원
B28: 5) 공 무 직 | C28: 명 | D28: 98 | E28: 95 | F28: 3 | G28: " | H28: 정원 3 증(진남 안전강사, 봉황산 기간제 대체 인력)
B29: 6) 기 타 직 | C29: 명 | D29: 2 | E29: 2 | F29: 0 | G29: 市 파견공무원
B30: 7) 기간제근로자등 | C30: 명 | D30: 31 | E30: 31 | F30: 0 | G30: 정원 외
A31: 5. 자산평가액 | B31: 출자 자본금 | C31: 백만원 | D31: 500 | E31: 500 | F31: =D31-E31 -> 0

Sheet 2.예산총칙
C9: 2. 예 산 총 칙

Sheet 예산총칙
A1: 2. 예 산 총 칙
A3: 제1조 (총칙) 2024년 여수시도시관리공단의 예산은 다음과 같이 정한다.
A4: 제2조 (수입 및 지출) 수입 및 지출의 예정액은 다음과 같이 정한다.
D5: (단위 : 천원)
A6: 수 입 | C6: 지 출
A7: 과 목 | B7: 금 액 | C7: 과 목 | D7: 금 액
A8: 합 계 | B8: =B9+B16+B26 -> 49,686,585 | C8: 합 계 | D8: =D9+D16+D26 -> 49,686,585
A9: 소 계 | B9: =B10 -> 46,229,779 | C9: 소 계 | D9: =SUM(D10:D15) -> 46,229,779
A10: 1. 사업수익 | B10: =SUM(B11:B13) -> 46,229,779 | C10: 1. 사업비용 | D10: 0
A11: 가. 영업수익 | B11: =예산총괄표3장!C7 -> 46,229,779 | C11: 가. 교통휴양 대행사업 | D11: =예산총괄표3장!C13 -> 1,986,393
A12: 나. 영업외수익 | B12: =예산총괄표3장!C8 -> 0 | C12: 나. 체육시설 대행사업 | D12: =예산총괄표3장!C14 -> 1,999,638
A13: 다. 특별이익 | B13: 0 | C13: 다. 환경대행사업 | D13: =예산총괄표3장!C15 -> 26,353,563
C14: 라. 행정운영활동 | D14: =예산총괄표3장!C16 -> 15,890,185
A16: 소 계 | B16: =B17 -> 3,456,806 | C16: 소 계 | D16: =D17 -> 3,456,806
A17: 2. 자본수입 | B17: =SUM(B18:B25) -> 3,456,806 | C17: 2. 자본지출 | D17: =SUM(D18:D25) -> 3,456,806
A18: 가. 투자자산 | B18: 0 | C18: 가. 교통휴양 대행사업 | D18: =예산총괄표3장!E13 -> 127,500
A19: 나. 고정자산매각수입 | B19: 0 | C19: 나. 체육시설 대행사업 | D19: =예산총괄표3장!E14 -> 25,356
A20: 다. 고정부채수입 | B20: 0 | C20: 다. 환경대행사업 | D20: =예산총괄표3장!E15 -> 2,771,554
A21: 라. 비유동부채수입 | B21: 0 | C21: 라. 행정운영활동(일반행정운영 관리) | D21: =예산총괄표3장!E16 -> 32,396
A22: 마. 자본금 | B22: 0 | C22: 마. 예비비 | D22: =예산총괄표3장!E18 -> 500,000
A23: 바. 자본잉여금수입 | B23: ='3-2.자본예산총괄표'!C17 -> 2,956,806
A24: 사. 유보자금 | B24: ='3-2.자본예산총괄표'!C21 -> 500,000
A25: 아. 기타자본수입 | B25: 0
A26: 소 계 | B26: =B27 -> 0 | C26: 소 계 | D26: =D28 -> 0
A27: 3. 이월금 | B27: =SUM(B28:B29) -> 0
A28: 가. 순세계잉여금
A29: 나. 미수금 | B29: 0
A30: 가. 추정손익계산서
A31: 차 변 | C31: 대 변
A32: 비용 | B32: 순이익 | C32: 수익 | D32: 순손실
A33: =TEXT(B8,"#,##0")&"천원" -> 49,686,585천원 | B33: =TEXT(B8,"#,##0")&"천원" -> 49,686,585천원 | C33: =TEXT(D8,"#,##0")&"천원" -> 49,686,585천원 | D33: =TEXT(D8,"#,##0")&"천원" -> 49,686,585천원
A35: 제3조 사업수입액이 사업지출액에 대하여 부족한 금액은 자본예산 차액으로 보전하는 것으로 한다.
A36: 제4조(예산전용금지 과목)다음에 게기하는 과목의 경비는 이사회의 의결을 거치지 않고는 그 경비를 전용할 수 없다.
A37: (1) 인건비
A38: (2) 업무추진비(타 비목으로부터의 전용금지)
A39: 제5조(일시차입금)이사장은 공단의 자금수급 불균형으로 인하여 자금의 일시적 차입이 필요한 때에는 이사회의 결정으로 예산의 5%이내의 금액을 일시 차입하여 사업을 추진할 수 있다.
C45: 2023년 12월 일
B47: 여수시도시관리공단 이사장 김 유 화

Sheet 3.예산총괄표
B9: 3. 예 산 총 괄 표

Sheet 예산총괄표3장
A1: 3. 예 산 총 괄 표
A4: [여수시도시관리공단］ | D4: [본예산] | G4: (단위 : 천원)
A5: 구분 | B5: 사업예산 | D5: 자본예산 | F5: 예산총계
A6: 수 입 | B6: 수입계(A) | C6: =SUM(C7:C10) -> 46,229,779 | D6: 수입계(B) | E6: =SUM(E7:E11) -> 3,456,806 | F6: 수입계(C) | G6: =SUM(G7:G11) -> 49,686,585 | I6: =G6-E6-C6 -> 0
B7: 영업수익 | C7: ='3-1.사업예산총괄표'!C6 -> 46,229,779 | D7: 투자자산처분 | E7: 0 | F7: 영업수익 | G7: =C7 -> 46,229,779
B8: 영업외수입 | C8: ='3-1.사업예산총괄표'!C13 -> 0 | D8: 기타비유동자산처분 | E8: 0 | F8: 영업외수익 | G8: =C8 -> 0
D9: 유동부채수입 | E9: 0 | F9: 유동부채수입 | G9: =C9 -> 0
D10: 자본잉여금수입 | E10: ='3-2.자본예산총괄표'!C17 -> 2,956,806 | F10: 자본잉여금수입 | G10: =E10 -> 2,956,806
D11: 유 보 자 금 | E11: ='3-2.자본예산총괄표'!C21 -> 500,000 | F11: 유보자금 | G11: =E11 -> 500,000
A12: 지 출 | B12: 지출계(A`) | C12: =SUM(C13:C20) -> 46,229,779 | D12: 지출계(B`) | E12: =SUM(E13:E21) -> 3,456,806 | F12: 지출계(C`) | G12: =SUM(G13:G21) -> 49,686,585 | I12: =G12-E12-C12 -> 0
B13: 교통휴양 대행사업 | C13: ='나. 지출예산 총괄표'!H8 -> 1,986,393 | D13: 교통휴양 대행사업 | E13: ='나. 지출예산 총괄표'!H270 -> 127,500 | F13: 교통휴양 대행사업 | G13: =C13+E13 -> 2,113,893
B14: 체육시설 대행사업 | C14: ='나. 지출예산 총괄표'!H66 -> 1,999,638 | D14: 체육시설 대행사업 | E14: ='나. 지출예산 총괄표'!H279 -> 25,356 | F14: 체육시설 대행사업 | G14: =C14+E14 -> 2,024,994
B15: 환경대행사업 | C15: ='나. 지출예산 총괄표'!H117 -> 26,353,563 | D15: 환경대행사업 | E15: ='나. 지출예산 총괄표'!H292 -> 2,771,554 | F15: 환경대행사업 | G15: =C15+E15 -> 29,125,117
B16: 행정운영활동 | C16: ='나. 지출예산 총괄표'!H181 -> 15,890,185 | D16: 행정운영활동(일반행정운영 관리) | E16: ='나. 지출예산 총괄표'!H312 -> 32,396 | F16: 행정운영활동 | G16: =C16+E16 -> 15,922,581
B17: 법인세등 | C17: ='3-1.사업예산총괄표'!F17 -> 0 | F17: 법인세등 | G17: 0
B18: 예비비 | C18: ='3-1.사업예산총괄표'!F19 -> 0 | D18: 예비비 | E18: 500,000 | F18: 예비비 | G18: =C18+E18 -> 500,000
D19: 투자자산 | E19: 0 | F19: 투자자산 | G19: 0
D20: 유동부채상환 | E20: 0 | F20: 유동부채상환 | G20: 0
D21: 기타자본적지출 | E21: ='3-2.자본예산총괄표'!F24 -> 0 | F21: 기타자본적지출 | G21: 0
B22: 차인(A-A') | C22: =SUM(C6-C12) -> 0 | D22: 차인(B-B') | E22: =SUM(E6-E12) -> 0 | F22: 차인(C-C') | G22: =SUM(G6-G12) -> 0

Sheet 3-1.사업예산총괄표
A1: 3-1. 사업예산 총괄표
F2: (단위 : 천원)
A3: 수 입 의 부 (A) | D3: 비 용 의 부 (B)
A4: 계 정 과 목 | C4: 금 액 | D4: 계 정 과 목 | F4: 금 액
A5: 합 계 (A) | C5: =SUM(C6+C13) -> 46,229,779 | D5: 합 계 (B) | F5: =SUM(F6,F13,F15,F17,F19) -> 46,229,779
A6: 영업수익 | B6: 소 계 | C6: =SUM(C7:C12) -> 46,229,779 | D6: 영업비용 | E6: 소 계 | F6: =F7+F8+F9+F10 -> 46,229,779
B7: 용지매출수익 | C7: 0 | E7: 용 지 매 출 원 가 | F7: 0
B8: 주택판매수익 | C8: =+C29+C51 -> 0 | E8: 주 택 판 매 원 가 | F8: 0
B9: 대행사업수익(직접) | C9: ='가. 수입예산 총괄표(사업수익+자본적수입)'!F10 -> 30,339,594 | E9: 대행사업비(직접) | F9: ='가. 수입예산 총괄표(사업수익+자본적수입)'!F10 -> 30,339,594
B10: 대행사업수익(간접) | C10: ='가. 수입예산 총괄표(사업수익+자본적수입)'!F20 -> 15,890,185 | E10: 대행사업비(간접) | F10: ='가. 수입예산 총괄표(사업수익+자본적수입)'!F20 -> 15,890,185
A13: 영업외수익 | B13: 소 계 | C13: =SUM(C14:C18) -> 0 | D13: 영업외비용 | E13: 소 계 | F13: =SUM(F14) -> 0
B14: 이자수익 | C14: 0 | E14: 기타영업외비용 | F14: ='가. 수입예산 총괄표(사업수익+자본적수입)'!F23 -> 0
B15: 기타영업외수익 | C15: ='가. 수입예산 총괄표(사업수익+자본적수입)'!F23 -> 0 | D15: 특별손실 | E15: 소 계 | F15: =F16 -> 0
E16: 특별손실
D17: 법인세등 | E17: 소 계 | F17: =SUM(F18) -> 0
E18: 법인세등 | F18: 0
D19: 예 비 비 | E19: 예 비 비 | F19: 0
A21: 수입. 비용차감액 (A-B) | D21: =C5-F5 -> 0

Sheet 3-2.자본예산총괄표
A1: 3-2. 자본예산 총괄표
F2: (단위 : 천원)
A3: 수입의부 (A) | D3: 지출의부 (B)
A4: 계 정 과 목 | C4: 금 액 | D4: 계 정 과 목 | F4: 금 액
A5: 합 계 (A) | C5: =C6+C10+C15+C17+C21+C24 -> 3,456,806 | D5: 합 계 (B) | F5: =F6+F10+F15+F17+F19+F21+F23+F25 -> 3,456,806
A6: 투자자산수입 | B6: 소계 | C6: =SUM(C7:C9) -> 0 | D6: 투 자 자 산 | E6: 소계 | F6: =SUM(F7:F9) -> 0
B7: 투자자산 | C7: 0
C8: 0 | E8: 미완성주택 | F8: 0
E9: 지급이자등 | F9: =F36+F63 -> 0
A10: 기타비유동자산처분 | B10: 소계 | C10: =SUM(C11:C13) -> 0 | D10: 유형자산취득 | E10: 소 계 | F10: =C19 -> 2,956,806
B11: 보증금회수수입 | C11: 0 | E11: 구 축 물
C12: =+C39+C66 -> 0 | E12: 기계장치 | F12: =환경자원사업소!H190 -> 2,090,839
C13: 0 | E13: 차량운반구
E14: 수탁자산취득비 | F14: =F10-F12 -> 865,967
A15: 유동부채수입 | B15: 소계 | C15: =C16 -> 0 | D15: 무형자산 및 기타비유동자산취득 | E15: 소계 | F15: =F16 -> 0
B16: 기타유동부채수입 | E16: 보증금 | F16: 0
A17: 자본잉여금수입 | B17: 소계 | C17: =C18+C19 -> 2,956,806 | D17: 재고자산 | E17: 소계 | F17: =F18 -> 0
B18: 차량운반구매각수입 | C18: 0 | E18: 투자자산
B19: 수탁자산보조금수입 | C19: ='가. 수입예산 총괄표(사업수익+자본적수입)'!F29 -> 2,956,806 | D19: 고정부채상환 | E19: 소 계
C20: 0 | E20: 기타유동부채상환
A21: 유보자금 | B21: 소계 | C21: =C22 -> 500,000 | D21: 유동부채상환 | E21: 소계 | F21: =F22 -> 0
B22: 유보자금 | C22: ='가. 수입예산 총괄표(사업수익+자본적수입)'!F41 -> 500,000 | E22: 기타유동부채상환
D23: 기타자본적지출 | E23: 소계 | F23: =F24 -> 0
A24: 기타자본적수입 | B24: 소계 | C24: =SUM(C25:C26) -> 0 | E24: 기타자본적지출
B25: 기타자본적수입 | C25: =+C52+C79 -> 0 | D25: 예비비 | E25: 소계 | F25: =F26 -> 500,000
E26: 예비비 | F26: 500,000
A27: 수입. 비용차감액 (A-B) | F27: =C5-F5 -> 0

Sheet 가. 수입예산 총괄표(사업수익+자본적수입)
A1: 가. 수입예산 총괄표(사업수익+자본적수입)
K2: (단위 : 천원)
A3: 과 목 | F3: 당년도예산액 (A) | G3: 전년도예산액 (B) | H3: 증 감 (A-B) | I3: 산 출 기 초
A4: 구분 | B4: 관 | C4: 항 | D4: 세항 | E4: 목
A5: 수입계(사업수익+자본적수입) | F5: =F6+F26 -> 49,686,585 | G5: =G6+G26 -> 49,581,723 | H5: =F5-G5 -> 104,862
A6: 사업예산 | F6: =F8+F22 -> 46,229,779 | G6: =G8+G22 -> 46,804,453 | H6: △574,674
B7: 600 사업수익 | F7: =F8+F22 -> 46,229,779 | G7: =G8+G22 -> 46,804,453 | H7: △574,674
C8: 610 영업수익 | F8: =F9 -> 46,229,779 | G8: =G9 -> 46,799,453 | H8: △569,674
D9: 622 대행사업수익 | F9: =F10+F20 -> 46,229,779 | G9: =G10+G20 -> 46,799,453 | H9: △569,674
E10: 623-01 직접관리비수익 | F10: =SUM(F11:F19) -> 30,339,594 | G10: 28,808,790 | H10: 1,530,804 | K10: =SUM(K11:K19) -> 30,339,594
F11: =K11 -> 1,456,881 | G11: 1,194,643 | H11: =F11-G11 -> 262,238 | I11: ○ 대행사업관리비 수입(공영주차장 관리 운영) | J11: = | K11: ='나. 지출예산 총괄표'!H9 -> 1,456,881
F12: 230,088 | G12: 230,888 | H12: △800 | I12: ○ 대행사업관리비 수입(돌산공원주차장 운영) | J12: = | K12: ='나. 지출예산 총괄표'!H31 -> 230,088
F13: 299,424 | G13: 273,554 | H13: 25,870 | I13: ○ 대행사업관리비 수입(봉황산자연휴양림 운영) | J13: = | K13: ='나. 지출예산 총괄표'!H47 -> 299,424
F14: 21,828,236 | G14: 19,952,216 | H14: 1,876,020 | I14: ○ 대행사업 관리비 수입(생활폐기물수집운반) | J14: = | K14: ='나. 지출예산 총괄표'!H118 -> 21,828,236
F15: =K15 -> 101,745 | G15: 106,284 | H15: △4,539 | I15: ○ 대행사업관리비 수입(종량제물품공급) | J15: = | K15: ='나. 지출예산 총괄표'!H142 -> 101,745
F16: 1,029,364 | G16: 1,254,794 | H16: △225,430 | I16: ○ 대행사업관리비 수입(진남수영장) | J16: = | K16: ='나. 지출예산 총괄표'!H67 -> 1,029,364
F17: 745,283 | G17: 1,112,544 | H17: △367,261 | I17: ○ 대행사업관리비 수입(망마국민체육센터) | J17: = | K17: ='나. 지출예산 총괄표'!H87 -> 745,283
F18: 224,991 | G18: 216,410 | H18: 8,581 | I18: ○ 대행사업관리비 수입(장애인국민체육센터) | J18: = | K18: ='나. 지출예산 총괄표'!H103 -> 224,991
F19: 4,423,582 | G19: 4,467,457 | H19: △43,875 | I19: ○ 대행사업관리비 수입(도시형폐기물처리시설) | J19: = | K19: ='나. 지출예산 총괄표'!H157 -> 4,423,582
E20: 623-02 간접관리비수익 | F20: 15,890,185 | G20: 17,990,663 | H20: =F20-G20 -> △2,100,478 | I20: 623-02 간접관리비수익 | K20: =K21 -> 15,890,185
I21: ○ 사업수행에 따른 공통경비등 간접관리비 수입 | J21: = | K21: ='나. 지출예산 총괄표'!H181-'나. 지출예산 총괄표'!H214 -> 15,890,185
C22: 670 영업외수익 | F22: =F23 -> 0 | G22: 5,000 | H22: =H23 -> △5,000
D23: 679 기타영업외수익 | F23: =K24 -> 0 | G23: 5,000 | H23: =F23-G23 -> △5,000
E24: 679-09 기타영업외수익 | F24: =K24 -> 0 | G24: 5,000 | H24: =F24-G24 -> △5,000 | K24: =K25 -> 0
I25: ○ 신용카드 포인트 등 | J25: = | K25: ='나. 지출예산 총괄표'!H214 -> 0
A26: 자본예산 | F26: =F27 -> 3,456,806 | G26: 2,777,270 | H26: =F26-G26 -> 679,536
B27: 100 자본적수입 | F27: =F28+F41 -> 3,456,806 | G27: =G28+G41 -> 2,777,270 | H27: =F27-G27 -> 679,536
C28: 170 자본잉여금수입 | F28: =F29 -> 2,956,806 | G28: 2,277,270 | H28: 679,536 | K28: =K29 -> 0
D29: 176 수탁자산보조금수입 | F29: =F30 -> 2,956,806 | G29: 2,277,270 | H29: 679,536
E30: 176-01 수탁자산보조금수입 | F30: =SUM(F31:F40) -> 2,956,806 | G30: 2,277,270 | H30: 679,536 | K30: =SUM(K31:K40) -> 2,956,806
F31: =K31 -> 32,396 | G31: 22,770 | H31: =F31-G31 -> 9,626 | I31: ○ 수탁자산취득비(경영본부) | J31: = | K31: ='나. 지출예산 총괄표'!H312 -> 32,396
F32: 127,500 | G32: 0 | H32: =F32-G32 -> 127,500 | I32: ○ 수탁자산취득비(공영주차장) | J32: = | K32: ='나. 지출예산 총괄표'!H271 -> 127,500
F33: =K33 -> 0 | G33: 0 | H33: 0 | I33: ○ 수탁자산취득비(돌산공원주차장) | J33: = | K33: 0
F34: =K34 -> 0 | G34: 25,870 | H34: △25,870 | I34: ○ 수탁자산취득비(봉황산자연휴양림) | J34: = | K34: ='나. 지출예산 총괄표'!H275 -> 0
F35: 665,113 | G35: 885,250 | H35: △220,137 | I35: ○ 수탁자산취득비(생활폐기물수집운반) | J35: = | K35: ='나. 지출예산 총괄표'!H293 -> 665,113
F36: =K36 -> 0 | G36: 0 | H36: 0 | I36: ○ 수탁자산취득비(종량제물품공급) | J36: = | K36: ='나. 지출예산 총괄표'!H300 -> 0
F37: 3,470 | G37: 22,550 | H37: △19,080 | I37: ○ 수탁자산취득비(진남수영장) | J37: = | K37: ='나. 지출예산 총괄표'!H280 -> 3,470
F38: 21,886 | G38: 9,350 | H38: 12,536 | I38: ○ 수탁자산취득비(망마국민체육센터) | J38: = | K38: ='나. 지출예산 총괄표'!H284 -> 21,886
F39: =K39 -> 0 | G39: 8,000 | H39: △8,000 | I39: ○ 수탁자산취득비(장애인국민체육센터) | J39: = | K39: ='나. 지출예산 총괄표'!H288 -> 0
F40: 2,106,441 | G40: 1,303,480 | H40: 802,961 | I40: ○ 시설비및부대비,수탁자산취득비(도시형폐기물처리시설) | J40: = | K40: ='나. 지출예산 총괄표'!H304 -> 2,106,441
C41: 180 유보자금 | F41: =F42 -> 500,000 | G41: 500,000 | H41: 0
D42: 181 순세계잉여금 | F42: =F43 -> 500,000 | G42: 500,000 | H42: 0
E43: 181-01 순세계잉여금 | F43: 500,000 | G43: 500,000 | H43: 0 | K43: =K44 -> 500,000
I44: ○ 유보자금 | J44: = | K44: ='나. 지출예산 총괄표'!H316 -> 500,000

Sheet 나. 지출예산 총괄표
A1: 나. 지출예산 총괄표(사업수익+자본적수입)
J2: (단위 : 천원)
A3: 과 목 | H3: 당년도예산액 (A) | I3: 전년도예산액 (B) | J3: 증 감 (A-B)
A4: 구분 | B4: 분야부분 | C4: 정책사업 | D4: 단위사업 | E4: 세부사업 | F4: 목 | G4: 세목
A5: 총계(사업예산+자본예산) | H5: =H6+H268 -> 49,686,585 | I5: =I6+I268 -> 49,581,723 | J5: =H5-I5 -> 104,862
A6: 사업예산 | H6: =H7 -> 46,229,779 | I6: =I7 -> 46,804,453 | J6: =H6-I6 -> △574,674
B7: 0110_013 지방행정, 재정지원 | H7: =H8+H66+H117+H181 -> 46,229,779 | I7: =I8+I66+I117+I181 -> 46,804,453 | J7: =H7-I7 -> △574,674
C8: 교통∙휴양 대행사업 | H8: =H9+H31+H47 -> 1,986,393 | I8: =I9+I31+I47 -> 1,699,085 | J8: 287,308
D9: 공영주차장 수탁 대행사업 | H9: =H10+H28 -> 1,456,881 | I9: =I10+I28 -> 1,194,643 | J9: 262,238
E10: 공영주차장 관리운영 | H10: =H11+H13+H20+H24+H26+H22 -> 1,271,881 | I10: =I11+I13+I20+I24+I26+I22 -> 1,005,543 | J10: 266,338
F11: 인건비 | H11: =교통휴양시설팀!H9 -> 491,919 | I11: =교통휴양시설팀!I9 -> 348,548 | J11: 143,371
G12: 기간제근로자보수 | H12: =교통휴양시설팀!H11 -> 491,919 | I12: =교통휴양시설팀!I11 -> 348,548 | J12: 143,371
F13: 일반운영비 | H13: =교통휴양시설팀!H27 -> 651,602 | I13: =교통휴양시설팀!I27 -> 628,215 | J13: 23,387
G14: 사무관리비 | H14: =교통휴양시설팀!H28 -> 107,062 | I14: =교통휴양시설팀!I28 -> 99,592 | J14: =H14-I14 -> 7,470
G15: 지급수수료 | H15: =교통휴양시설팀!H39 -> 170,510 | I15: =교통휴양시설팀!I39 -> 162,590 | J15: =H15-I15 -> 7,920
G16: 임차료 | H16: =교통휴양시설팀!H57 -> 45,593 | I16: =교통휴양시설팀!I57 -> 28,971 | J16: 16,622
G17: 복리후생비 | H17: =교통휴양시설팀!H77 -> 28,350 | I17: =교통휴양시설팀!I77 -> 27,450 | J17: 900
G18: 공공요금및제세 | H18: =교통휴양시설팀!H83 -> 294,792 | I18: =교통휴양시설팀!I83 -> 298,272 | J18: △3,480
G19: 차량선박비 | H19: =교통휴양시설팀!H88 -> 5,295 | I19: =교통휴양시설팀!I88 -> 11,340 | J19: △6,045
F20: 여비 | H20: =교통휴양시설팀!H92 -> 15,060 | I20: =교통휴양시설팀!I92 -> 16,080 | J20: △1,020
G21: 국내여비 | H21: =교통휴양시설팀!H93 -> 15,060 | I21: =교통휴양시설팀!I93 -> 16,080 | J21: =H21-I21 -> △1,020
F22: 연구개발비 | H22: =교통휴양시설팀!H96 -> 100,000 | I22: =교통휴양시설팀!I96 -> 0 | J22: =H22-I22 -> 100,000
G23: 전산개발비 | H23: =교통휴양시설팀!H97 -> 100,000 | I23: =교통휴양시설팀!I97 -> 0 | J23: =H23-I23 -> 100,000
F24: 관서업무비 | H24: =교통휴양시설팀!H98 -> 6,300 | I24: =교통휴양시설팀!I98 -> 5,700 | J24: 600
G25: 부서업무비 | H25: =교통휴양시설팀!H99 -> 6,300 | I25: =교통휴양시설팀!I99 -> 5,700 | J25: =H25-I25 -> 600
F26: 배상금등 | H26: =교통휴양시설팀!H103 -> 7,000 | I26: =교통휴양시설팀!I103 -> 7,000 | J26: 0
G27: 배상금등 | H27: =교통휴양시설팀!H104 -> 7,000 | I27: =교통휴양시설팀!I104 -> 7,000 | J27: =H27-I27 -> 0
E28: 공영주차장 시설 유지보수 | H28: =H29 -> 185,000 | I28: =I29 -> 189,100 | J28: △4,100
F29: 수선유지교체비 | H29: =교통휴양시설팀!H108 -> 185,000 | I29: =교통휴양시설팀!I108 -> 189,100 | J29: △4,100
G30: 수선유지비 | H30: =교통휴양시설팀!H109 -> 185,000 | I30: =교통휴양시설팀!I109 -> 189,100 | J30: =H30-I30 -> △4,100
D31: 돌산 공원주차장 수탁 대행사업 | H31: =H32+H44 -> 230,088 | I31: =I32+I44 -> 230,888 | J31: △800
E32: 돌산 공원주차장 관리운영 | H32: =H33+H35+H40+H42 -> 220,888 | I32: =I33+I35+I40+I42 -> 220,888 | J32: 0
F33: 인건비 | H33: =교통휴양시설팀!H116 -> 204,758 | I33: =교통휴양시설팀!I116 -> 204,758 | J33: 0
G34: 기간제근로자보수 | H34: =교통휴양시설팀!H117 -> 204,758 | I34: =교통휴양시설팀!I117 -> 204,758 | J34: =H34-I34 -> 0
F35: 일반운영비 | H35: =교통휴양시설팀!H124 -> 12,030 | I35: =교통휴양시설팀!I124 -> 12,030 | J35: 0
G36: 사무관리비 | H36: =교통휴양시설팀!H125 -> 2,400 | I36: =교통휴양시설팀!I125 -> 2,400 | J36: 0
G37: 지급수수료 | H37: =교통휴양시설팀!H127 -> 330 | I37: =교통휴양시설팀!I127 -> 330 | J37: 0
G38: 복리후생비 | H38: =교통휴양시설팀!H129 -> 2,700 | I38: =교통휴양시설팀!I129 -> 2,700 | J38: 0
G39: 공공요금및제세 | H39: =교통휴양시설팀!H133 -> 6,600 | I39: =교통휴양시설팀!I133 -> 6,600 | J39: 0
F40: 관서업무비 | H40: =교통휴양시설팀!H136 -> 2,100 | I40: =교통휴양시설팀!I136 -> 2,100 | J40: 0
G41: 부서업무비 | H41: =교통휴양시설팀!H137 -> 2,100 | I41: =교통휴양시설팀!I137 -> 2,100 | J41: =H41-I41 -> 0
F42: 배상금등 | H42: =교통휴양시설팀!H140 -> 2,000 | I42: =교통휴양시설팀!I140 -> 2,000 | J42: 0
G43: 배상금등 | H43: =교통휴양시설팀!H141 -> 2,000 | I43: =교통휴양시설팀!I141 -> 2,000 | J43: =H43-I43 -> 0
E44: 돌산 공원주차장 시설 유지보수 | H44: =H45 -> 9,200 | I44: =I45 -> 10,000 | J44: △800
F45: 수선유지교체비 | H45: =교통휴양시설팀!H145 -> 9,200 | I45: =교통휴양시설팀!I145 -> 10,000 | J45: △800
G46: 수선유지비 | H46: =교통휴양시설팀!H146 -> 9,200 | I46: =교통휴양시설팀!I146 -> 10,000 | J46: =H46-I46 -> △800
D47: 휴양림 수탁 대행사업 | H47: =H48+H63 -> 299,424 | I47: =I48+I63 -> 273,554 | J47: 25,870
E48: 봉황산자연휴양림 운영 | H48: =H49+H51+H59+H61 -> 268,752 | I48: =I49+I51+I59+I61 -> 252,882 | J48: 15,870
F49: 인건비 | H49: =교통휴양시설팀!H152 -> 64,392 | I49: =교통휴양시설팀!I152 -> 61,465 | J49: 2,927
G50: 기간제근로자보수 | H50: =교통휴양시설팀!H153 -> 64,392 | I50: =교통휴양시설팀!I153 -> 61,465 | J50: =H50-I50 -> 2,927
F51: 일반운영비 | H51: =교통휴양시설팀!H162 -> 198,790 | I51: =교통휴양시설팀!I162 -> 186,407 | J51: 12,383
G52: 사무관리비 | H52: =교통휴양시설팀!H163 -> 38,145 | I52: =교통휴양시설팀!I163 -> 25,372 | J52: 12,773
G53: 공공운영비 | H53: =교통휴양시설팀!H174 -> 500 | I53: =교통휴양시설팀!I174 -> 500 | J53: =교통휴양시설팀!J174 -> 0
G54: 지급수수료 | H54: =교통휴양시설팀!H176 -> 26,730 | I54: =교통휴양시설팀!I176 -> 57,380 | J54: △30,650
G55: 임차료 | H55: =교통휴양시설팀!H183 -> 13,320 | I55: =교통휴양시설팀!I183 -> 9,180 | J55: 4,140
G56: 복리후생비 | H56: =교통휴양시설팀!H188 -> 2,960 | I56: =교통휴양시설팀!I188 -> 2,760 | J56: 200
G57: 공공요금및제세 | H57: =교통휴양시설팀!H191 -> 115,536 | I57: =교통휴양시설팀!I191 -> 89,136 | J57: 26,400
G58: 차량선박비 | H58: =교통휴양시설팀!H196 -> 1,599 | I58: =교통휴양시설팀!I196 -> 2,079 | J58: △480
F59: 여비 | H59: =교통휴양시설팀!H199 -> 2,570 | I59: =교통휴양시설팀!I199 -> 2,910 | J59: △340
G60: 국내여비 | H60: =교통휴양시설팀!H200 -> 2,570 | I60: =교통휴양시설팀!I200 -> 2,910 | J60: =H60-I60 -> △340
F61: 관서업무비 | H61: =교통휴양시설팀!H203 -> 3,000 | I61: =교통휴양시설팀!I203 -> 2,100 | J61: 900
G62: 부서업무비 | H62: =교통휴양시설팀!H204 -> 3,000 | I62: =교통휴양시설팀!I204 -> 2,100 | J62: =H62-I62 -> 900
E63: 봉황산자연휴양림 시설 유지보수 | H63: =H64 -> 30,672 | I63: =I64 -> 20,672 | J63: 10,000
F64: 수선유지교체비 | H64: =교통휴양시설팀!H208 -> 30,672 | I64: =교통휴양시설팀!I208 -> 20,672 | J64: 10,000
G65: 수선유지비 | H65: =교통휴양시설팀!H209 -> 30,672 | I65: =교통휴양시설팀!I209 -> 20,672 | J65: =H65-I65 -> 10,000
C66: 체육시설 대행사업 | H66: =H67+H87+H103 -> 1,999,638 | I66: =I67+I87+I103 -> 2,583,748 | J66: △584,110
D67: 진남수영장 수탁 대행사업 | H67: =H68+H81 -> 1,029,364 | I67: =I68+I81 -> 1,254,794 | J67: △225,430
E68: 진남수영장 운영 및 관리 | H68: =H69+H71+H77+H79 -> 958,110 | I68: =I69+I71+I77+I79 -> 1,183,390 | J68: △225,280
F69: 인건비 | H69: =체육시설팀!H9 -> 171,587 | I69: =체육시설팀!I9 -> 441,033 | J69: △269,446
G70: 기간제근로자보수 | H70: =체육시설팀!H12 -> 171,587 | I70: =체육시설팀!I12 -> 26,153 | J70: =H70-I70 -> 145,434
F71: 일반운영비 | H71: =체육시설팀!H22 -> 751,243 | I71: =체육시설팀!I22 -> 702,477 | J71: 48,766
G72: 사무관리비 | H72: =체육시설팀!H23 -> 23,800 | I72: =체육시설팀!I23 -> 33,850 | J72: △10,050
G73: 지급수수료 | H73: =체육시설팀!H41 -> 122,198 | I73: =체육시설팀!I41 -> 122,292 | J73: △94
G74: 임차료 | H74: =체육시설팀!H69 -> 8,100 | I74: =체육시설팀!I69 -> 5,076 | J74: 3,024
G75: 복리후생비 | H75: =체육시설팀!H72 -> 33,470 | I75: =체육시설팀!I72 -> 33,660 | J75: △190
G76: 공공요금및제세 | H76: =체육시설팀!H82 -> 563,675 | I76: =체육시설팀!I82 -> 507,599 | J76: 56,076
F77: 여비 | H77: =체육시설팀!H92 -> 23,580 | I77: =체육시설팀!I92 -> 28,180 | J77: △4,600
G78: 국내여비 | H78: =체육시설팀!H93 -> 23,580 | I78: =체육시설팀!I93 -> 28,180 | J78: =H78-I78 -> △4,600
F79: 관서업무비 | H79: =체육시설팀!H96 -> 11,700 | I79: =체육시설팀!I96 -> 11,700 | J79: 0
G80: 부서업무비 | H80: =체육시설팀!H97 -> 11,700 | I80: =체육시설팀!I97 -> 11,700 | J80: =H80-I80 -> 0
E81: 진남수영장 시설 유지보수 | H81: =H82+H85 -> 71,254 | I81: =I82+I85 -> 71,404 | J81: △150
F82: 재료비 | H82: =체육시설팀!H104 -> 10,354 | I82: =체육시설팀!I104 -> 10,354 | J82: 0
G83: 일반재료비 | H83: =체육시설팀!H105 -> 1,000 | I83: =체육시설팀!I105 -> 1,000 | J83: 0
G84: 약품비 | H84: =체육시설팀!H107 -> 9,354 | I84: =체육시설팀!I107 -> 9,354 | J84: 0
F85: 수선유지교체비 | H85: =체육시설팀!H113 -> 60,900 | I85: =체육시설팀!I113 -> 61,050 | J85: △150
G86: 수선유지비 | H86: =체육시설팀!H114 -> 60,900 | I86: =체육시설팀!I114 -> 61,050 | J86: =H86-I86 -> △150
D87: 망마국민체육센터 수탁 대행사업 | H87: =H88+H97 -> 745,283 | I87: =I88+I97 -> 1,112,544 | J87: =H87-I87 -> △367,261
E88: 망마국민체육센터 운영 및 관리 | H88: =H89+H91 -> 673,743 | I88: =I89+I91 -> 1,038,366 | J88: △364,623
F89: 인건비 | H89: =체육시설팀!H137 -> 156,863 | I89: =체육시설팀!I137 -> 546,495 | J89: △389,632
G90: 기간제근로자보수 | H90: =체육시설팀!H139 -> 156,863 | I90: =체육시설팀!I139 -> 212,585 | J90: =H90-I90 -> △55,722
F91: 일반운영비 | H91: =체육시설팀!H150 -> 516,880 | I91: =체육시설팀!I150 -> 491,871 | J91: 25,009
G92: 사무관리비 | H92: =체육시설팀!H151 -> 25,660 | I92: =체육시설팀!I151 -> 34,924 | J92: △9,264
G93: 지급수수료 | H93: =체육시설팀!H169 -> 63,933 | I93: =체육시설팀!I169 -> 62,996 | J93: 937
G94: 임차료 | H94: =체육시설팀!H189 -> 5,112 | I94: =체육시설팀!I189 -> 5,112 | J94: 0
G95: 복리후생비 | H95: =체육시설팀!H192 -> 7,640 | I95: =체육시설팀!I192 -> 10,940 | J95: △3,300
G96: 공공요금및제세 | H96: =체육시설팀!H196 -> 414,535 | I96: =체육시설팀!I196 -> 377,899 | J96: 36,636
E97: 망마국민체육센터 시설 유지보수 | H97: =H98+H101 -> 71,540 | I97: =I98+I101 -> 74,178 | J97: △2,638
F98: 재료비 | H98: =체육시설팀!H208 -> 7,040 | I98: =체육시설팀!I208 -> 9,278 | J98: △2,238
G99: 일반재료비 | H99: =체육시설팀!H209 -> 800 | I99: =체육시설팀!I209 -> 926 | J99: △126
G100: 약품비 | H100: =체육시설팀!H211 -> 6,240 | I100: =체육시설팀!I211 -> 8,352 | J100: △2,112
F101: 수선유지교체비 | H101: =체육시설팀!H215 -> 64,500 | I101: =체육시설팀!I215 -> 64,900 | J101: △400
G102: 수선유지비 | H102: =체육시설팀!H216 -> 64,500 | I102: =체육시설팀!I216 -> 64,900 | J102: =H102-I102 -> △400
D103: 장애인국민체육센터 수탁 대행사업 | H103: =H104+H112 -> 224,991 | I103: =I104+I112 -> 216,410 | J103: =H103-I103 -> 8,581
E104: 장애인국민체육센터 운영 및 관리 | H104: =H105 -> 187,895 | I104: =I105 -> 182,207 | J104: 5,688
F105: 일반운영비 | H105: =체육시설팀!H243 -> 187,895 | I105: =체육시설팀!I243 -> 182,207 | J105: 5,688
G106: 사무관리비 | H106: =체육시설팀!H244 -> 18,232 | I106: =체육시설팀!I244 -> 23,876 | J106: △5,644
G107: 공공운영비 | H107: =체육시설팀!H261 -> 100 | I107: =체육시설팀!I261 -> 150 | J107: △50
G108: 지급수수료 | H108: =체육시설팀!H263 -> 36,700 | I108: =체육시설팀!I263 -> 35,130 | J108: 1,570
G109: 임차료 | H109: =체육시설팀!H279 -> 4,320 | I109: =체육시설팀!I279 -> 4,008 | J109: 312
G110: 복리후생비 | H110: =체육시설팀!H282 -> 500 | I110: =체육시설팀!I282 -> 600 | J110: △100
G111: 공공요금및제세 | H111: =체육시설팀!H284 -> 128,043 | I111: =체육시설팀!I284 -> 118,443 | J111: 9,600
E112: 장애인국민체육센터 시설 유지보수 | H112: =H113+H115 -> 37,096 | I112: =I113+I115 -> 34,203 | J112: 2,893
F113: 재료비 | H113: =체육시설팀!H296 -> 747 | I113: =체육시설팀!I296 -> 1,604 | J113: △857
G114: 일반재료비 | H114: =체육시설팀!H297 -> 747 | I114: =체육시설팀!I297 -> 1,604 | J114: =H114-I114 -> △857
F115: 수선유지교체비 | H115: =체육시설팀!H302 -> 36,349 | I115: =체육시설팀!I302 -> 32,599 | J115: 3,750
G116: 수선유지비 | H116: =체육시설팀!H303 -> 36,349 | I116: =체육시설팀!I303 -> 32,599 | J116: =H116-I116 -> 3,750
C117: 환경대행사업 | H117: =H118+H142+H157 -> 26,353,563 | I117: =I118+I142+I157 -> 24,525,957 | J117: 1,827,606
D118: 생활폐기물 수집운반∙가로청소 수탁 대행사업 | H118: =H119+H135+H138 -> 21,828,236 | I118: =I119+I135+I138 -> 19,952,216 | J118: 1,876,020
E119: 생활폐기물 수집운반 및 가로청소 운영관리 | H119: =H120+H123+H131+H133 -> 20,789,419 | I119: =I120+I123+I131+I133 -> 18,803,095 | J119: 1,986,324
F120: 인건비 | H120: =도시미화팀!H9 -> 18,866,047 | I120: =도시미화팀!I9 -> 16,931,833 | J120: 1,934,214
G121: 무기계약직근로자보수 | H121: =도시미화팀!H11 -> 18,793,855 | I121: =도시미화팀!I11 -> 16,620,543 | J121: 2,173,312
G122: 기간제근로자보수 | H122: =도시미화팀!H76 -> 72,192 | I122: =도시미화팀!I76 -> 311,290 | J122: △239,098
F123: 일반운영비 | H123: =도시미화팀!H81 -> 1,875,532 | I123: =도시미화팀!I81 -> 1,816,607 | J123: 58,925
G124: 사무관리비 | H124: =도시미화팀!H82 -> 50,980 | I124: =도시미화팀!I82 -> 66,400 | J124: △15,420
G125: 공공운영비 | H125: =도시미화팀!H107 -> 0 | I125: =도시미화팀!I107 -> 7,200 | J125: △7,200
G126: 행사운영비 | H126: =도시미화팀!H108 -> 1,900 | I126: =도시미화팀!I108 -> 4,110 | J126: △2,210
G127: 지급수수료 | H127: =도시미화팀!H111 -> 16,458 | I127: =도시미화팀!I111 -> 78,347 | J127: △61,889
G128: 임차료 | H128: =도시미화팀!H117 -> 74,477 | I128: =도시미화팀!I117 -> 76,652 | J128: △2,175
G129: 공공요금및제세 | H129: =도시미화팀!H128 -> 286,569 | I129: =도시미화팀!I128 -> 284,502 | J129: 2,067
G130: 차량선박비 | H130: =도시미화팀!H137 -> 1,445,148 | I130: =도시미화팀!I137 -> 1,299,396 | J130: =H130-I130 -> 145,752
F131: 여비 | H131: =도시미화팀!H144 -> 27,620 | I131: =도시미화팀!I144 -> 34,795 | J131: △7,175
G132: 국내여비 | H132: =도시미화팀!H145 -> 27,620 | I132: =도시미화팀!I145 -> 34,795 | J132: =H132-I132 -> △7,175
F133: 관서업무비 | H133: =도시미화팀!H157 -> 20,220 | I133: =도시미화팀!I157 -> 19,860 | J133: 360
G134: 부서업무비 | H134: =도시미화팀!H158 -> 20,220 | I134: =도시미화팀!I158 -> 19,860 | J134: =H134-I134 -> 360
E135: 환경사원 안전개선 사업 | H135: =H136 -> 727,617 | I135: =I136 -> 730,921 | J135: △3,304
F136: 일반운영비 | H136: =도시미화팀!H163 -> 727,617 | I136: =도시미화팀!I163 -> 730,921 | J136: =H136-I136 -> △3,304
G137: 복리후생비 | H137: =도시미화팀!H164 -> 727,617 | I137: =도시미화팀!I164 -> 730,921 | J137: =H137-I137 -> △3,304
E138: 환경사원 복지관 유지보수 | H138: =H139+H140 -> 311,200 | I138: =I139+I140 -> 418,200 | J138: △107,000
F139: 재료비 | H139: =도시미화팀!H202 -> 0 | I139: =도시미화팀!I202 -> 1,200 | J139: △1,200
F140: 수선유지교체비 | H140: =도시미화팀!H203 -> 311,200 | I140: =도시미화팀!I203 -> 417,000 | J140: △105,800
G141: 수선유지비 | H141: =도시미화팀!H204 -> 311,200 | I141: =도시미화팀!I204 -> 417,000 | J141: =H141-I141 -> △105,800
D142: 종량제물품 공급관리 수탁 대행사업 | H142: =H143 -> 101,745 | I142: =I143 -> 106,284 | J142: =H142-I142 -> △4,539
E143: 종량제물품 공급관리 | H143: =H144+H151+H153+H155 -> 101,745 | I143: =I144+I151+I153+I155 -> 106,284 | J143: △4,539
F144: 일반운영비 | H144: =도시미화팀!H213 -> 98,745 | I144: =도시미화팀!I213 -> 99,684 | J144: △939
G145: 사무관리비 | H145: =도시미화팀!H214 -> 3,678 | I145: =도시미화팀!I214 -> 4,800 | J145: △1,122
G146: 지급수수료 | H146: =도시미화팀!H222 -> 66,271 | I146: =도시미화팀!I222 -> 65,070 | J146: 1,201
G147: 임차료 | H147: =도시미화팀!H229 -> 10,896 | I147: =도시미화팀!I229 -> 10,308 | J147: 588
G148: 복리후생비 | H148: =도시미화팀!H234 -> 2,460 | I148: =도시미화팀!I234 -> 2,940 | J148: △480
G149: 공공요금및제세 | H149: =도시미화팀!H240 -> 9,740 | I149: =도시미화팀!I240 -> 9,366 | J149: 374
G150: 차량선박비 | H150: =도시미화팀!H249 -> 5,700 | I150: =도시미화팀!I249 -> 7,200 | J150: △1,500
F151: 여비 | H151: =도시미화팀!H253 -> 1,800 | I151: =도시미화팀!I253 -> 2,400 | J151: △600
G152: 국내여비 | H152: =도시미화팀!H254 -> 1,800 | I152: =도시미화팀!I254 -> 2,400 | J152: =H152-I152 -> △600
F153: 수선유지교체비 | H153: =도시미화팀!H256 -> 0 | I153: =도시미화팀!I256 -> 3,000 | J153: △3,000
G154: 수선유지비 | H154: =도시미화팀!H257 -> 0 | I154: =도시미화팀!I257 -> 3,000 | J154: =H154-I154 -> △3,000
F155: 관서업무비 | H155: =도시미화팀!H259 -> 1,200 | I155: =도시미화팀!I259 -> 1,200 | J155: 0
G156: 부서업무비 | H156: =도시미화팀!H260 -> 1,200 | I156: =도시미화팀!I260 -> 1,200 | J156: =H156-I156 -> 0
D157: 도시형 폐기물 처리시설 수탁 대행사업 | H157: =H158+H172 -> 4,423,582 | I157: =I158+I172 -> 4,467,457 | J157: =H157-I157 -> △43,875
E158: 도시형 폐기물 처리시설 운영 | H158: =H159+H161+H168+H170 -> 821,676 | I158: =I159+I161+I168+I170 -> 907,116 | J158: △85,440
F159: 인건비 | H159: =환경자원사업소!H9 -> 0 | I159: =환경자원사업소!I9 -> 34,656 | J159: △34,656
G160: 기간제근로자보수 | H160: =환경자원사업소!H10 -> 0 | I160: =환경자원사업소!I10 -> 34,656 | J160: =H160-I160 -> △34,656
F161: 일반운영비 | H161: =환경자원사업소!H12 -> 808,716 | I161: =환경자원사업소!I12 -> 857,865 | J161: △49,149
G162: 사무관리비 | H162: =환경자원사업소!H13 -> 40,170 | I162: =환경자원사업소!I13 -> 86,295 | J162: △46,125
G163: 지급수수료 | H163: =환경자원사업소!H39 -> 557,272 | I163: =환경자원사업소!I39 -> 533,432 | J163: 23,840
G164: 임차료 | H164: =환경자원사업소!H62 -> 26,224 | I164: =환경자원사업소!I62 -> 27,984 | J164: △1,760
G165: 복리후생비 | H165: =환경자원사업소!H73 -> 54,360 | I165: =환경자원사업소!I73 -> 64,140 | J165: △9,780
G166: 공공요금및제세 | H166: =환경자원사업소!H83 -> 124,264 | I166: =환경자원사업소!I83 -> 136,614 | J166: △12,350
G167: 차량선박비 | H167: =환경자원사업소!H102 -> 6,426 | I167: =환경자원사업소!I102 -> 9,400 | J167: △2,974
F168: 여비 | H168: =환경자원사업소!H107 -> 7,440 | I168: =환경자원사업소!I107 -> 9,015 | J168: △1,575
G169: 국내여비 | H169: =환경자원사업소!H108 -> 7,440 | I169: =환경자원사업소!I108 -> 9,015 | J169: =H169-I169 -> △1,575
F170: 관서업무비 | H170: =환경자원사업소!H111 -> 5,520 | I170: =환경자원사업소!I111 -> 5,580 | J170: △60
G171: 부서업무비 | H171: =환경자원사업소!H112 -> 5,520 | I171: =환경자원사업소!I112 -> 5,580 | J171: =H171-I171 -> △60
E172: 도시형 폐기물 처리시설 유지보수 | H172: =H173+H177+H179+H175 -> 3,601,906 | I172: =I173+I177+I179+I175 -> 3,560,341 | J172: =H172-I172 -> 41,565
F173: 재료비 | H173: =환경자원사업소!H116 -> 625,233 | I173: =환경자원사업소!I116 -> 815,212 | J173: △189,979
G174: 약품비 | H174: =환경자원사업소!H117 -> 625,233 | I174: =환경자원사업소!I117 -> 815,212 | J174: =H174-I174 -> △189,979
F175: 연구개발비 | H175: =환경자원사업소!H135 -> 21,000 | I175: =환경자원사업소!I135 -> 0 | J175: =H175-I175 -> 21,000
G176: 시험연구비 | H176: =환경자원사업소!H136 -> 21,000 | I176: =환경자원사업소!I136 -> 0 | J176: =H176-I176 -> 21,000
F177: 수선유지교체비 | H177: =환경자원사업소!H137 -> 2,187,850 | I177: =환경자원사업소!I137 -> 2,015,125 | J177: 172,725
G178: 수선유지비 | H178: =환경자원사업소!H138 -> 2,187,850 | I178: =환경자원사업소!I138 -> 2,015,125 | J178: =H178-I178 -> 172,725
F179: 동력비 | H179: =환경자원사업소!H174 -> 767,823 | I179: =환경자원사업소!I174 -> 730,004 | J179: =H179-I179 -> 37,819
G180: 동력비 | H180: =환경자원사업소!H174 -> 767,823 | I180: =환경자원사업소!I174 -> 730,004 | J180: =H180-I180 -> 37,819
C181: 행정운영활동 | H181: =H182+H226 -> 15,890,185 | I181: =I182+I226 -> 17,995,663 | J181: △2,105,478
D182: 일반행정운영 관리 | H182: =H183+H215 -> 5,298,338 | I182: =I183+I215 -> 4,938,125 | J182: 360,213
E183: 행정운영 | H183: =H184+H195+H198+H200+H202+H205+H209+H211+H213 -> 5,141,908 | I183: =I184+I195+I198+I200+I202+I205+I209+I211+I213 -> 4,648,533 | J183: 493,375
F184: 일반운영비 | H184: =경영본부!H10 -> 1,363,391 | I184: =경영본부!I10 -> 1,078,624 | J184: =H184-I184 -> 284,767
G185: 사무관리비 | H185: =경영본부!H11 -> 64,394 | I185: =경영본부!I11 -> 85,930 | J185: =H185-I185 -> △21,536
G186: 공공운영비 | H186: =경영본부!H76 -> 0 | I186: =경영본부!I76 -> 6,500 | J186: △6,500
G187: 행사운영비 | H187: =경영본부!H77 -> 16,800 | I187: =경영본부!I77 -> 21,500 | J187: △4,700
G188: 지급수수료 | H188: =경영본부!H81 -> 212,622 | I188: =경영본부!I81 -> 246,872 | J188: =H188-I188 -> △34,250
G189: 교육훈련비 | H189: =경영본부!H108 -> 44,080 | I189: =경영본부!I108 -> 49,300 | J189: =H189-I189 -> △5,220
G190: 임차료 | H190: =경영본부!H142 -> 99,445 | I190: =경영본부!I142 -> 69,271 | J190: 30,174
G191: 회의비 | H191: =경영본부!H158 -> 4,650 | I191: =경영본부!I158 -> 5,736 | J191: △1,086
G192: 복리후생비 | H192: =경영본부!H172 -> 854,370 | I192: =경영본부!I172 -> 548,685 | J192: 305,685
G193: 공공요금및제세 | H193: =경영본부!H196 -> 61,750 | I193: =경영본부!I196 -> 38,830 | J193: 22,920
G194: 차량선박비 | H194: =경영본부!H206 -> 5,280 | I194: =경영본부!I206 -> 6,000 | J194: △720
F195: 여비 | H195: =경영본부!H209 -> 43,200 | I195: =경영본부!I209 -> 34,200 | J195: 9,000
G196: 국내여비 | H196: =경영본부!H210 -> 28,200 | I196: =경영본부!I210 -> 34,200 | J196: =H196-I196 -> △6,000
G197: 국외업무여비 | H197: =경영본부!H213 -> 15,000 | I197: =경영본부!I213 -> 0 | J197: =H197-I197 -> 15,000
F198: 업무추진비 | H198: =경영본부!H215 -> 20,000 | I198: =경영본부!I215 -> 20,000 | J198: 0
G199: 사업업무추진비 | H199: =경영본부!H216 -> 20,000 | I199: =경영본부!I216 -> 20,000 | J199: 0
F200: 수선유지교체비 | H200: =경영본부!H219 -> 14,850 | I200: =경영본부!I219 -> 5,000 | J200: 9,850
... 119 more rows

Sheet 경영본부
A1: 다. 지출예산(세부사업) - 경영본부 | M1: 단위 : 천원
A2: 구 분 | B2: 사업 | E2: 편성목 | H2: 당년도예산액 (A) | I2: 전년도예산액 (B) | J2: 증 감 (A-B) | K2: 산 출 기 초
B3: 정책 | C3: 단위 | D3: 세부 | E3: 그룹 | F3: 목 | G3: 세목
A4: 총계(사업예산+자본예산) | H4: =H5+H1296 -> 16,422,581 | I4: =I5+I1296 -> 18,518,433 | J4: =H4-I4 -> △2,095,852
A5: 사업예산 | H5: =H6 -> 15,890,185 | I5: =I6 -> 17,995,663 | J5: △2,105,478
B6: 행정운영활동 | H6: =H309+H7 -> 15,890,185 | I6: =I309+I7 -> 17,995,663 | J6: △2,105,478
C7: 일반행정운영 관리 | H7: =H8+H258 -> 5,298,338 | I7: =I8+I258 -> 4,938,125 | J7: 360,213
D8: 행정운영 | H8: =H9+H234+H256 -> 5,141,908 | I8: =I9+I234+I256 -> 4,648,533 | J8: 493,375
E9: 200 물건비 | H9: =H10+H209+H215+H219+H227 -> 1,468,396 | I9: =I10+I209+I215+I219+I227 -> 1,164,959 | J9: 303,437 | M9: =M10+M209+M215+M219+M227 -> 1,468,396
F10: 201 일반운영비 | H10: =H11+H76+H77+H81+H108+H142+H158+H172+H196+H206 -> 1,363,391 | I10: =I11+I76+I77+I81+I108+I142+I158+I172+I196+I206 -> 1,078,624 | J10: 284,767 | M10: =H11+H76+H77+H81+H108+H142+H158+H172+H196+H206 -> 1,363,391
G11: 01 사무관리비 | H11: =M11+M50 -> 64,394 | I11: 85,930 | J11: △21,536 | K11: [일반수용비] | M11: =M12+M15+M17+M23+M24+M25+M30+M31+M48+M45+M39+M40+M44+M49 -> 43,744 | P11: 금액(원) | Q11: 수량 | R11: 단위 | S11: 개월 | T11: 산출액 합계
K12: ○ 사무용품 구입 | M12: =SUM(M13:M14) -> 5,748 | N12: ○ 사무용품 구입 | T12: =SUM(T13:T14) -> 5,748,000 | V12: 사유 | W12: 이전 | X12: 현재
K13: =N13&TEXT(P13," #,###원")&" * "&Q13&R13&" * "&TEXT(S13,"#월") -> - 복사용지 구입 : 27,900원 * 10박스 * 12월 | L13: = | M13: =T13/1000 -> 3,348 | N13: - 복사용지 구입 : | P13: 27,900 | Q13: 10 | R13: 박스 | S13: 12 | T13: =P13*Q13*S13 -> 3,348,000 | V13: 박스당 단가 상승 | W13: 24,500 | X13: 27,900
K14: =N14&TEXT(P14," #,###원")&" * "&Q14&R14&" * "&TEXT(S14,"#월") -> - 사무용품 구입 : 200,000원 * 1회 * 12월 | L14: = | M14: =T14/1000 -> 2,400 | N14: - 사무용품 구입 : | P14: 200,000 | Q14: 1 | R14: 회 | S14: 12 | T14: =P14*Q14*S14 -> 2,400,000
K15: ○ 기록물 관리 | M15: =SUM(M16:M16) -> 400 | N15: ○ 기록물 관리 | T15: =SUM(T16:T16) -> 400,000
K16: =N16&TEXT(P16," #,###원")&" * "&Q16&R16 -> - 기록관 환경정비 물품 구입 : 200,000원 * 2개 | L16: = | M16: 400 | N16: - 기록관 환경정비 물품 구입 : | P16: 200,000 | Q16: 2 | R16: 개 | T16: =P16*Q16 -> 400,000
K17: ○ 전산소모 비품비(토너, 드럼) | M17: =SUM(M18:M22) -> 8,200 | N17: ○ 전산소모 비품비(토너, 드럼) | T17: =SUM(T18:T22) -> 8,200,000
K18: =N18&TEXT(P18," #,###원")&" * "&Q18&R18 -> - 컬러복합기 토너 : 200,000원 * 25개 | L18: = | M18: =T18/1000 -> 5,000 | N18: - 컬러복합기 토너 : | P18: 200,000 | Q18: 25 | R18: 개 | T18: =P18*Q18 -> 5,000,000
K19: =N19&TEXT(P19," #,###원")&" * "&Q19&R19 -> - 컬러복합기 폐토너통 : 110,000원 * 10개 | L19: = | M19: 1,100 | N19: - 컬러복합기 폐토너통 : | P19: 110,000 | Q19: 10 | R19: 개 | T19: =P19*Q19 -> 1,100,000
K20: - 흑백복합기 추가인쇄료 : 11원 * 100,000매 | L20: = | M20: 1,100 | N20: - 흑백복합기 추가인쇄료 : | P20: 11 | Q20: 100,000 | R20: 매 | T20: =P20*Q20 -> 1,100,000
K21: =N21&TEXT(P21," #,###원")&" * "&Q21&R21 -> - 임원실 토너 : 200,000원 * 3개 | L21: = | M21: 600 | N21: - 임원실 토너 : | P21: 200,000 | Q21: 3 | R21: 개 | T21: =P21*Q21 -> 600,000
K22: =N22&TEXT(P22," #,###원")&" * "&Q22&R22 -> - 전산 소모품 : 20,000원 * 20회 | L22: = | M22: 400 | N22: - 전산 소모품 : | P22: 20,000 | Q22: 20 | R22: 회 | T22: =P22*Q22 -> 400,000
K23: =N23&TEXT(P23," #,###원")&" * "&TEXT(S23,"#월") -> ○ 사무실 위생용품(종량제봉투 등) 구입 : 400,000원 * 12월 | L23: = | M23: 4,800 | N23: ○ 사무실 위생용품(종량제봉투 등) 구입 : | P23: 400,000 | S23: 12 | T23: =P23*S23 -> 4,800,000
K24: =N24&TEXT(P24," #,###원") -> ○ 개인정보 홍보물품 등 홍보물(현수막, 간판, 상패 등) 제작 : 2,600,000원 | L24: = | M24: =T24/1000 -> 2,600 | N24: ○ 개인정보 홍보물품 등 홍보물(현수막, 간판, 상패 등) 제작 : | P24: 2,600,000 | T24: =P24 -> 2,600,000
K25: ○ 신문구독료 | M25: =SUM(M26:M29) -> 648 | N25: ○ 신문 구독료 | T25: =SUM(T26:T29) -> 648,000 | V25: 사유
K26: =N26&TEXT(P26," #,###원")&" * "&Q26&R26&" * "&TEXT(S26,"#월") -> - 전남매일 : 12,000원 * 1부 * 12월 | L26: = | M26: =T26/1000 -> 144 | N26: - 전남매일 : | P26: 12,000 | Q26: 1 | R26: 부 | S26: 12 | T26: =P26*Q26*S26 -> 144,000
K27: - 광주일보 : 12,000원 * 1부 * 12월 | L27: = | M27: 144 | N27: - 광주일보 : | P27: 12,000 | Q27: 1 | R27: 부 | S27: 12 | T27: 144,000
K28: - 경향신문 : 20,000원 * 1부 * 12월 | L28: = | M28: 240 | N28: - 경향신문 : | P28: 20,000 | Q28: 1 | R28: 부 | S28: 12 | T28: 240,000
K29: - 여수넷통 : 10,000원 * 1부 * 12월 | L29: = | M29: 120 | N29: - 여수넷통 : | P29: 10,000 | Q29: 1 | R29: 부 | S29: 12 | T29: 120,000 | V29: 신규
K30: ○ 기술서적 및 업무용 자료 구입 : 50,000원 * 2권 * 3월 | L30: = | M30: 300
K31: ○ 유인물인쇄 | M31: =SUM(M32:M38) -> 3,020
K32: - 업무보고자료 : 5,000원 * 60부 * 2회 | L32: = | M32: =T32/1000 -> 600 | P32: 5,000 | Q32: 60 | R32: 2 | T32: =P32*Q32*R32 -> 600,000
K33: - 이사회 부의자료 : 200,000원 * 4회 | L33: = | M33: =T33/1000 -> 800 | P33: 200,000 | Q33: 1 | R33: 4 | T33: =P33*Q33*R33 -> 800,000
K34: - 예,결산서 유인 : 5,000원 * 30부 * 2종 * 2회 | L34: = | M34: =T34/1000 -> 600 | P34: 5,000 | Q34: 30 | R34: 4 | T34: =P34*Q34*R34 -> 600,000
K35: - 내부경영성과 평가 결과보고 : 5,000원 * 20부 | L35: = | M35: 100
K36: - 내부경영성과 평가 편람: 5,000원 * 20부 | L36: = | M36: 100
K37: - 경영평가실적보고서 : 16,000원 * 20부 | L37: = | M37: 320
K38: - 복사/제본 : 10,000원 * 5종 * 10회 | L38: = | M38: =T38/1000 -> 500 | P38: 10,000 | Q38: 5 | R38: 10 | T38: =P38*Q38*R38 -> 500,000
K39: ○ TV,신문,잡지등에 의한 공고료 : 6,600,000원*1식 | L39: = | M39: 6,600
K40: ○ 소프트웨어 구매 및 리스료 | M40: =T40/1000 -> 4,878 | N40: ○ 소프트웨어 구매 및 리스료 | T40: =SUM(T41:T43) -> 4,878,000
K41: =N41&TEXT(P41," #,###원")&" * "&Q41&R41 -> - 한글 2022 : 250,000원 * 6대 | L41: = | M41: 1,500 | N41: - 한글 2022 : | P41: 250,000 | Q41: 6 | R41: 대 | T41: =P41*Q41 -> 1,500,000
K42: =N42&TEXT(P42," #,###원")&" * "&Q42&R42 -> - Microsoft Office : 420,000원 * 6대 | L42: = | M42: 2,520 | N42: - Microsoft Office : | P42: 420,000 | Q42: 6 | R42: 대 | T42: 2,520,000
K43: =N43&TEXT(P43," #,###원")&" * "&Q43&R43 -> - 알약 : 26,000원 * 33대 | L43: = | M43: 858 | N43: - 알약 : | P43: 26,000 | Q43: 33 | R43: 대 | T43: 858,000
K44: =N44&TEXT(P44," #,###원")&" * "&Q44&R44 -> ○ 공단 업무용 수첩 제작 : 50,000원 * 50부 | L44: = | M44: 2,500 | N44: ○ 공단 업무용 수첩 제작 : | P44: 50,000 | Q44: 50 | R44: 부 | T44: 2,500,000
K45: ○ 소비자중심경영 서비스 제공 관리 | M45: =M46+M47 -> 650
K46: - 고객정보제공 및 수요분석 설문조사(홈페이지) : 10,000원 * 20명 * 1회 | L46: = | M46: =T46/1000 -> 200 | P46: 10,000 | Q46: 20 | R46: 1 | T46: =P46*Q46*R46 -> 200,000
K47: - 고객응대표준매뉴얼 인쇄물 제작 : 15,000원 * 30권 * 1회 | L47: = | M47: 450 | P47: 15,000 | Q47: 30 | R47: 1 | T47: =P47*Q47*R47 -> 450,000
K48: ○ 적극행정 및 청렴캠페인 관련 직원 홍보물 제작 : 1,000,000원 * 1식 | L48: = | M48: 1,000 | P48: 1,000,000 | Q48: 1 | R48: 1 | T48: =P48*Q48*R48 -> 1,000,000
K49: ○ 청사 관리비 : 200,000원 * 12월 | M49: 2,400
K50: [위원회 등 운영수당] | M50: =M51+M54+M58+M61+M63+M65+M68+M69+M70+M72+M73+M75+M74 -> 20,650 | P50: 금액(원) | Q50: 인원(명) | R50: 횟수 | T50: 산출액 합계
K51: ○ 이사회 참석수당 | M51: =SUM(M52:M53) -> 4,600 | T51: =SUM(T52:T53) -> 4,600,000
K52: - 기본(참석수당) : 100,000원 * 4명 * 10회 | L52: = | M52: =T52/1000 -> 4,000 | P52: 100,000 | Q52: 4 | R52: 10 | T52: =P52*Q52*R52 -> 4,000,000
K53: - 초과(2시간이상) : 50,000원 * 4명 * 3회 | L53: = | M53: =T53/1000 -> 600 | P53: 50,000 | Q53: 4 | R53: 3 | T53: =P53*Q53*R53 -> 600,000
K54: ○ 임원추천위원회 참석/심사 수당 | M54: =SUM(M55:M57) -> 5,600 | T54: =SUM(T55:T60) -> 11,600,000
K55: - 기본(참석수당) : 100,000원 * 7명 * 4회 | L55: = | M55: =T55/1000 -> 2,800 | P55: 100,000 | Q55: 7 | R55: 4 | T55: =P55*Q55*R55 -> 2,800,000
K56: - 초과(2시간이상) : 50,000원 * 7명 * 2회 | L56: = | M56: =T56/1000 -> 700 | P56: 50,000 | Q56: 7 | R56: 2 | T56: 700,000
K57: - 심사수당 : 100,000원 * 7명 * 3회 | L57: = | M57: =T57/1000 -> 2,100 | P57: 100,000 | Q57: 7 | R57: 3 | T57: 2,100,000
K58: ○ 인사(징계)위원회 참석수당 | M58: =SUM(M59:M60) -> 4,200 | P58: 100,000 | Q58: 3 | R58: 6 | T58: 1,800,000
K59: - 기본(참석수당) : 100,000원 * 3명 * 12회 | L59: = | M59: =T59/1000 -> 3,600 | P59: 100,000 | Q59: 3 | R59: 12 | T59: 3,600,000
K60: - 초과(2시간이상) : 50,000원 * 3명 * 4회 | L60: = | M60: =T60/1000 -> 600 | P60: 50,000 | Q60: 3 | R60: 4 | T60: 600,000
K61: ○ 계약 심의위원회 참석/심사수당 | M61: =SUM(M62:M62) -> 500 | T61: =SUM(T62:T62) -> 500,000
K62: - 기본(참석수당) : 100,000원 * 1명 * 1회 | L62: = | M62: =T62/1000 -> 500 | P62: 100,000 | Q62: 5 | R62: 1 | T62: =P62*Q62*R62 -> 500,000
K63: ○ 소프트웨어사업 과업심의위원회 참석수당 | M63: 300 | T63: =SUM(T64) -> 300,000
K64: - 기본(참석수당) : 100,000원 * 3명 * 1회 | L64: = | M64: 300 | P64: 100,000 | Q64: 3 | R64: 1 | T64: =P64*Q64*R64 -> 300,000
K65: ○ 기록물평가심의회 참석수당 | M65: 250 | T65: =SUM(T66:T67) -> 250,000
K66: - 외부위원 참석수당 : 100,000원 * 2명 * 1회 | L66: = | M66: 200 | P66: 100,000 | Q66: 2 | R66: 1 | T66: =P66*Q66*R66 -> 200,000
K67: - 외부위원 원격지 교통비 : 50,000원 * 1명 | L67: = | M67: 50 | P67: 50,000 | Q67: 1 | R67: 1 | T67: =P67*Q67*R67 -> 50,000
K68: ○ 혁신 과제(우수사례) 선정 위원 참석수당 : 100,000원 * 4명 * 1회 | L68: = | M68: 400
K69: ○ ESG경영위원회 참석수당 : 100,000원 * 7명 * 3회 | L69: = | M69: 2,100 | P69: 100,000 | Q69: 7 | R69: 3 | T69: =P69*Q69*R69 -> 2,100,000
K70: ○ 성과관리 위원회 참석/심사수당 | M70: =SUM(M71:M71) -> 800
K71: - 성과관리 외부위원회 참석수당 : 100,000원 * 4명 * 2회 | L71: = | M71: 800
K72: ○ 주민참여예산위원회 참석수당 : 100,000원 * 5명 * 1회 | L72: = | M72: =P72*Q72*R72/1000 -> 500 | P72: 100,000 | Q72: 5 | R72: 1 | T72: =P72*Q72*R72 -> 500,000
K73: ○ 적극행정 지원위원회 참석수당 : 100,000원 * 4명 * 1회 | L73: = | M73: =P73*Q73*R73/1000 -> 400 | P73: 100,000 | Q73: 4 | R73: 1 | T73: =P73*Q73*R73 -> 400,000
K74: ○ (신규)직장 내 괴롭힘 심의위원회 참석수당 : 100,000원 * 5명 * 1회 | L74: = | M74: =P74*Q74*R74/1000 -> 500 | P74: 100,000 | Q74: 5 | R74: 1 | T74: =P74*Q74*R74 -> 500,000
K75: ○ 성희롱·성폭력 고충심의위원회 참석수당 : 100,000원 * 5명 * 1회 | L75: = | M75: =P75*Q75*R75/1000 -> 500 | P75: 100,000 | Q75: 5 | R75: 1 | T75: =P75*Q75*R75 -> 500,000
G76: 02 공공운영비 | H76: =M76 -> 0 | I76: 6,500 | J76: =H76-I76 -> △6,500 | K76: [복리후생비로 이전] | M76: 0
G77: 03 행사운영비 | H77: =M77 -> 16,800 | I77: 21,500 | J77: =H77-I77 -> △4,700 | K77: [행사운영비] | M77: =M78+M79+M80 -> 16,800 | T77: =SUM(T78:T80) -> 14,800,000
K78: ○ 창립기념일, 정년퇴임식 행사 등 : 5,000,000원 * 2회 | L78: = | M78: =T78/1000 -> 10,000 | P78: 5,000,000 | R78: 2 | T78: =P78*R78 -> 10,000,000
K79: ○ 직원 화합 워크숍 : 4,800,000원 * 1회 | L79: = | M79: =T79/1000 -> 4,800 | P79: 4,800,000 | R79: 1 | T79: =P79*R79 -> 4,800,000
K80: ○ 전남지역문제해결플랫폼 시민참여 행사 : 2,000,000원 * 1회 | L80: = | M80: 2,000
G81: 11 지급수수료 | H81: =M81 -> 212,622 | I81: 246,872 | J81: =H81-I81 -> △34,250 | K81: [지급수수료] | M81: =M82+M83+M84+M85+M88+M89+M101+M105+M107+M106 -> 212,622 | P81: 금액(원) | Q81: 인원(대수) | R81: 횟수 | S81: 개월 | T81: 산출액 합계
K82: ○ 직원 채용 위탁수수료(상.하반기,수시2) : 22,000,000원 * 3회 | L82: = | M82: =T82/1000 -> 66,000 | P82: 22,000,000 | Q82: 1 | R82: 3 | S82: 1 | T82: =P82*Q82*R82*S82 -> 66,000,000
K83: ○ 자문 노무사 자문료 : 400,000원 * 2명 * 12월 | L83: = | M83: =T83/1000 -> 9,600 | P83: 400,000 | Q83: 2 | R83: 1 | S83: 12 | T83: =P83*Q83*R83*S83 -> 9,600,000
K84: ○ 법률 고문 자문료 : 400,000원 * 1명 * 12월 | L84: = | M84: =T84/1000 -> 4,800 | P84: 400,000 | Q84: 1 | R84: 1 | S84: 12 | T84: =P84*Q84*R84*S84 -> 4,800,000
K85: ○ 사건수임료 | M85: =SUM(M86:M87) -> 26,400 | T85: =SUM(T86:T99) -> 109,756,000
K86: - 노무관련 사건 수임료 : 3,300,000원 * 3회 | L86: = | M86: =T86/1000 -> 9,900 | P86: 3,300,000 | Q86: 1 | R86: 3 | S86: 1 | T86: =P86*Q86*R86*S86 -> 9,900,000
K87: - 변호사 사건 수임료 : 5,500,000원 * 3회 | L87: = | M87: 16,500 | P87: 5,500,000 | Q87: 1 | R87: 3 | S87: 1 | T87: 16,500,000
K88: ○ 회계감사 수수료 : 12,000,000원 * 1회 | L88: = | M88: 12,000 | P88: 12,000,000 | Q88: 1 | R88: 1 | S88: 1 | T88: 12,000,000
K89: ○ 기타 지급수수료 : | M89: =SUM(M90:M100) -> 71,956
K90: - 무인방범 근태관리시스템 수수료 : 70,000원 * 12월 | L90: = | M90: 840 | P90: 70,000 | Q90: 1 | R90: 1 | S90: 12 | T90: 840,000
K91: - 법인등기부등본 변경 등 대행업무수수료 : 300,000원 * 4회 | L91: = | M91: 1,200 | P91: 300,000 | Q91: 1 | R91: 1 | S91: 4 | T91: 1,200,000
K92: - 인사급여프로그램 유지관리비 : 500,000원 * 12월 | L92: = | M92: 6,600 | P92: 550,000 | Q92: 1 | R92: 1 | S92: 12 | T92: 6,600,000
K93: - 신속집행 시스템 유지관리비 : 1,400,000원 * 1회 | L93: = | M93: =T93/1000 -> 1,400 | P93: 1,400,000 | Q93: 1 | R93: 1 | S93: 1 | T93: 1,400,000
K94: - 전자결재 시스템 유지보수비 : 850,000원 * 12월 | L94: = | M94: 10,200 | P94: 850,000 | Q94: 1 | R94: 1 | S94: 12 | T94: 10,200,000
K95: - 전자결재 서버 임대료 : 480,000원 * 12월 | L95: = | M95: 5,760 | P95: 480,000 | Q95: 1 | R95: 1 | S95: 12 | T95: 5,760,000
K96: - 더존ERP 시스템 유지보수비 : 390,000원 * 12월 | L96: = | M96: 4,680 | P96: 390,000 | Q96: 1 | R96: 1 | S96: 12 | T96: 4,680,000
K97: - 공단 홈페이지 유지관리보수비 : 2,000,000원 * 12월 | L97: = | M97: 24,000 | P97: 2,000,000 | Q97: 1 | R97: 1 | S97: 12 | T97: 24,000,000
K98: - (신규) 공단 홈페이지 서버 유지보수비 : 11,000,000원 * 1회 | L98: = | M98: 11,000 | P98: 11,000,000 | Q98: 1 | R98: 1 | S98: 1 | T98: 11,000,000
K99: - 개인정보보호 및 유출방지 솔루션 클라우드 서버 유지보수비 : 473,000원 * 12월 | L99: = | M99: 5,676 | P99: 473,000 | Q99: 1 | R99: 1 | S99: 12 | T99: 5,676,000
K100: - 고속도로 통행료, 주차료 및 차고료 : 100,000원 * 6월 | L100: = | M100: =T100/1000 -> 600 | P100: 100,000 | Q100: 1 | R100: 1 | S100: 6 | T100: =P100*Q100*R100*S100 -> 600,000
K101: ○ 중앙조달(나라장터) 조달수수료(내자구매 등) | L101: = | M101: =SUM(M102:M104) -> 10,066 | T101: =SUM(T102:T104) -> 10,066,000
K102: - 370,000,000 원 * 0.48% | L102: = | M102: =T102/1000 -> 1,776 | P102: 370,000,000 | Q102: 0.48% | T102: =P102*Q102 -> 1,776,000
K103: - 950,000,000 원 * 0.76% | L103: = | M103: 7,220 | P103: 950,000,000 | Q103: 0.76% | T103: =P103*Q103 -> 7,220,000
K104: - 100,000,000 원 * 1.07% | L104: = | M104: 1,070 | P104: 100,000,000 | Q104: 1.07% | T104: =P104*Q104 -> 1,070,000
K105: ○ 폐기대상 기록물 파쇄 수수료 : 500,000원 * 1회 | L105: = | M105: 500 | P105: 500,000 | R105: 1 | T105: =P105*R105 -> 500,000
K106: ○ (신규) 기록관리시스템 전자기록물 이관 용역비 : 7,700,000원 * 1회 | L106: = | M106: 7,700
K107: ○ (법정)산업보건의 업무수행 수수료 : 300,000원 * 12회 | L107: = | M107: 3,600
G108: 12 교육훈련비 | H108: =M108 -> 44,080 | I108: 49,300 | J108: =H108-I108 -> △5,220 | K108: [본부 일괄 편성] | M108: =M109+M110+M111+M112+M129+M130+M131+M132+M133+M134+M135+M140+M141+M113 -> 44,080 | P108: 금액(원) | Q108: 인원 | R108: 횟수 | S108: 개월 | T108: 산출액 합계
K109: =N109&TEXT(P109," #,###원")&" * "&TEXT(Q109,"#명")&" * "&TEXT(R109,"#회") -> ○ 교육여비 : 400,000원 * 15명 * 1회 | L109: = | M109: =T109/1000 -> 6,000 | N109: ○ 교육여비 : | P109: 400,000 | Q109: 15 | R109: 1 | T109: =P109*Q109*R109 -> 6,000,000
K110: =N110&TEXT(P110," #,###원")&" * "&TEXT(Q110,"#명")&" * "&TEXT(R110,"#회") -> ○ 관리자과정교육(2급이상) : 500,000원 * 2명 * 1회 | L110: = | M110: =T110/1000 -> 1,000 | N110: ○ 관리자과정교육(2급이상) : | P110: 500,000 | Q110: 2 | R110: 1 | T110: =P110*Q110*R110 -> 1,000,000
K111: =N111&TEXT(P111," #,###원")&" * "&TEXT(Q111,"#명")&" * "&TEXT(R111,"#회") -> ○ 실무자과정교육(팀장급) : 400,000원 * 5명 * 1회 | L111: = | M111: =T111/1000 -> 2,000 | N111: ○ 실무자과정교육(팀장급) : | P111: 400,000 | Q111: 5 | R111: 1 | T111: =P111*Q111*R111 -> 2,000,000
K112: =N112&TEXT(P112," #,###원")&" * "&TEXT(Q112,"#명")&" * "&TEXT(R112,"#회") -> ○ 실무자과정교육(4급이하) : 300,000원 * 40명 * 1회 | L112: = | M112: =T112/1000 -> 12,000 | N112: ○ 실무자과정교육(4급이하) : | P112: 300,000 | Q112: 40 | R112: 1 | T112: =P112*Q112*R112 -> 12,000,000
K113: ○ (법정)기술분야 담당자 직무 교육 | M113: =SUM(M114:M128) -> 10,040
K114: - 안전관리자 직무교육 : 200,000원 * 2명 | L114: = | M114: 400 | P114: 200,000 | Q114: 2 | R114: 1 | T114: =P114*Q114*R114 -> 400,000
K115: - 보건관리자 직무교육 : 300,000원 * 1명 | L115: = | M115: 300 | P115: 300,000 | Q115: 1 | R115: 1 | T115: =P115*Q115*R115 -> 300,000
K116: - 건설기계(지게차) 교육 : 300,000원 * 4명 | L116: = | M116: 1,200 | T116: =P116*Q116 -> 0
K117: - 기계설비유지 직무교육 : 300,000원 * 1명 | L117: = | M117: 300 | T117: 0
K118: - 대기,수질,폐기물처리 환경관리인 : 100,000원 * 1명 | L118: = | M118: 100 | T118: 0
K119: - 목욕업 위생교육 : 60,000원 * 1명 | L119: = | M119: 60 | T119: 0
K120: - 보일러 검사기기대상 관리자 : 100,000원 * 3명 | L120: = | M120: 300 | T120: 0
K121: - 소방안전 관리자 보수교육 : 55,000원 * 20명 | L121: = | M121: 1,100 | T121: 0
K122: - 수도시설 관리자 : 100,000원 * 1명 | L122: = | M122: 100 | T122: 0
K123: - 승강기 안전관리자 : 100,000원 * 2명 | L123: = | M123: 200
K124: - 전기안전관리자 : 150,000원 * 2명 | L124: = | M124: 300
K125: - 고압가스사용자자동차운전자(온라인) 교육 : 21,000원 * 10명 | L125: = | M125: 210 | T125: 0
K126: - 간호사 보수교육 : 200,000원*1회 | L126: = | M126: 200
K127: - 관리감독자 법정교육 : 208,000원*25명 | L127: = | M127: 5,200
K128: - 안전보건관리책임자 보수교육 : 70,000원*1회 | L128: = | M128: 70
K129: ○ (신규)HAZOP 위험성평가 기법 실무 교육 : 330,000원 * 3명 | L129: = | M129: 990
K130: ○ 안전보건경영시스템 내부심사원 교육 : 450,000원*2명 | L130: = | M130: 900
K131: ○ 안전보건관련 정기교육, 전문화교육 강사료 : 400,000*3회 | L131: = | M131: 1,200
K132: ○ 환경경영시스템 내부심사원 교육 : 400,000원*2명 | L132: = | M132: 800
K133: ○ 공공기관 에너지 담당자 교육 : 250,000원*8명 | L133: = | M133: 2,000 | P133: =M132+M131+M130+M126+#REF!+#REF!+#REF!+#REF! -> 
K134: ○ 재난안전분야 종사자 교육 : 600,000원*2명 | L134: = | M134: 1,200
K135: ○ 소비자중심경영 전문기관 위탁교육비 | M135: =SUM(M136:M139) -> 4,400
K136: - 전문강사 초빙 직원 친절 교육 : 600,000원 * 1명 * 2회 | L136: = | M136: 1,200 | P136: 600,000 | Q136: 1 | R136: 2 | T136: =P136*Q136*R136 -> 1,200,000
K137: - 고객접점직원 직무역량교육비 : 350,000원 * 3명 * 2회 | L137: = | M137: 2,100 | P137: 350,000 | Q137: 3 | R137: 2 | T137: 2,100,000
K138: - 소비자중심경영 정기교육비 : 250,000원 * 1회 * 2명 | L138: = | M138: 500 | N138: (기존) 고객관리과정 교육비 -> 소비자중심경영 정기교육 | P138: 250,000 | Q138: 1 | R138: 2 | T138: 500,000
K139: - 사내 CS 강사 양성교육 : 600,000원 * 1회 | L139: = | M139: 600 | P139: 600,000 | Q139: 1 | R139: 1 | T139: 600,000
K140: ○ 부패방지(청렴) 교육 외부 강사료 : 750,000원 * 1명 * 1회 | L140: = | M140: 750 | P140: 750,000 | Q140: 1 | R140: 1 | T140: 750,000
K141: ○ 부패방지 및 준법경영시스템 내부심사원 교육비 : 400,000원*2인*1회 | L141: = | M141: 800 | P141: 400,000 | Q141: 2 | R141: 1 | T141: 800,000
G142: 13 임차료 | H142: =M142 -> 99,445 | I142: 69,271 | J142: =H142-I142 -> 30,174 | K142: [임차료] | M142: =M143+M145+M148+M153+M156+M157+M151+M152+M144 -> 99,445 | P142: 금액(원) | Q142: 수량(대) | R142: 횟수 | S142: 개월 | T142: 산출액 합계
K143: ○ 차량 임차료(전기차, 사무실용 승용) : 1,000,000원 * 1대 * 12월 | L143: = | M143: =T143/1000 -> 12,000 | P143: 1,000,000 | Q143: 1 | S143: 12 | T143: =P143*Q143*S143 -> 12,000,000
K144: ○ 차량 임차료(수소차, 사무실용 승용) : 600,000원 * 1대 * 12월 | L144: = | M144: 7,200 | P144: 600,000 | Q144: 1 | S144: 12 | T144: =P144*Q144*S144 -> 7,200,000
K145: ○ 얼음정수기 임차료 | M145: 1,222 | N145: =19200+1222+575+1380+72000+816+1740 -> 96933 | T145: =SUM(T146:T147) -> 1,221,600
K146: - 본부사무실 얼음정수기 임차료 : 47,900원 * 1대 * 12월 | L146: = | M146: 575 | P146: 47,900 | Q146: 1 | S146: 12 | T146: =P146*Q146*S146 -> 574,800
K147: - 이사장실 얼음정수기 임차료 : 53,900원 * 1대 * 12월 | L147: = | M147: 647 | P147: 53,900 | Q147: 1 | S147: 12 | T147: =P147*Q147*S147 -> 646,800
K148: ○ 커피머신 임차료 | M148: 575 | T148: =SUM(T149:T150) -> 574,800
K149: - 본부사무실 커피머신 임차료 : 24,000원 1대 * 12월 | L149: = | M149: 288 | P149: 24,000 | Q149: 1 | S149: 12 | T149: =P149*Q149*S149 -> 288,000
K150: - 이사장실 커피머신 임차료 : 23,900원 * 1대 * 12월 | L150: = | M150: 287 | P150: 23,900 | Q150: 1 | S150: 12 | T150: =P150*Q150*S150 -> 286,800
K151: =N151&TEXT(P151," #,###원")&" * "&TEXT(S151,"#분기") -> ○ 컬러복합기 렌탈료 : 613,000원 * 4분기 | L151: = | M151: =T151/1000 -> 2,452 | N151: ○ 컬러복합기 렌탈료 : | P151: 613,000 | Q151: 1 | S151: 4 | T151: =P151*S151*Q151 -> 2,452,000
K152: =N152&TEXT(P152," #,###원")&" * "&TEXT(S152,"#분기") -> ○ 흑백복합기 렌탈료 : 450,000원 * 4분기 | L152: = | M152: =T152/1000 -> 1,800 | N152: ○ 흑백복합기 렌탈료 : | P152: 450,000 | S152: 4 | T152: =P152*S152 -> 1,800,000
K153: ○ (신규)공기청정기 임차료 | M153: =SUM(M154:M155) -> 1,380
K154: - 본부사무실 공기청정기 임차료 : 40,000원 * 1대 * 12월 | L154: = | M154: =T154/1000 -> 480 | P154: 40,000 | Q154: 1 | S154: 12 | T154: =P154*S154 -> 480,000
K155: - 이사장실, 본부장실 공기청정기 임차료 : 25,000원 * 3대 * 12월 | L155: = | M155: =T155/1000 -> 900 | P155: 25,000 | Q155: 3 | S155: 12 | T155: =P155*Q155*S155 -> 900,000
K156: ○ 비데 임차료 : 17,000원 * 4대 * 12월 | L156: = | M156: 816 | P156: 17,000 | Q156: 4 | S156: 12 | T156: =P156*Q156*S156 -> 816,000
K157: ○ 사무실 임차료 : 6,000,000원 * 12월 | L157: = | M157: 72,000 | P157: 600,000 | Q157: 1 | S157: 12 | T157: =P157*Q157*S157 -> 7,200,000
G158: 14 회의비 | H158: =M158 -> 4,650 | I158: 5,736 | J158: =H158-I158 -> △1,086 | K158: [회의비] | M158: =M159+M160+M161+M162+M163+M164+M165+M166+M167+M171+M170 -> 4,650 | P158: 금액(원) | Q158: 인원 | R158: 횟수 | S158: 개월 | T158: 산출액 합계
K159: ○ 임원추천위원회 간담회 및 운영비 : 15,000원 * 10명 * 3회 | L159: = | M159: =T159/1000 -> 450 | P159: 15,000 | Q159: 10 | R159: 3 | S159: 1 | T159: =P159*Q159*R159*S159 -> 450,000
K160: ○ 이사회 간담회 및 운영비 : 15,000원 * 15명 * 4회 | L160: = | M160: 900 | P160: 15,000 | Q160: 15 | R160: 4 | S160: 1 | T160: 900,000
K161: ○ 인사 위원회 간담회 및 운영비 : 15,000원 * 10명 * 3회 | L161: = | M161: 450 | P161: 15,000 | Q161: 10 | R161: 3 | S161: 1 | T161: 450,000
K162: ○ 노사협의회 운영비 : 15,000원 * 10명 * 2회 | L162: = | M162: 300 | P162: 15,000 | Q162: 10 | R162: 2 | S162: 1 | T162: 300,000
K163: ○ 개인정보 자문회 등 기타 위원회별 간담회 및 운영비 : 15,000원 * 10명 * 2회 | L163: = | M163: 300 | P163: 15,000 | Q163: 10 | R163: 2 | S163: 1 | T163: 300,000
K164: ○ ESG경영위원회 간담회 및 운영비 : 15,000원 * 1회 * 9명 | L164: = | M164: 135 | P164: 15,000 | Q164: 1 | R164: 9 | T164: =P164*Q164*R164 -> 135,000
K165: ○ 전남지역문제해결플랫폼 간담회 : 15,000원 * 5명 * 1회 | L165: = | M165: 75 | P165: 15,000 | Q165: 5 | R165: 1 | T165: =P165*Q165*R165 -> 75,000
K166: ○ 산업안전보건위원회 간담회 : 1,5000원*16명*2회 | L166: = | M166: 960 | P166: 15,000 | Q166: 16 | R166: 2 | T166: =P166*Q166*R166 -> 480,000
K167: ○ 소비자중심경영 참여예산 | M167: =SUM(M168:M169) -> 420
K168: - 주민참여예산위원회 간담회 : 15,000원 * 16명 * 1회 | L168: = | M168: =T168/1000 -> 240 | P168: 15,000 | Q168: 16 | R168: 1 | T168: =P168*Q168*R168 -> 240,000
K169: - 고객모니터링단 간담회 : 15,000원 * 12명 * 1회 | L169: = | M169: =T169/1000 -> 180 | P169: 15,000 | Q169: 12 | R169: 1 | T169: 180,000
K170: ○ (신규)광주, 전남 지방공기업 업무협의회 간담회 : 15,000원 * 40명 * 1회 | L170: = | M170: =T170/1000 -> 600 | P170: 15,000 | Q170: 40 | R170: 1 | T170: 600,000
K171: ○ 적극행정 지원위원회 간담회 : 15,000원 * 4명 * 1회 | L171: = | M171: 60 | P171: 15,000 | Q171: 4 | R171: 1 | T171: 60,000
G172: 15 복리후생비 | H172: =M172 -> 854,370 | I172: 548,685 | J172: =H172-I172 -> 305,685 | K172: [복리후생비] | M172: =M173+M176+M177+M179+M182+M184+M192+M183 -> 854,370
K173: ○ 맞춤형 복지제도(공단 전 직원) | M173: =T173/1000 -> 600,000 | T173: =SUM(T174:T175) -> 600,000,000
K174: - 복지포인트(일반직,기능직,공무직,환경사원) : 1,300,000원 * 450명 | L174: = | M174: 585,000 | P174: 1,300,000 | Q174: 450 | T174: =P174*Q174 -> 585,000,000
K175: - 기간제근로자 상품권 : 300,000원 * 50명 | L175: = | M175: 15,000 | P175: 300,000 | Q175: 50 | T175: =P175*Q175 -> 15,000,000
K176: ○ (신규) 건강문화체험활동비 지원(일반직, 기능직, 공무직, 환경사원) : 300,000원 * 450명 | L176: = | M176: 135,000
K177: ○ 건강검진 지원비(일반직, 기능직, 공무직, 환경사원) | M177: 69,000 | T177: =SUM(T178) -> 69,000,000
K178: - 짝수 년생 직원 : 300,000원 * 230명 | L178: = | M178: 69,000 | P178: 300,000 | Q178: 230 | T178: =P178*Q178 -> 69,000,000
K179: ○ 신규직원 채용 신체검사비 | M179: =SUM(M180:M181) -> 2,100 | T179: =SUM(T180:T181) -> 2,100,000
K180: - 일반 채용 신체검사 : 40,000원 * 30명 | L180: = | M180: 1,200 | P180: 40,000 | Q180: 30 | T180: =P180*Q180 -> 1,200,000
K181: - 환경미화원 채용 신체검사 : 45,000원 * 20명 | L181: = | M181: 900 | P181: 45,000 | Q181: 20 | T181: =P181*Q181 -> 900,000
K182: ○ 야간근무자 급량비 : 8,000원 * 17명 * 10일 * 12월 | L182: = | M182: 16,320 | P182: 8,000 | Q182: 17 | R182: 10 | S182: 12 | T182: =P182*Q182*R182*S182 -> 16,320,000
K183: ○ 구급약품 및 소모품 구입비 : 500,000*1식 | L183: = | M183: 500 | P183: 500,000 | Q183: 1 | R183: 1 | S183: 1 | T183: =P183*Q183*R183*S183 -> 500,000
K184: ○ (법정)특수건강진단비용 | M184: =SUM(M185:M191) -> 12,145
K185: - 주차장 야간작업자 :45,000 *33명 | L185: = | M185: 1,485 | P185: 45,000 | Q185: 33 | R185: 1 | S185: 1 | T185: =P185*Q185*R185*S185 -> 1,485,000
K186: - 휴양림 시설관리자 : 140,000 *5명 | L186: = | M186: 700 | P186: 140,000 | Q186: 5 | R186: 1 | S186: 1 | T186: 700,000
K187: - 도시미화팀 야간작업 : 45,000 *2명 | L187: = | M187: 90 | P187: 45,000 | Q187: 2 | R187: 1 | S187: 1 | T187: 90,000
K188: - 도시미화팀 정비고 : 90,000 *3명 | L188: = | M188: 270 | P188: 90,000 | Q188: 3 | R188: 1 | S188: 1 | T188: 270,000
K189: - 체육시설팀 기술직 : 150,000 *10명 | L189: = | M189: 1,500 | P189: 150,000 | Q189: 10 | R189: 1 | S189: 1 | T189: 1,500,000
K190: - 체육시설팀 야간근무자 : 45000 *2명 | L190: = | M190: 90 | P190: 45,000 | Q190: 2 | R190: 1 | S190: 1 | T190: 90,000
K191: - 환경자원사업소 근무자 : 178,000 *45명 | L191: = | M191: 8,010 | P191: 178,000 | Q191: 45 | R191: 1 | S191: 1 | T191: 8,010,000
K192: ○ 현장 근로자 예방접종 | M192: =M194+M193+M195 -> 19,305 | T192: =SUM(T193:T195) -> 19,305,000
K193: - (신규)환경미화원 폐렴구균 예방접종 : 100,000 *55(환경사원 만 55세 이상 55명) | L193: = | M193: 5,500 | P193: 100,000 | Q193: 55 | R193: 1 | S193: 1 | T193: =P193*Q193*R193*S193 -> 5,500,000
K194: - (법정)독감 예방접종 35,000* 환경사원 273명 | L194: = | M194: =35*273 -> 9,555 | P194: 35,000 | Q194: 273 | R194: 1 | S194: 1 | T194: 9,555,000
K195: - 파상풍 예방접종 :25,000*170명(환경사원 2013년 입사자 147명 10년주기 추가접종, 신입직원 23명) | L195: = | M195: 4,250 | P195: 25,000 | Q195: 170 | R195: 1 | S195: 1 | T195: 4,250,000
G196: 21 공공요금및제세 | H196: =M196 -> 61,750 | I196: 38,830 | J196: =H196-I196 -> 22,920 | K196: [공공요금및제세] | M196: =SUM(M197:M205) -> 61,750 | T196: =SUM(T197:T205) -> 61,750,000
K197: ○ 사무실 전기요금 및 상하수도료 : 1,000,000원 * 12월 | L197: = | M197: =T197/1000 -> 12,000 | P197: 1,000,000 | R197: 1 | S197: 12 | T197: =P197*R197*S197 -> 12,000,000
K198: ○ 택배 및 우편발송 요금 : 15,000원 * 10건 *12월 | L198: = | M198: 1,800 | P198: 15,000 | R198: 10 | S198: 12 | T198: =P198*R198*S198 -> 1,800,000
K199: ○ 일반전화 및 인터넷회선요금 등 : 1,045,000원 * 12월 | L199: = | M199: 12,540 | P199: 1,045,000 | R199: 1 | S199: 12 | T199: =P199*R199*S199 -> 12,540,000
K200: ○ 계약 수입인지세 부담금 : 20,000원 * 90건 | L200: = | M200: 1,800 | P200: 20,000 | R200: 90 | T200: =P200*R200 -> 1,800,000
... 1122 more rows

Sheet 교통휴양시설팀
A1: 다. 지출예산(세부사업) - 교통휴양시설팀 | M1: 단위 : 천원
A2: 구 분 | B2: 사업 | E2: 편성목 | H2: 당년도예산액 (A) | I2: 전년도예산액 (B) | J2: 증 감 (A-B) | K2: 산 출 기 초
B3: 정책 | C3: 단위 | D3: 세부 | E3: 그룹 | F3: 목 | G3: 세목
A4: 총계(사업예산 + 자본예산) | H4: =H5+H212 -> 2,113,893 | I4: =I5+I212 -> 1,724,955 | J4: =H4-I4 -> 388,938
A5: 사업예산 | H5: =H6 -> 1,986,393 | I5: =I6 -> 1,699,085 | J5: 287,308
B6: 교통∙휴양 대행사업 | H6: =H7+H113+H149 -> 1,986,393 | I6: =I7+I113+I149 -> 1,699,085 | J6: 287,308
C7: 공영주차장 수탁 대행사업 | H7: =H8+H106 -> 1,456,881 | I7: =I8+I106 -> 1,194,643 | J7: 262,238
D8: 공영주차장 관리운영 | H8: =H9+H26+H102 -> 1,271,881 | I8: =I9+I26+I102 -> 1,005,543 | J8: 266,338
E9: 100 인건비 | H9: =H10 -> 491,919 | I9: =I10 -> 348,548 | J9: 143,371 | M9: =M149+M496+M503+M506+M561 -> 0
F10: 101 인건비 | H10: =H11 -> 491,919 | I10: =I11 -> 348,548 | J10: =H10-I10 -> 143,371
G11: 04 기간제근로자보수 | H11: =M11 -> 491,919 | I11: 348,548 | J11: =H11-I11 -> 143,371 | K11: 04 기간제근로자 보수 | M11: =M12+M22+M24+M17 -> 491,919
K12: ○ 기간제근로자 | M12: =M13+M14+M15+M16 -> 175,168
K13: - 기본급: 89,600원*5명*5일*52주 | L13: = | M13: 116,480 | N13: =85960*6*5*52 -> 134,097,600
K14: - 주휴수당: 89,600원*5명*52주 | L14: = | M14: 23,296 | N14: =85960*6*52 -> 26,819,520
K15: - 휴일근무수당: 89,600원*5명*46일*150% | L15: = | M15: 30,912 | N15: =85960*6*50*1.5 -> 38,682,000
K16: - 연차수당: 89,600원*5명*10일 | L16: = | M16: 4,480 | N16: =85960*6*10 -> 5,157,600
K17: ○ 기간제근로자(노상) | M17: =M18+M19+M20+M21 -> 163,430
K18: - 기본급: 67,200원*6명*5일*52주 | L18: = | M18: 104,832
K19: - 주휴수당: 67,200원*5명*52주 | L19: = | M19: 17,472
K20: - 휴일근무수당: 89,600원*6명*46일*150% | L20: = | M20: 37,094
K21: - 연차수당: 67,200원*6명*10일 | L21: = | M21: 4,032
K22: ○ 공영주차장 어르신 사회활동 지원사업 | M22: =M23 -> 104,400
K23: - 87,000원*100명*12월 | L23: = | M23: 104,400 | N23: =77000*90*11 -> 76,230,000
K24: ○ 초단시간근로자 | M24: =M25 -> 48,921
K25: - 초단시간근로자(기본급): 78,400원*6명*2일*52주 | L25: = | M25: 48,921 | N25: =85960*6*2*52 -> 53,639,040
E26: 200 물건비 | H26: =H27+H92+H96+H98 -> 772,962 | I26: =I27+I92+I96+I98 -> 649,995 | J26: =H26-I26 -> 122,967 | M26: =M166+M513+M520+M523+M578 -> 1,800
F27: 201 일반운영비 | H27: =H28+H39+H57+H77+H83+H88 -> 651,602 | I27: 628,215 | J27: =H27-I27 -> 23,387 | M27: =M28+M39+M57+M77+M83+M88 -> 651,602
G28: 01 사무관리비 | H28: =M28 -> 107,062 | I28: 99,592 | J28: =H28-I28 -> 7,470 | M28: =M29+M30+M31+M32+M33+M34+M35+M36+M37+M38 -> 107,062
K29: ○ 공영주차장 홍보 현수막 제작: 80,000원*3회*35개소 | L29: = | M29: 8,400 | N29: =80000*3*35 -> 8,400,000
K30: ○ A4용지 구입: 27,900원*5박스*4개소*5회 | L30: = | M30: 2,790 | N30: =23000*5*4*5 -> 2,300,000
K31: ○ 토너 구입: 450,000원*7회 | L31: = | M31: 3,150 | N31: =450000*7 -> 3,150,000
K32: ○ 사무용품 구입: 300,000원*4개소*12월 | L32: = | M32: 14,400 | N32: =300000*4*12 -> 14,400,000
K33: ○ 영수증롤 구입: 5,000원*50롤*2회*35개소 | L33: = | M33: 17,500 | N33: =5000*50*2*35 -> 17,500,000
K34: ○ 화장실 위생용품 구입: 200,000원*12개소*12월 | L34: = | M34: 28,800 | N34: =200000*11*12 -> 26,400,000
K35: ○ 쓰레기수거 종량제봉투 구입: 1,800원*35개소*20일*12월 | L35: = | M35: 15,120 | N35: =1200*35*20*12 -> 10,080,000
K36: ○ 청소용품 구입비: 200,000원*35개소*2회 | L36: = | M36: 14,000 | N36: =200000*35*2 -> 14,000,000
K37: ○ 생수 구입비: 6,600원*35개소*12월 | L37: = | M37: 2,772 | N37: =6600*35*12 -> 2,772,000
K38: ○ 범용S/W 구입비 130,000원 * 1식(알약, 한글, 오피스) | L38: = | M38: 130 | N38: =90000+250000+250000 -> 590,000
G39: 11 지급수수료 | H39: =M39 -> 170,510 | I39: 162,590 | J39: =H39-I39 -> 7,920 | M39: =M40+M42+M48+M49+M52+M54+M55+M56 -> 170,510
K40: ○ 소방안전관리 업무대행용역 | M40: =M41 -> 43,560
K41: - 오동도, 동백, 서교동, 학동선소상가(1,3), 여문, 여문공원, 진남상가, 향일암, 수산시장(3), 화장동 : 330,000원*11개소*12월 | L41: = | M41: 43,560 | N41: =300000*9*12 -> 32,400,000
K42: ○ 전기설비 유지관리용역 | M42: =M43+M45+M47+M46+M44 -> 13,920
K43: - 오동도 주차타워: 480,000원*12월 | L43: = | M43: 5,760 | N43: =450000*12 -> 5,400,000
K44: - 화장동 공영주차장: 170,000원*12월 | L44: = | M44: 2,040
K45: - 여문공원 공영주차장: 170,000원*12월 | L45: = | M45: 2,040 | N45: =150000*12 -> 1,800,000
K46: - 학동선소상가(1) 공영주차장: 170,000원*12월 | L46: = | M46: 2,040 | N46: =150000*12 -> 1,800,000
K47: - 학동선소상가(3) 공영주차장: 170,000원*12월 | L47: = | M47: 2,040 | N47: =150000*12 -> 1,800,000
K48: ○ 여문공원 전기차 충전소 유지관리용역: 350,000원*12월 | L48: = | M48: 4,200 | N48: =350000*12 -> 4,200,000
K49: ○ 승강기 유지관리용역 | M49: =M50+M51 -> 39,840
K50: - 오동도 주차타워 : 850,000원*2대*12월 | L50: = | M50: 20,400 | N50: =800000*2*12 -> 19,200,000
K51: - 진남상가, 서교동, 학동선소상가(1,3), 수산시장(3), 화장동 : 270,000원*6대*12월 | L51: = | M51: 19,440 | N51: =250000*4*12 -> 12,000,000
K52: ○ 신규수탁 주차장 용역 (소방,전기등) | M52: =M53 -> 5,000
K53: - 1개(신기동) * 1식 : 5,000,000원 * 1식 | L53: = | M53: 5,000
K54: ○ 주차요금 신용카드 수수료: 4,000,000원*12월 | L54: = | M54: 48,000 | N54: =4000000*12 -> 48,000,000
K55: ○ 공영주차장 환경정비(풀베기 및 전정작업) 용역 | L55: = | M55: 15,000
K56: ○ 지문인식기 사용료: 82,500원*3개소*4회 | L56: = | M56: 990
G57: 13 임차료 | H57: =M57 -> 45,593 | I57: 28,971 | J57: =H57-I57 -> 16,622 | M57: =M58+M62+M68+M74+M75 -> 45,593
K58: ○ 주차관리업무 차량임차료 | L58: = | M58: =M59+M60+M61 -> 35,450
K59: ○ 주차관리업무 차량임차(전기차) : 1,050,000원*2대*12월 | L59: = | M59: 25,200
K60: ○ 주차관리업무 차량임차(하이브리드) : 580,000원*1대*5월(서교동) | L60: = | M60: 2,900 | N60: =550000*3*12 -> 19,800,000
K61: ○ 주차관리업무 차량임차(전기차) : 1,050,000원*1대*7월(서교동) | L61: = | M61: 7,350
K62: ○ 복합기 및 냉난방기 임대료 | M62: =M63+M64+M65+M66+M67 -> 3,540
K63: - 복합기(학동1, 서교동): 30,000원*2대*12월 | L63: = | M63: 720 | N63: =30000*2*12 -> 720,000
K64: - 냉난방기(학동1 사무실): 70,000원*1대*12월 | L64: = | M64: 840 | N64: =70000*1*12 -> 840,000
K65: - 냉난방기(학동1 서버실): 65,000원*1대*12월 | L65: = | M65: 780 | N65: =65000*1*12 -> 780,000
K66: - 냉난방기(학동3): 50,000원*1대*12월 | L66: = | M66: 600 | N66: =50000*1*12 -> 600,000
K67: - 냉난방기(수산시장1, 여문공원): 25,000원*2대*12월 | L67: = | M67: 600 | N67: =25000*2*12 -> 600,000
K68: ○ 정수기 및 비데 관리비 | M68: =M69+M70+M71+M72+M73 -> 1,335
K69: - 정수기(학동1): 14,300원*1대*12월 | L69: = | M69: 172 | N69: =14300*1*12 -> 171,600
K70: - 정수기(여문): 13,200원*1대*12월 | L70: = | M70: 159 | N70: =13200*1*12 -> 158,400
K71: - 정수기(선원동, 흥국체육관, 이순신광장, 수산시장1, 서교동) : 11,000원*5대*12월 | L71: = | M71: 660 | N71: =11000*5*12 -> 660,000
K72: - 정수기(동백): 22,000원*1대*12월 | L72: = | M72: 264 | N72: =22000*1*12 -> 264,000
K73: - 비데(서교동): 6,600원*1대*12월 | L73: = | M73: 80 | N73: =6600*1*12 -> 79,200
K74: ○ 승강기 공기살균기 대여료: 27,000원*7개*12월 | L74: = | M74: 2,268 | N74: =27000*4*12 -> 1,296,000
K75: ○ 신규수탁 주차장 임차료 (냉난방기,정수기,비데등) | M75: =M76 -> 3,000
K76: - 1개(신기동) * 1식 : 1,000,000원 * 1식 | L76: = | M76: 3,000
G77: 15 복리후생비 | H77: =M77 -> 28,350 | I77: 27,450 | J77: =H77-I77 -> 900 | M77: =M78+M79+M82 -> 28,350
K78: ○ 특수건강검진지원비(본부 일괄 편성) | M78: 0
K79: ○ 피복구입비 | M79: =M80+M81 -> 21,150
K80: - 춘.추복: 75,000원*47명*2회 | L80: = | M80: 7,050 | N80: =75000*45*2 -> 6,750,000
K81: - 방한복: 300,000원*47명*1회 | L81: = | M81: 14,100 | N81: =300000*45 -> 13,500,000
K82: ○ 야간급량비: 8,000원*5명*15일*12월 | L82: = | M82: 7,200 | N82: =8000*5*15*12 -> 7,200,000
G83: 21 공공요금및제세 | H83: =M83 -> 294,792 | I83: 298,272 | J83: =H83-I83 -> △3,480 | M83: =M84+M85+M87+M86 -> 294,792
K84: ○ 전기요금(보안등 포함): 490,000원*33개소*12월 | L84: = | M84: 194,040 | N84: =380000*32*12 -> 145,920,000
K85: ○ 통신요금: 300,000원*16개소*12월 | L85: = | M85: 57,600 | N85: =300000*15*12 -> 54,000,000
K86: ○ 무전기 통신요금: 22,000원*18개*12월 | L86: = | M86: 4,752 | N86: =22000*18*12 -> 4,752,000
K87: ○ 상하수도요금: 200,000원*16개소*12월 | L87: = | M87: 38,400 | N87: =200000*14*12 -> 33,600,000
G88: 22 차량·선박비 | H88: =M88 -> 5,295 | I88: 11,340 | J88: =H88-I88 -> △6,045 | M88: =M89+M90+M91 -> 5,295
K89: ○ 주차관리업무 차량(전기차) 충전요금 : 120,000원*2대*12월 | L89: = | M89: 2,880
K90: ○ 주차관리업무 차량(전기차) 충전요금 : 120,000원*1대*7월 | L90: = | M90: 840
K91: ○ 주차관리업무 차량 유류비: 2,100원*150L*1대*5월 | L91: = | M91: 1,575 | N91: =2100*150*3*12 -> 11,340,000
F92: 202 여비 | H92: =H93 -> 15,060 | I92: 16,080 | J92: =H92-I92 -> △1,020 | M92: =M93 -> 15,060
G93: 01 국내여비 | H93: =M93 -> 15,060 | I93: 16,080 | J93: =H93-I93 -> △1,020 | M93: =M94+M95 -> 15,060
K94: ○ 관내 출장여비: 20,000원*5명*10회*12월 | L94: = | M94: 12,000 | N94: =20000*5*10*12 -> 12,000,000
K95: ○ 관외 출장여비: 63,750원*4명*3일*4회 | L95: = | M95: 3,060 | N95: =85000*4*3*4 -> 4,080,000
F96: 207 연구개발비 | H96: =H97 -> 100,000 | I96: 0 | J96: =H96-I96 -> 100,000 | M96: =M97 -> 100,000
G97: 02 전산개발비 | H97: =M97 -> 100,000 | I97: 0 | J97: =H97-I97 -> 100,000 | K97: 다자녀 및 임산부 온라인 신청 홈페이지 구축비 | L97: = | M97: 100,000
F98: 217 관서업무비 | H98: =SUM(H99) -> 6,300 | I98: 5,700 | J98: =H98-I98 -> 600 | M98: =SUM(M99) -> 6,300
G99: 02 부서업무비 | H99: =M99 -> 6,300 | I99: 5,700 | J99: =H99-I99 -> 600 | K99: ○ 부서업무비(부서운영 업무 추진을 위한 제경비, 55인 기준) | M99: =M100+M101 -> 6,300
K100: - 부서운영업무추진비(30인이하): 400,000원*12월 | L100: = | M100: 4,800 | N100: =400000*12 -> 4,800,000
K101: - 부서운영업무추진비(30인이상): 5,000원*25명*12월 | L101: = | M101: 1,500 | N101: =5000*15*12 -> 900,000
E102: 300 경상이전 | H102: =H103 -> 7,000 | I102: =I103 -> 7,000 | J102: =H102-I102 -> 0 | M102: =M250+M589+M596+M599+M654 -> 0
F103: 305 배상금등 | H103: =H104 -> 7,000 | I103: 7,000 | J103: =H103-I103 -> 0 | M103: =SUM(M104) -> 7,000
G104: 01 배상금등 | H104: =M104 -> 7,000 | I104: 7,000 | J104: =H104-I104 -> 0 | M104: =SUM(M105) -> 7,000
K105: ○ 공영주차장 차량사고보상: 200,000원*35개소*1건 | L105: = | M105: 7,000 | N105: =200000*35*1 -> 7,000,000
D106: 공영주차장 시설 유지보수 | H106: =H107 -> 185,000 | I106: =I107 -> 189,100 | J106: =H106-I106 -> △4,100
E107: 200 뮬건비 | H107: =H108 -> 185,000 | I107: =I108 -> 189,100 | J107: =H107-I107 -> △4,100 | M107: =M377+M530+M536+M539+M594 -> 0
F108: 214 수선유지교체비 | H108: =H109 -> 185,000 | I108: 189,100 | J108: =H108-I108 -> △4,100 | M108: =M109 -> 185,000
G109: 05 수선유지비 | H109: =M109 -> 185,000 | I109: 189,100 | J109: =H109-I109 -> △4,100 | M109: =+M110+M112+M111 -> 185,000
K110: ○ 노후 시설물 유지보수비(주차관제시스템, CCTV 등) : 130,000,000원*1식 | L110: = | M110: 130,000
H111: ` | K111: ○ 주차통제 예비물품 구입비 등 (라바콘, 오뚜기 입간판, 기타 물품 등) 5,000,000원 * 1식 | L111: = | M111: 5,000
K112: ○ 관제시스템 내부 장비 교체 및 유지관리 등(연간 단가계약) : 50,000,000원*1식 | L112: = | M112: 50,000
C113: 돌산 공원주차장 수탁 대행사업 | H113: =H114+H143 -> 230,088 | I113: =I114+I143 -> 230,888 | J113: =H113-I113 -> △800
D114: 돌산 공원주차장 관리운영 | H114: =H115+H123+H139 -> 220,888 | I114: =I115+I123+I139 -> 220,888 | J114: =H114-I114 -> 0
E115: 100 인건비 | H115: =H116 -> 204,758 | I115: =I116 -> 204,758 | J115: =H115-I115 -> 0 | M115: =M254+M602+M609+M612+M667 -> 0
F116: 101 인건비 | H116: =H117 -> 204,758 | I116: =I117 -> 204,758 | J116: 0
G117: 04 기간제근로자보수 | H117: 204,758 | I117: 204,758 | J117: =H117-I117 -> 0 | K117: 04 기간제근로자 보수 | M117: =M118 -> 204,758
K118: ○ 기간제근로자(5명) | M118: =M119+M120+M121+M122 -> 204,758
K119: - 기본급: 85,960원*6명*5일*52주 | L119: = | M119: 134,098 | N119: =85960*6*5*52 -> 134,097,600
K120: - 주휴수당: 85,960원*6명*52주 | L120: = | M120: 26,820 | N120: =85960*6*52 -> 26,819,520
K121: - 휴일근무수당: 85,960원*6명*50일*150% | L121: = | M121: 38,682 | N121: =85960*6*50*1.5 -> 38,682,000
K122: - 연차수당: 85,960원*6명*10일 | L122: = | M122: 5,158 | N122: =85960*6*10 -> 5,157,600
E123: 200 물건비 | H123: =H124+H136 -> 14,130 | I123: =I124+I136 -> 14,130 | J123: =H123-I123 -> 0 | M123: =M262+M610+M617+M620+M675 -> 0
F124: 201 일반운영비 | H124: =H125+H127+H129+H133 -> 12,030 | I124: =I125+I127+I129+I133 -> 12,030 | J124: =H124-I124 -> 0 | M124: =SUM(M125,M127,M129,M133) -> 12,030
G125: 01 사무관리비 | H125: 2,400 | I125: 2,400 | J125: =H125-I125 -> 0 | M125: =M126 -> 2,400
K126: ○ 사무용품 등 : 200,000원*12월 | L126: = | M126: 2,400 | N126: =200000*12 -> 2,400,000
G127: 11 지급수수료 | H127: =M127 -> 330 | I127: 330 | J127: =H127-I127 -> 0 | M127: =M128 -> 330
K128: ○ 지문인식기 사용료 : 82,500원*1개소*4회 | L128: = | M128: 330
G129: 15 복리후생비 | H129: 2,700 | I129: 2,700 | J129: =H129-I129 -> 0 | M129: =M130 -> 2,700
K130: ○ 피복구입비 | M130: =M131+M132 -> 2,700
K131: - 춘.추복: 75,000원*6명*2회 | L131: = | M131: 900 | N131: =75000*6*2 -> 900,000
K132: - 방한복: 300,000원*6명*1회 | L132: = | M132: 1,800 | N132: =300000*6*1 -> 1,800,000
G133: 21 공공요금및제세 | H133: =M133 -> 6,600 | I133: 6,600 | J133: =H133-I133 -> 0 | M133: =M134+M135 -> 6,600
K134: ○ 전기요금 : 450,000원*12월 | L134: = | M134: 5,400 | N134: =450000*12 -> 5,400,000
K135: ○ 통신료 : 100,000원*12월 | L135: = | M135: 1,200 | N135: =100000*12 -> 1,200,000
F136: 217 관서업무비 | H136: =SUM(H137) -> 2,100 | I136: 2,100 | J136: =H136-I136 -> 0 | M136: =SUM(M137) -> 2,100
G137: 02 부서업무비 | H137: =M137 -> 2,100 | I137: 2,100 | J137: =H137-I137 -> 0 | K137: ○ 부서업무비(부서운영 업무 추진을 위한 제경비, 6인 기준) | M137: =M138 -> 2,100
K138: - 부서운영 업무추진비 : 175,000원*12월 | L138: = | M138: 2,100 | N138: =175000*12 -> 2,100,000
E139: 300 경상이전 | H139: =H140 -> 2,000 | I139: =I140 -> 2,000 | J139: =H139-I139 -> 0 | M139: =M291+M630+M637+M640+M695 -> 0
F140: 305 배상금등 | H140: =H141 -> 2,000 | I140: 2,000 | J140: =H140-I140 -> 0 | M140: =SUM(M141) -> 2,000
G141: 01 배상금등 | H141: =M141 -> 2,000 | I141: 2,000 | J141: =H141-I141 -> 0 | M141: =SUM(M142) -> 2,000
K142: ○ 공영주차장 차량사고보상 : 2,000,000원*1개소 | L142: = | M142: 2,000
D143: 돌산 공원주차장 시설 유지보수 | H143: =H144 -> 9,200 | I143: 10,000 | J143: =H143-I143 -> △800
E144: 200 물건비 | H144: 9,200 | I144: 10,000 | J144: △800 | M144: =M287+M635+M642+M645+M700 -> 0
F145: 214 수선유지교체비 | H145: 9,200 | I145: 10,000 | J145: =H145-I145 -> △800 | M145: =M146 -> 9,200
G146: 05 수선유지비 | H146: =M146 -> 9,200 | I146: 10,000 | J146: =H146-I146 -> △800 | M146: =M147+M148 -> 9,200
K147: ○ 소규모시설 유지보수비 : 4,200,000원*1식 | L147: = | M147: 4,200
K148: ○ 주차장 관제시스템 유지보수비 : 5,000,000원*1식 | L148: = | M148: 5,000
C149: 휴양림 수탁 대행사업 | H149: =H150+H206 -> 299,424 | I149: =I150+I206 -> 273,554 | J149: =H149-I149 -> 25,870
D150: 봉황산자연휴양림 운영 | H150: =H151+H161 -> 268,752 | I150: =I151+I161 -> 252,882 | J150: 15,870
E151: 100 인건비 | H151: =H152 -> 64,392 | I151: =I152 -> 61,465 | J151: 2,927 | M151: =M152+M499+M506+M509+M564 -> 64,392
F152: 101 인건비 | H152: =H153 -> 64,392 | I152: =I153 -> 61,465 | J152: =H152-I152 -> 2,927 | M152: =H152 -> 64,392
G153: 04 기간제근로자 보수 | H153: =M153 -> 64,392 | I153: 61,465 | J153: =H153-I153 -> 2,927 | K153: 04 기간제근로자 보수 | M153: =M154+M159 -> 64,392 | P153: 9,160 | Q153: 8 | R153: =P153*Q153 -> 73,280
K154: ○ 청소원 | M154: =SUM(M155:M158) -> 57,524
K155: - 인부임 : 85,860원*2명*5일*52주 | L155: = | M155: 44,647 | O155: 85,860 | P155: 5 | Q155: 2 | R155: 52 | S155: =O155*P155*Q155*R155 -> 44,647,200
K156: - 주휴수당 : 85,860원*2명*52일 | L156: = | M156: 8,929 | O156: 85,860 | P156: 2 | Q156: 52 | S156: =O156*P156*Q156 -> 8,929,440
K157: - 휴일근무수당 : 85,860원*2명*12일*150% | L157: = | M157: 3,090 | O157: 85,860 | P157: 150% | Q157: 2 | R157: 12 | S157: =O157*P157*Q157*R157 -> 3,090,960 | U157: 76960
K158: - 연차휴가수당 : 85,860원*2명*5일 | L158: = | M158: 858 | O158: 85,860 | P158: 2 | Q158: 5 | S158: =O158*P158*Q158 -> 858,600
K159: ○ 성수기 대비 근로자 인부임 | M159: =SUM(M160:M160) -> 6,868
K160: - 청소원 인부임(공휴일대체) : 85,860원*2명*5일*8주 | L160: = | M160: 6,868 | O160: 85,860 | P160: 2 | Q160: 5 | R160: 8 | S160: =O160*P160*Q160*R160 -> 6,868,800
E161: 200 물건비 | H161: =H162+H199+H203 -> 204,360 | I161: =I162+I199+I203 -> 191,417 | J161: =H161-I161 -> 12,943 | M161: =M162+M509+M516+M519+M574 -> 0
F162: 201 일반운영비 | H162: =H163+H183+H188+H191+H196+H176+H174 -> 198,790 | I162: =I163+I183+I188+I191+I196+I176+I174 -> 186,407 | J162: =H162-I162 -> 12,383 | P162: 9640 | Q162: 8720 | R162: =P162-Q162 -> 920 | S162: 8 | T162: =R162*S162 -> 7360
G163: 01 사무관리비 | H163: =M163 -> 38,145 | I163: 25,372 | J163: =H163-I163 -> 12,773 | K163: 01 사무관리비 | M163: =SUM(M164:M173) -> 38,145 | P163: 5% | Q163: 9160
K164: ○ 홍보물 제작 : 2,000원*3,000매 | L164: = | M164: 6,000 | P164: =P162+P165 -> 10122 | Q164: 5% | W164: 2000 | X164: 3000 | AA164: =W164*X164 -> 6,000,000
K165: ○ 음식물 스티커 구입(120L) : 4,000원*100매 | L165: = | M165: 400 | P165: =P162*P163 -> 482 | Q165: =Q162*Q164 -> 444.72 | W165: 4000 | X165: 100 | AA165: =W165*X165 -> 400,000
K166: ○ 종량제봉투 구입(50L) : 1,200원*1,500매 | L166: = | M166: 1,800 | P166: 10120 | Q166: 9160 | R166: =P166-Q166 -> 960 | S166: 8 | T166: =R166*S166 -> 7680 | W166: 1200 | X166: 1500 | AA166: =W166*X166 -> 1,800,000
K167: ○ 침구류 교체 구입비 : 120,000원*1회*112인(25실) | L167: = | M167: 13,440 | W167: 120000 | X167: 1 | Y167: 112 | AA167: =W167*Y167*X167 -> 13,440,000
K168: ○ 비치용품 및 세탁물 세제 : 31,800원*5종*12주*4개월 | L168: = | M168: 7,632 | P168: 10000 | Q168: 4 | R168: 25 | S168: 10 | T168: =P168*Q168*R168*S168 -> 10,000,000 | W168: 31800 | X168: 5 | Y168: 12 | Z168: 4 | AA168: =W168*X168*Y168*Z168 -> 7,632,000
K169: ○ 사무용품 구입 : 200,500원*6개월 | L169: = | M169: 1,203 | P169: 슈퍼테크 | Q169: 28000 | R169: 1개 | S169: 12 | T169: 4 | U169: =Q169*S169*T169 -> 1,344,000 | W169: 250000 | X169: 6 | AA169: =W169*X169 -> 1,500,000
K170: ○ (신규) 이정표 설치비 : 200,000원*20식 | L170: = | M170: 4,000 | P170: 홈스타 | Q170: 75000 | R170: 1박스 | S170: 12 | T170: 4 | U170: =Q170*S170*T170 -> 3,600,000 | W170: 200000 | X170: 20 | AA170: =W170*X170 -> 4,000,000
K171: ○ (신규) 보안프로그램 임대료(알약) : 26,000원*2대 | L171: = | M171: 52 | W171: 26000 | X171: 2 | AA171: =W171*X171 -> 52,000
K172: ○ 시설관리 청소용품 : 301,500원*6회 | L172: = | M172: 1,809 | P172: 하이퐁 | Q172: 20000 | R172: 1통 | S172: 12 | T172: 4 | U172: =Q172*S172*T172 -> 960,000 | W172: 300000 | X172: 6 | AA172: =W172*X172 -> 1,800,000
K173: ○ 위생용품 및 화장실 소모품 : 301,500원*6회 | L173: = | M173: 1,809 | P173: 샤프란 | Q173: 26000 | R173: 1통 | S173: 12 | T173: 4 | U173: =Q173*S173*T173 -> 1,248,000 | W173: 300000 | X173: 6 | AA173: =W173*X173 -> 1,800,000
G174: 02 공공운영비 | H174: =M174 -> 500 | I174: 500 | J174: =H174-I174 -> 0 | K174: 02 공공운영비 | M174: =SUM(M175:M175) -> 500
K175: ○ 구급약품 구입 : 250,000원*2회 | L175: = | M175: 500
G176: 11 지급수수료 | H176: =M176 -> 26,730 | I176: 57,380 | J176: =H176-I176 -> △30,650 | K176: 11 지급수수료 | M176: =M177+M178+M179+M180+M181+M182 -> 26,730 | P176: 비누 | Q176: 10000 | R176: 1곽 | S176: 12 | T176: 4 | U176: =Q176*S176*T176 -> 480,000
K177: ○ 신용카드 결제수수료 : 600,000원*12월 | L177: = | M177: 7,200
K178: ○ 방역(방제), 물탱크 청소 용역 : 400,000원*12월 | L178: = | M178: 4,800 | U178: =U169+U170+U172+U173+U176 -> 7,632,000
K179: ○ 전기설비 안전관리 대행수수료 : 350,000원*12월 | L179: = | M179: 4,200
K180: ○ 소방시설 안전관리 대행수수료 : 300,000원*12월 | L180: = | M180: 3,600
K181: ○ 오수처리시설 위탁관리 대행수수료 : 550,000원*12월 | L181: = | M181: 6,600
K182: ○ 지문인식기(근태관리) 임차료 : 27,500원*12월 | L182: = | M182: 330 | Q182: 명수 | R182: 일수 | S182: 회수
G183: 13 임차료 | H183: =M183 -> 13,320 | I183: 9,180 | J183: =H183-I183 -> 4,140 | K183: 13 임차료 | M183: =SUM(M184:M187) -> 13,320 | O183: 특별 | P183: 190,000 | Q183: 5 | R183: 5 | S183: 4 | U183: =P183*Q183*R183*S183 -> 19,000,000
K184: ○ 사업장 내 화물운송용 차량대여료 : 580,000원*3월 | L184: = | M184: 1,740 | O184: 보통 | P184: 150,000 | Q184: 3 | R184: 5 | S184: 4 | U184: =P184*Q184*R184*S184 -> 9,000,000
K185: ○ 사업장 내 화물운송용 차량대여료 : 1,000,000원*9월 | L185: = | M185: 9,000 | O185: 보통 | P185: 150,000 | Q185: 3 | R185: 5 | S185: 4 | U185: =P185*Q185*R185*S185 -> 9,000,000
K186: ○ 사무실 복합기 대여료 : 180,000원*12월 | L186: = | M186: 2,160 | O186: 김메기 | P186: 81,000 | Q186: 1 | R186: 5 | S186: 4 | U186: =P186*Q186*R186*S186 -> 1,620,000
K187: ○ 정수기 월임차료 : 35,000원*12월 | L187: = | M187: 420
G188: 15 복리후생비 | H188: =M188 -> 2,960 | I188: 2,760 | J188: =H188-I188 -> 200 | K188: 15 복리후생비 | M188: =SUM(M189:M190) -> 2,960
K189: ○ 급량비 : 8,000원*10일*12월 | L189: = | M189: 960
K190: ○ 피복구입비 : 200,000원*10명*1회 | L190: = | M190: 2,000
G191: 21 공공요금 및 제세 | H191: =M191 -> 115,536 | I191: 89,136 | J191: =H191-I191 -> 26,400 | K191: 21 공공요금및제세 | M191: =SUM(M192:M195) -> 115,536 | S191: =7200+4800+4200+3600+6600+330 -> 26730
K192: ○ 상수도 요금 : 1,000,000원*12월 | L192: = | M192: 12,000
K193: ○ 전기요금 : 8,000,000원*12월 | L193: = | M193: 96,000
K194: ○ 통신요금 : 550,000원*12월 | L194: = | M194: 6,600
K195: ○ TV수신료 : 3,000원*12월*26실 | L195: = | M195: 936
G196: 22 차량·선박비 | H196: =M196 -> 1,599 | I196: 2,079 | J196: =H196-I196 -> △480 | K196: 22 차량·선박비 | M196: =SUM(M197:M198) -> 1,599
K197: ○ 업무용 차량 유류대 : 2,100원*55L*1.5회*3월 | L197: = | M197: 519 | O197: =120000*9 -> 1080000
K198: ○ 업무용 차량 유류대(친환경) : 120,000원*1대*9월 | L198: = | M198: 1,080 | O198: 2100 | P198: 55 | Q198: 1.5 | R198: 3 | S198: =O198*P198*Q198*R198 -> 519,750
F199: 202 여비 | H199: =H200 -> 2,570 | I199: 2,910 | J199: =H199-I199 -> △340
G200: 01 국내여비 | H200: =M200 -> 2,570 | I200: 2,910 | J200: =H200-I200 -> △340 | K200: 01 국내여비 | M200: =SUM(M201:M202) -> 2,570
... 27 more rows

Sheet 도시미화팀
A1: 다. 지출예산(세부사업) - 도시미화팀 | M1: 단위 : 천원
A2: 구분 | B2: 사업 | E2: 편성목 | H2: 당년도예산액 (A) | I2: 전년도예산액 (B) | J2: 증 감 (A-B) | K2: 산 출 기 초
B3: 정책 | C3: 단위 | D3: 세부 | E3: 그룹 | F3: 목 | G3: 세목
A4: 총계(사업예산 + 자본예산) | H4: =H5+H262 -> 22,595,094 | I4: =I5+I262 -> 20,943,750 | J4: =H4-I4 -> 1,651,344
A5: 사업예산 | H5: =H6 -> 21,929,981 | I5: =I6 -> 20,058,500 | J5: =H5-I5 -> 1,871,481
B6: 환경대행사업 | H6: =H7+H210 -> 21,929,981 | I6: =I7+I210 -> 20,058,500 | J6: 1,871,481
C7: 생활폐기물 수집운반∙가로청소 수탁 대행사업 | H7: =H8+H161+H200 -> 21,828,236 | I7: =I8+I161+I200 -> 19,952,216 | J7: 1,876,020
D8: 생활폐기물 수집운반 및 가로청소 운영관리 | H8: =H9+H80 -> 20,789,419 | I8: =I9+I80 -> 18,803,095 | J8: 1,986,324
E9: 100 인건비 | H9: =H10+H147+H151+H154+H208 -> 18,866,047 | I9: =I10+I147+I151+I154+I208 -> 16,931,833 | J9: 1,934,214 | M9: =M10+M147+M151+M154+M208 -> 36,660
F10: 101 인건비 | H10: =H11+H76 -> 18,866,047 | I10: 16,931,833 | J10: =H10-I10 -> 1,934,214
G11: 03 무기계약근로자보수 | H11: =M11 -> 18,793,855 | I11: 16,620,543 | J11: =H11-I11 -> 2,173,312 | K11: 03 무기계약근로자보수 | M11: =M12+M40 -> 18,793,855
K12: [반장] | M12: =M13+M18+M20+M24+M27+M29+M32+M36+M37 -> 194,915
K13: ○ 기본급 | M13: =SUM(M14:M17) -> 98,033 | O13: =O14+O15+O16+O17 -> 98,034,480 | P13: 24년도 기본 인상금(추정) | Q13: 지급율 | R13: 시간 | S13: 인원 | T13: 개월 | W13: 호봉에 따른 기본급 | X13: 인상분(3%) | Y13: 24년도 기본급(추정) | AA13: 호봉
K14: - 별정 6급(29호봉) : 4,246,771원×1명×12월 | L14: = | M14: =ROUNDDOWN(O14/1000,0) -> 0 | O14: =P14*S14*T14 -> 0 | P14: =Y14 -> 0 | S14: 1 | T14: 12 | W14: 0 | X14: 2.8% | Y14: =ROUND(W14+(W14*X14),-0.3) -> 0 | Z14: 김재곤
K15: - 별정 7급(31호봉) : 4,051,860원×1명×12월 | L15: = | M15: =ROUNDDOWN(O15/1000,0) -> 0 | O15: =P15*S15*T15 -> 0 | P15: =ROUNDDOWN(Y15,-1) -> 0 | S15: 1 | T15: 12 | W15: 0 | X15: 2.8% | Y15: =ROUND(W15+(W15*X15),-0.3) -> 0 | Z15: 강덕열
K16: - 별정 7급(30호봉) : 4,206,310원×1명×12월 | L16: = | M16: =ROUNDDOWN(O16/1000,0) -> 50,475 | O16: =P16*S16*T16 -> 50,475,720 | P16: =ROUNDDOWN(Y16,-1) -> 4,206,310 | S16: 1 | T16: 12 | W16: 4,083,800 | X16: 3.0% | Y16: =ROUND(W16+(W16*X16),-0.3) -> 4,206,314 | Z16: 김인주 | AA16: 30
K17: - 별정 7급(24호봉) : 3,963,230원×1명×12월 | L17: = | M17: =ROUNDDOWN(O17/1000,0) -> 47,558 | O17: =P17*S17*T17 -> 47,558,760 | P17: =ROUNDDOWN(Y17,-1) -> 3,963,230 | S17: 1 | T17: 12 | W17: 3,847,800 | X17: 3.0% | Y17: =ROUND(W17+(W17*X17),-0.3) -> 3,963,234 | Z17: 문태선 | AA17: 24
K18: ○ 상여금 | M18: =M19 -> 8,169 | P18: 단가 | Q18: 지급율 | R18: 시간 | S18: 명 | T18: 개월
K19: - 정근수당 : 98,034,480원×100% / 12월 | L19: = | M19: =ROUNDDOWN(O19/1000,0) -> 8,169 | O19: =P19*Q19/T19 -> 8,169,540 | P19: =O13 -> 98,034,480 | Q19: 100% | T19: 12
K20: ○ 가족수당 | M20: =SUM(M21:M23) -> 1,920 | P20: 단가 | Q20: 지급율 | R20: 시간 | S20: 명 | T20: 개월
K21: - 배우자 : 40,000원×2명×12월 | L21: = | M21: =ROUNDDOWN(O21/1000,0) -> 960 | O21: =P21*S21*T21 -> 960,000 | P21: 40,000 | S21: 2 | T21: 12
K22: - 직계존속 : 20,000원×1명×12월 | L22: = | M22: =ROUNDDOWN(O22/1000,0) -> 240 | O22: =P22*S22*T22 -> 240,000 | P22: 20,000 | S22: 1 | T22: 12 | V22: 문태선
K23: - 둘째 : 60,000원×1명×12월 | L23: = | M23: 720 | O23: =P23*S23*T23 -> 720,000 | P23: 60,000 | S23: 1 | T23: 12 | V23: 문태선
K24: ○ 정근수당가산금 | M24: =SUM(M25:M26) -> 3,120 | P24: 단가 | Q24: 지급율 | R24: 시간 | S24: 명 | T24: 개월
K25: - 25년이상 : 130,000원×2명×12월 | L25: = | M25: =ROUNDDOWN(O25/1000,0) -> 3,120 | O25: =P25*S25*T25 -> 3,120,000 | P25: 130,000 | S25: 2 | T25: 12
K26: - 20~25년미만 : 110,000원×1명×12월 | L26: = | M26: 0 | O26: =P26*S26*T26 -> 0 | P26: 110,000 | S26: 0 | T26: 12
K27: ○ 직급보조비 | M27: =SUM(M28:M28) -> 4,320 | P27: 단가 | Q27: 지급율 | R27: 시간 | S27: 명 | T27: 개월
K28: - 별정 7급 : 180,000원×2명×12월 | L28: = | M28: 4,320 | O28: =P28*S28*T28 -> 4,320,000 | P28: 180,000 | S28: 2 | T28: 12
K29: ○ 장려수당 : 70,000원×2명×12월 | L29: = | M29: 1,680 | O29: =P29*S29*T29 -> 1,680,000 | P29: 70,000 | S29: 2 | T29: 12
K30: ○ 자녀학비보조수당 | M30: 0 | P30: 단가 | Q30: 지급율 | R30: 시간 | S30: 명 | T30: 개월
K31: - 고등학교 : 350,000원×4명×4회 | L31: = | M31: 0 | O31: 0 | P31: 350,000 | T31: 4
K32: ○ 초과근무수당 | M32: =M33+M34+M35 -> 56,246 | P32: 단가 | Q32: 지급율 | R32: 시간 | S32: 명 | T32: 개월 | V32: 초과단가
K33: - 시간외근무수당 : 24,530원×150%×5시간×2명×12월 | L33: = | M33: =ROUNDDOWN(O33/1000,0) -> 4,415 | O33: =P33*Q33*R33*S33*T33 -> 4,415,400 | P33: =ROUNDDOWN(V33,-1) -> 24,530 | Q33: 150% | R33: 5 | S33: 2 | T33: 12 | U33: 개월 | V33: =ROUNDDOWN((Y16+(Y16/12)+P25+P29+P28+P38)/209,0) -> 24530 | W33: 김인주
K34: - 휴일근무수당 : 24,530원×150%×8시간×2명×75일 | L34: = | M34: =ROUNDDOWN(O34/1000,0) -> 44,154 | O34: =P34*Q34*R34*S34*T34 -> 44,154,000 | P34: =ROUNDDOWN(V33,-1) -> 24,530 | Q34: 150% | R34: 8 | S34: 2 | T34: 75 | U34: 일 | W34: 김일두
K35: - 야간근무수당 : 24,530원×50%×1시간×2명×313일 | L35: = | M35: =ROUNDDOWN(O35/1000,0) -> 7,677 | O35: =P35*Q35*R35*S35*T35 -> 7,677,890 | P35: =ROUNDDOWN(V33,-1) -> 24,530 | Q35: 50% | R35: 1 | S35: 2 | T35: 313 | U35: 일 | W35: 문태선
K36: ○ 연차유급휴가수당 :196,240원×2명×18일 | L36: = | M36: =ROUNDDOWN(O36/1000,0) -> 7,064 | O36: =P36*S36*T36 -> 7,064,640 | P36: =V33*8 -> 196,240 | S36: 2 | T36: 18
K37: ○ 복리후생비 | M37: =M38+M39 -> 14,363 | P37: 단가 | Q37: 지급율 | R37: 시간 | S37: 명 | T37: 개월
K38: - 정액급식비 : 190,000원×2명×12월 | L38: = | M38: =ROUNDDOWN(O38/1000,0) -> 4,560 | O38: =P38*S38*T38 -> 4,560,000 | P38: 190,000 | S38: 2 | T38: 12
K39: - 명절휴가비 : 98,034,480원×120%/12월 | L39: = | M39: =ROUNDDOWN(O39/1000,0) -> 9,803 | O39: =P39*Q39/T39 -> 9,803,448 | P39: =O13 -> 98,034,480 | Q39: 120% | T39: 12
K40: [환경사원] | M40: =M41+M43+M47+M53+M55+M57+M61+M65+M67+M70+M72+M74 -> 18,598,940
K41: ○ 기본급 | M41: =M42 -> 6,903,457 | P41: 24년도 기본급(추정) | Q41: 지급율 | R41: 시간 | S41: 인원 | T41: 개월
K42: - 13년 이상~14년 미만 : 2,115,030원×272명×12월 | L42: = | M42: =ROUNDDOWN(O42/1000,0) -> 6,903,457 | O42: =P42*S42*T42 -> 6,903,457,920 | P42: =ROUNDDOWN(Y43,-1) -> 2,115,030 | S42: 272 | T42: 12 | V42: 구 분 | W42: 23년도 기본급 | X42: 인상분 | Y42: 24년도 기본급(추정)
K43: ○ 상여금 | M43: =SUM(M44:M46) -> 3,620,635 | P43: 단가 | Q43: 지급율 | R43: 시간 | S43: 명 | T43: 개월 | V43: 14호봉 | W43: 2,014,320 | X43: 5.00% | Y43: =ROUNDDOWN(W43+(W43*X43),-1) -> 2,115,030 | AA43: (상여금 산정기준 : 기본급+특수업무수당+작업장려수당+정액급식비)
K44: - 기말수당(14호봉) : 2,465,030원×200%×272명 | L44: = | M44: =ROUNDDOWN(O44/1000,0) -> 1,340,976 | O44: =P44*S44*Q44 -> 1,340,976,320 | P44: =ROUNDDOWN(X47,-1) -> 2,465,030 | Q44: 200% | S44: 272 | V44: 1호봉 | W44: 1,669,810 | X44: 5.00% | Y44: =ROUNDDOWN(W44+(W44*X44),-1) -> 1,753,300
K45: - 정근수당(14호봉): 2,465,030원×90%×272명 | L45: = | M45: =ROUNDDOWN(O45/1000,0) -> 603,439 | O45: =P45*S45*Q45 -> 603,439,344 | P45: =ROUNDDOWN(X47,-1) -> 2,465,030 | Q45: 90% | S45: 272
K46: - 체력단련비(14호봉) : 2,465,030원×250%×272명 | L46: = | M46: =ROUNDDOWN(O46/1000,0) -> 1,676,220 | O46: =P46*S46*Q46 -> 1,676,220,400 | P46: =ROUNDDOWN(X47,-1) -> 2,465,030 | Q46: 250% | S46: 272 | W46: 상여금 산정기준 | X46: (기본급+특수업무수당+작업장려수당+정액급식비)
K47: ○ 가족수당 | M47: =SUM(M48:M52) -> 312,000 | P47: 단가 | S47: 명 | T47: 개월 | W47: 상여금 산정기준액 | X47: =X48+X49+X50+X51 -> 2,465,030 | Y47: 상여금 산정기준액
K48: - 배우자 : 40,000원×210명×12월 | L48: = | M48: =ROUNDDOWN(O48/1000,0) -> 100,800 | O48: =P48*S48*T48 -> 100,800,000 | P48: 40,000 | S48: 210 | T48: 12 | W48: 기본급(14호봉) | X48: =Y43 -> 2,115,030 | Y48: 기본급(4호봉)
K49: - 직계존비속 : 20,000원×100명×12월 | L49: = | M49: =ROUNDDOWN(O49/1000,0) -> 24,000 | O49: =P49*S49*T49 -> 24,000,000 | P49: 20,000 | S49: 100 | T49: 12 | W49: 특수업무수당 | X49: 90,000 | Y49: 특수업무수당
K50: - 첫째 : 30,000원×120명×12월 | L50: = | M50: =ROUNDDOWN(O50/1000,0) -> 43,200 | O50: =P50*S50*T50 -> 43,200,000 | P50: 30,000 | S50: 120 | T50: 12 | W50: 작업장려수당 | X50: 70,000 | Y50: 작업장려수당
K51: - 둘째 : 60,000원×100명×12월 | L51: = | M51: =ROUNDDOWN(O51/1000,0) -> 72,000 | O51: =P51*S51*T51 -> 72,000,000 | P51: 60,000 | S51: 100 | T51: 12 | W51: 정액급식비 | X51: 190,000 | Y51: 정액급식비
K52: - 셋째,넷째 : 100,000원×60명×12월 | L52: = | M52: =ROUNDDOWN(O52/1000,0) -> 72,000 | O52: =P52*S52*T52 -> 72,000,000 | P52: 100,000 | S52: 60 | T52: 12
K53: ○ 정근수당가산금 | M53: =SUM(M54:M54) -> 105,840
K54: - 정근수당가산금(14호봉) : 42,000원×210명×12월 | L54: = | M54: =ROUNDDOWN(O54/1000,0) -> 105,840 | O54: =P54*S54*T54 -> 105,840,000 | P54: 42,000 | S54: 210 | T54: 12
K55: ○ 특수업무수당 | M55: =SUM(M56:M56) -> 293,760
K56: - 특수업무수당(14호봉) : 90,000원×272명×12월 | L56: = | M56: =ROUNDDOWN(O56/1000,0) -> 293,760 | O56: =P56*S56*T56 -> 293,760,000 | P56: 90,000 | S56: 272 | T56: 12
K57: ○ 작업장려수당 | M57: =SUM(M58:M58) -> 228,480
K58: - 작업장려수당(14호봉) : 70,000원×272명×12월 | L58: = | M58: =ROUNDDOWN(O58/1000,0) -> 228,480 | O58: =P58*S58*T58 -> 228,480,000 | P58: 70,000 | S58: 272 | T58: 12
K59: ○ 자녀학비보조수당 | M59: 0 | P59: 단가 | S59: 명 | T59: 회
K60: - 고등학교 : 350,000원×5명×4회 | L60: = | M60: 0 | O60: 0 | S60: 5 | T60: 4
K61: ○ 초과근무수당 | M61: =SUM(M62:M64) -> 4,945,654 | P61: 단가 | Q61: 지급율 | R61: 시간 | S61: 명 | T61: 개월, 일 | U61: 일 | W61: 초과단가(14호봉기준)
K62: - 시간외근무수당(14호봉) : 17,890원×150%×4시간×75명×12월 | L62: = | M62: =ROUNDDOWN(O62/1000,0) -> 96,606 | O62: =P62*Q62*R62*S62*T62 -> 96,606,000 | P62: =ROUNDDOWN(W62,-1) -> 17,890 | Q62: 150% | R62: 4 | S62: 75 | T62: 12 | U62: 일 | W62: =(X47+Y62+Y63+Y64+Y65+Y66)/209 -> 17,899 | X62: 기말 | Y62: =ROUNDDOWN(X47*200%/12,-1) -> 410830
K63: - 휴일근무수당(14호봉) : 17,890원×150%×8시간×272명×70일 | L63: = | M63: =ROUNDDOWN(O63/1000,0) -> 4,087,507 | O63: =P63*Q63*R63*S63*T63 -> 4,087,507,200 | P63: =ROUNDDOWN(W62,-1) -> 17,890 | Q63: 150% | R63: 8 | S63: 272 | T63: 70 | X63: 체력 | Y63: =ROUNDDOWN(X47*250%/12,-1) -> 513540
K64: - 야간근무수당(14호봉) : 17,890원×50%×1시간×272명×313일 | L64: = | M64: =ROUNDDOWN(O64/1000,0) -> 761,541 | O64: =P64*Q64*R64*S64*T64 -> 761,541,520 | P64: =ROUNDDOWN(W62,-1) -> 17,890 | Q64: 50% | R64: 1 | S64: 272 | T64: 313 | U64: 일 | X64: 정근 | Y64: =ROUNDDOWN(X47*100%/12,-1) -> 205410
K65: ○ 연차유급휴가수당 | M65: =SUM(M66:M66) -> 701,009 | X65: 목욕 | Y65: 104000
K66: - 14호봉 : 143,180원×272명×18일 | L66: = | M66: =ROUNDDOWN(O66/1000,0) -> 701,009 | O66: =P66*S66*T66 -> 701,009,280 | P66: =ROUNDDOWN(W62*8,-1) -> 143,180 | S66: 272 | T66: 18 | X66: 정근가산금 | Y66: 42000
K67: ○ 복리후생비 | M67: =SUM(M68:M69) -> 1,424,745 | P67: 단가 | Q67: 지급율 | R67: 시간 | S67: 명 | T67: 개월
K68: - 정액급식비 : 190,000원×272명×12월 | L68: = | M68: =ROUNDDOWN(O68/1000,0) -> 620,160 | N68: 상여금산정기준액 | O68: =P68*S68*T68 -> 620,160,000 | P68: 190,000 | S68: 272 | T68: 12
K69: - 명절휴가비 : 2,465,030원×272명×120% | L69: = | M69: =ROUNDDOWN(O69/1000,0) -> 804,585 | N69: =P42+P56+P58+P68 -> 2,465,030 | O69: =P69*Q69 -> 804,585,792 | P69: =N69*S69 -> 670,488,160 | Q69: 120% | S69: 272.0
K70: ○ 탑승수당 | M70: =M71 -> 25,200
K71: - 월 16일이상 차량탑승자 : 10,000원×210명×12월 | L71: = | M71: =ROUNDDOWN(O71/1000,0) -> 25,200 | O71: =P71*Q71*S71*T71 -> 25,200,000 | P71: 10,000 | Q71: 100% | S71: 210.0 | T71: 12
K72: ○ 조장수당 | M72: =M73 -> 13,200 | P72: 단가 | Q72: 지급율 | R72: 시간 | S72: 명 | T72: 개월
K73: - 차량반, 가로청소반 조장 : 100,000원×11명×12월 | L73: = | M73: =ROUNDDOWN(O73/1000,0) -> 13,200 | O73: =P73*S73*T73 -> 13,200,000 | P73: 100,000 | S73: 11 | T73: 12
K74: ○ 운전수당 | M74: =M75 -> 24,960 | P74: 단가 | Q74: 지급율 | R74: 시간 | S74: 명 | T74: 개월
K75: - 청소차 운전원 : 40,000원×52명×12월 | L75: = | M75: =ROUNDDOWN(O75/1000,0) -> 24,960 | O75: =P75*S75*T75 -> 24,960,000 | P75: 40,000 | S75: 52 | T75: 12
G76: 04 기간제근로자등보수 | H76: =M76 -> 72,192 | I76: 311,290 | J76: =H76-I76 -> △239,098 | K76: 04 기간제근로자등보수 | M76: =M77 -> 72,192 | P76: 단가 | R76: 일 | S76: 명 | T76: 개월
K77: [당직전담원] | M77: =M78+M79 -> 72,192
K78: ○ 일당 : 174,380원 x 16일 x 2명 x 12월 | L78: = | M78: =ROUNDDOWN(O78/1000,0) -> 66,961 | O78: =P78*R78*S78*T78 -> 66,961,920 | P78: 174,380 | R78: 16 | S78: 2 | T78: 12
K79: ○ 연차유급휴가수당 : 174,380원 x 2명 x 15일 | L79: = | M79: =ROUNDDOWN(O79/1000,0) -> 5,231 | O79: =P79*R79*S79 -> 5,231,400 | P79: 174,380 | R79: 15 | S79: 2
E80: 200 물건비 | H80: =H81+H144+H153+H157 -> 1,923,372 | I80: =I81+I144+I153+I157 -> 1,871,262 | J80: =H80-I80 -> 52,110
F81: 201 일반운영비 | H81: =H82+H107+H108+H111+H117+H128+H137 -> 1,875,532 | I81: =I82+I107+I108+I111+I117+I128+I137 -> 1,816,607 | J81: =H81-I81 -> 58,925
G82: 01 사무관리비 | H82: =M82 -> 50,980 | I82: 66,400 | J82: =H82-I82 -> △15,420 | M82: =M83+M95+M102+M103+M104+M105+M106 -> 50,980
K83: ○ 청소용품 구입비 | M83: =SUM(M84:M94) -> 27,590 | P83: 단가 | R83: 명, 개수 | S83: 회 | T83: 개월
K84: - 대비 : 3,000원×100명×1회×12월 | L84: = | M84: =ROUNDDOWN(O84/1000,0) -> 3,600 | O84: =P84*R84*T84*S84 -> 3,600,000 | P84: 3,000 | R84: 100 | S84: 1 | T84: 12
K85: - 나일론비 : 2,000원 x 100개 x 1회 x 12월 | L85: = | M85: 2,400 | O85: =P85*R85*T85*S85 -> 2,400,000 | P85: 2,000 | R85: 100 | S85: 1 | T85: 12
K86: - 쓰레받이(대): 10,000원×40개x3회 | L86: = | M86: 1,200 | O86: =P86*R86*S86 -> 1,200,000 | P86: 10,000 | R86: 40 | S86: 3
K87: - 쓰레받이(소) : 8,000원×100개×3회 | L87: = | M87: 2,400 | O87: 2,400,000 | P87: 8,000 | R87: 100 | S87: 3
K88: - (신규)마대(대): 600원×1000장x3회 | L88: = | M88: =ROUNDDOWN(O88/1000,0) -> 1,800 | O88: 1,800,000 | P88: 600 | R88: 1,000 | S88: 3
K89: - 삽 : 6,000원×100명×2회 | L89: = | M89: 1,200 | O89: 1,200,000 | P89: 6,000 | R89: 100 | S89: 2
K90: - (신규)음식물 수거용기(60ℓ) : 33,000원×15개×2회 | L90: = | M90: =ROUNDDOWN(O90/1000,0) -> 990 | O90: 990,000 | P90: 33,000 | R90: 15 | S90: 2
K91: - 음식물 수거용기(120ℓ) : 50,000원×60개×2회 | L91: = | M91: =ROUNDDOWN(O91/1000,0) -> 6,000 | O91: 6,000,000 | P91: 50,000 | R91: 60 | S91: 2
K92: - 음식물 수거용기 바퀴교체 : 10,000원×60개×2개×2회 | L92: = | M92: 2,400 | O92: 2,400,000 | P92: 10,000 | R92: 120 | S92: 2
K93: - 청소차비산방지덮개(진개덤프) : 50,000원×16대×1회 | L93: = | M93: 800 | O93: 800,000 | P93: 50,000 | R93: 16 | S93: 1
K94: - 기타소모품비(비품, 차류 등) :400,000원×1회×12월 | L94: = | M94: 4,800 | O94: =P94*S94*T94 -> 4,800,000 | P94: 400,000 | S94: 1 | T94: 12
K95: ○ 사무용품 등 구입비 | M95: =SUM(M96:M101) -> 14,300 | P95: 단가 | R95: 명, 개수 | S95: 회 | T95: 개월
K96: - 복사용지 구입(A4) : 23,000원×10박스×5회 | L96: = | M96: =ROUNDDOWN(O96/1000,0) -> 1,150 | O96: =P96*R96*S96 -> 1,150,000 | P96: 23,000 | R96: 10 | S96: 5
K97: - 사무용품구입비 : 300,000원×12회 | L97: = | M97: 3,600 | O97: =P97*R97*S97 -> 3,600,000 | P97: 300,000 | R97: 12 | S97: 1
K98: - 복사용지 구입(A3) : 25,000원×5박스×10회 | L98: = | M98: 1,250 | O98: =P98*R98*S98 -> 1,250,000 | P98: 25,000 | R98: 5 | S98: 10
K99: - PC 유지보수 및 소모품 구입 : 150,000원×10대×1회 | L99: = | M99: 1,500 | O99: =P99*R99*S99 -> 1,500,000 | P99: 150,000 | R99: 10 | S99: 1
K100: - 각종 서식 인쇄 및 제작(차량운행일지 등) : 800,000원×4회 | L100: = | M100: 3,200 | O100: =P100*S100 -> 3,200,000 | P100: 800,000 | S100: 4
K101: - 복지관위생용품(화장지,방향제) 구입 : 300,000원×12회 | L101: = | M101: 3,600 | O101: =P101*S101 -> 3,600,000 | P101: 300,000 | R101: 1 | S101: 12
K102: ○ 공공기관 유류 공동구매 등 나라장터 이용 수수료 : 300,000원 x 2회 | L102: = | M102: 600 | O102: =P102*S102 -> 600,000 | P102: 300,000 | S102: 2
K103: ○ 시민 홍보물품 제작 구입비 : 15,000원×100개×1회 | L103: = | M103: =ROUNDDOWN(O103/1000,0) -> 1,500 | O103: =P103*R103*S103 -> 1,500,000 | P103: 15,000 | R103: 100 | S103: 1
K104: ○ 환경사원휴게실 생수 구입 및 정수기 소독비 : 30,000원×5대×4회 | L104: = | M104: =ROUNDDOWN(O104/1000,0) -> 600 | O104: =P104*R104*S104 -> 600,000 | P104: 30,000 | R104: 5 | S104: 4
K105: ○ 불법배출 수거거부 스티커제작구입비 : 150원×10,000매×4회 | L105: = | M105: =ROUNDDOWN(O105/1000,0) -> 6,000 | O105: =P105*R105*S105 -> 6,000,000 | P105: 150 | R105: 10,000 | S105: 4
K106: ○ 범용 S/W 구입비 : 알약 26.000원 * 15대 | L106: = | M106: =O106/1000 -> 390 | O106: =P106*R106*S106 -> 390,000 | P106: 26,000 | R106: 15 | S106: 1
G107: 02 공공운영비 | H107: =M107 -> 0 | I107: 7,200 | J107: =H107-I107 -> △7,200 | K107: [복리후생비로 이전] | M107: 0
G108: 03 행사운영비 | H108: =M108 -> 1,900 | I108: 4,110 | J108: =H108-I108 -> △2,210 | M108: =M109+M110 -> 1,900 | P108: 단가 | R108: 명.개수 | S108: 회 | T108: 개월
K109: ○ 각종 행사 현수막 제작비 : 70,000원×10회 | L109: = | M109: =ROUNDDOWN(O109/1000,0) -> 700 | O109: =P109*S109 -> 700,000 | P109: 70,000 | S109: 10
K110: ○ 퇴임식관련 행사물품 구입 : 600,000원×2회 | L110: = | M110: =ROUNDDOWN(O110/1000,0) -> 1,200 | O110: =P110*S110 -> 1,200,000 | P110: 600,000 | S110: 2
G111: 11 지급수수료 | H111: =M111 -> 16,458 | I111: 78,347 | J111: =H111-I111 -> △61,889 | M111: =M112 -> 16,458 | P111: 단가 | R111: 대 | S111: 회 | T111: 개월
K112: ○ 지급수수료 | M112: =SUM(M113:M116) -> 16,458
K113: - 청소차량 정기검사 : 50,000원×70대×1.5회 | L113: = | M113: =ROUNDDOWN(O113/1000,0) -> 5,250 | O113: =P113*R113*S113 -> 5,250,000 | P113: 50,000 | R113: 70 | S113: 1.5
K114: - CNG청소차량 내압용기 검사 : 400,000원×20대×1회 | L114: = | M114: =ROUNDDOWN(O114/1000,0) -> 8,000 | O114: =P114*R114*S114 -> 8,000,000 | P114: 400,000 | R114: 20 | S114: 1
K115: - 환경사원인사급여프로그램 유지 보수 : 146,410원×12월 | L115: = | M115: =ROUNDDOWN(O115/1000,0) -> 1,756 | O115: =P115*T115 -> 1,756,920 | P115: 146,410 | T115: 12
K116: - 복지관 및 정비동 무인경비용역비 : 121,000원×12월 | L116: = | M116: =ROUNDDOWN(O116/1000,0) -> 1,452 | O116: =P116*T116 -> 1,452,000 | P116: 121,000 | T116: 12
G117: 13 임차료 | H117: =M117 -> 74,477 | I117: 76,652 | J117: =H117-I117 -> △2,175 | M117: =M118+M125+M127 -> 74,477 | P117: 단가 | R117: 명, 개수 | S117: 회 | T117: 개월
K118: ○ 리스료 | M118: =SUM(M119:M124) -> 7,827
K119: - 환경사원복지관 정수기 임대 : 120,000원×12월 | L119: = | M119: =ROUNDDOWN(O119/1000,0) -> 1,440 | O119: =P119*T119 -> 1,440,000 | P119: 120,000 | T119: 12
K120: - 환경사원복지관 비데 임대 : 17,900원×7개×12월 | L120: = | M120: 1,503 | O120: =P120*R120*T120 -> 1,503,600 | P120: 17,900 | R120: 7 | T120: 12
K121: - 환경사원복지관 공기청정기 임대 : 40,000원×2개×12월 | L121: = | M121: =ROUNDDOWN(O121/1000,0) -> 960 | O121: =P121*R121*T121 -> 960,000 | P121: 40,000 | R121: 2 | T121: 12
K122: - 환경사원복지관 복사기 임대 : 200,000원×1대×12월 | L122: = | M122: 2,400 | O122: =P122*R122*T122 -> 2,400,000 | P122: 200,000 | R122: 1 | T122: 12
K123: - 환경사원 휴게실 흑백복사기 임대 : 50,000원×1대×12월 | L123: = | M123: 600 | O123: =P123*R123*T123 -> 600,000 | P123: 50,000 | R123: 1 | T123: 12
K124: - 환경사원복지관 CCTV 월보수료 : 77,000원×12월 | L124: = | M124: =ROUNDDOWN(O124/1000,0) -> 924 | O124: =P124*R124*T124 -> 924,000 | P124: 77,000 | R124: 1 | T124: 12
K125: ○ 공유재산 사용료 | M125: =SUM(M126:M126) -> 65,000 | P125: 단가 | R125: 명, 개수 | S125: 개소 | T125: 개월
K126: - 환경사원복지관 외 2필지 : 65,000,000원x1회 | L126: = | M126: =ROUNDDOWN(O126/1000,0) -> 65,000 | O126: =P126*S126 -> 65,000,000 | P126: 65,000,000 | S126: 1
K127: ○ 예비운전원 실기시험장 대여료 : 550,000원×3회 | L127: = | M127: =ROUNDDOWN(O127/1000,0) -> 1,650 | O127: =P127*S127 -> 1,650,000 | P127: 550,000 | S127: 3
G128: 21 공공요금및제세 | H128: =M128 -> 286,569 | I128: 284,502 | J128: =H128-I128 -> 2,067 | M128: =M129+M130+M131+M132+M136 -> 286,569 | P128: 단가 | Q128: 요율 | R128: 대 | S128: 회 | T128: 개월
K129: ○ 지방소득세(종업원분) : 18,793,855,000원×0.5% | L129: = | M129: =ROUNDDOWN(O129/1000,0) -> 93,969 | O129: =P129*Q129 -> 93,969,275 | P129: =V129 -> 18,793,855,000 | Q129: 0.5% | U129: 반장및환경사원 임금 | V129: =M11*1000 -> 18,793,855,000
K130: ○ 자동차세 : 90,000원×70대×2회 | L130: = | M130: =ROUNDDOWN(O130/1000,0) -> 12,600 | O130: =P130*R130*S130 -> 12,600,000 | P130: 90,000 | R130: 70 | S130: 2
K131: ○ 경유차 환경개선부담금 : 80,000원×15대×2회 | L131: = | M131: =ROUNDDOWN(O131/1000,0) -> 2,400 | O131: =P131*R131*S131 -> 2,400,000 | P131: 80,000 | R131: 15 | S131: 2
K132: ○ 환경사원복지관 공공요금 | M132: =SUM(M133:M135) -> 30,600 | P132: 단가 | R132: 대 | S132: 회 | T132: 개월
K133: - 환경사원복지관 전기요금 : 1,300,000원×12월 | L133: = | M133: =ROUNDDOWN(O133/1000,0) -> 15,600 | O133: =P133*T133 -> 15,600,000 | P133: 1,300,000 | T133: 12
K134: - 환경사원복지관 수도요금 : 450,000원×12월 | L134: = | M134: =ROUNDDOWN(O134/1000,0) -> 5,400 | O134: =P134*T134 -> 5,400,000 | P134: 450,000 | T134: 12
K135: - 환경사원복지관 전화요금 : 800,000원×12월 | L135: = | M135: =ROUNDDOWN(O135/1000,0) -> 9,600 | O135: =P135*T135 -> 9,600,000 | P135: 800,000 | T135: 12
K136: ○ 청소차량 보험료 : 2,100,000원×70대×1회 | L136: = | M136: =ROUNDDOWN(O136/1000,0) -> 147,000 | O136: =P136*R136*S136 -> 147,000,000 | P136: 2,100,000 | R136: 70 | S136: 1
G137: 22 차량 · 선박비 | H137: =M137 -> 1,445,148 | I137: 1,299,396 | J137: =H137-I137 -> 145,752 | M137: =M138+M139+M143 -> 1,445,148
K138: ○ 도서지역 폐기물 운반 선박비 : 2,000,000원×60회 | L138: = | M138: =ROUNDDOWN(O138/1000,0) -> 120,000 | O138: =P138*S138 -> 120,000,000 | P138: 2,000,000 | S138: 60
K139: ○ 청소차량 유류비 | M139: =SUM(M140:M142) -> 1,311,288 | P139: 단가 | Q139: 거리 | R139: 대 | S139: 회,식 | T139: 개월 | U139: 연비
K140: - 8000cc(경유) : 40,000km×25대×1,400원×0.3 | L140: = | M140: =ROUNDDOWN(O140/1000,0) -> 420,000 | O140: =P140*Q140*R140*U140 -> 420,000,000 | P140: 1,400 | Q140: 40,000 | R140: 25 | U140: 0.3
K141: - 6000cc(CNG) : 43,000km×38대×1,200원×0.41 | L141: = | M141: =ROUNDDOWN(O141/1000,0) -> 803,928 | O141: =P141*Q141*R141*U141 -> 803,928,000 | P141: 1,200 | Q141: 43,000 | R141: 38 | U141: 0.41
K142: - 1000cc(경유) : 26,000km×8대×1,400원×0.3 | L142: = | M142: =ROUNDDOWN(O142/1000,0) -> 87,360 | O142: =P142*Q142*R142*U142 -> 87,360,000 | P142: 1,400 | Q142: 26,000 | R142: 8 | U142: 0.3
K143: ○ 청소차량 GPS 운영비 : 16,500원×70대×12월 | L143: = | M143: =ROUNDDOWN(O143/1000,0) -> 13,860 | O143: =P143*R143*T143 -> 13,860,000 | P143: 16,500 | R143: 70 | T143: 12
F144: 202 여비 | H144: =H145 -> 27,620 | I144: 34,795 | J144: =H144-I144 -> △7,175
G145: 01 국내여비 | H145: =M145 -> 27,620 | I145: 34,795 | J145: =H145-I145 -> △7,175 | M145: =M146+M148 -> 27,620
K146: ○ 관내여비 | M146: =SUM(M147:M147) -> 18,000 | P146: 단가 | R146: 명 | S146: 일 | T146: 개월,회
K147: - 청소업무 수행 : 20,000원×5명×15일×12월 | L147: = | M147: =ROUNDDOWN(O147/1000,0) -> 18,000 | O147: =P147*R147*S147*T147 -> 18,000,000 | P147: 20,000 | R147: 5 | S147: 15 | T147: 12
K148: ○ 관외여비 | M148: =SUM(M149:M152) -> 9,620 | P148: 단가 | R148: 명 | S148: 일,회 | T148: 개월
K149: - 청소차량 유지보수업무 수행 : 110,000원×2명×8회 | L149: = | M149: =ROUNDDOWN(O149/1000,0) -> 1,760 | O149: =P149*R149*S149 -> 1,760,000 | P149: 110,000 | R149: 2 | S149: 8
K150: - 청소업무 유공직원 선진지 견학 : 500,000원×10명×1회 | L150: = | M150: =ROUNDDOWN(O150/1000,0) -> 5,000 | O150: =P150*R150*S150 -> 5,000,000 | P150: 500,000 | R150: 10 | S150: 1
K151: - 청소대행사업 관련 벤치마킹 방문 : 110,000원×3명×2회×1일 | L151: = | M151: =ROUNDDOWN(O151/1000,0) -> 660 | O151: =P151*R151*S151*T151 -> 660,000 | P151: 110,000 | R151: 3 | S151: 2 | T151: 1
K152: - 산업안전보건 강조주간 행사참여 : 110,000원×10명×2회 | L152: = | M152: =ROUNDDOWN(O152/1000,0) -> 2,200 | O152: =P152*R152*S152 -> 2,200,000 | P152: 110,000 | R152: 10 | S152: 2
F153: 207 연구개발비 | H153: =H154 -> 0 | I153: 0 | J153: 0
G154: 02 전산개발비 | H154: =M154 -> 0 | I154: 0 | J154: 0 | M154: 0
K155: ○ 대행폐기물 배출신고 시스템 개발 | M155: 0
K156: - 공단홈페이지 내 배출신고 예약 시스템 개발 : 40,000,000원×1식 | L156: = | M156: 0 | O156: 0 | R156: 1
F157: 217 관서업무비 | H157: =H158 -> 20,220 | I157: 19,860 | J157: =H157-I157 -> 360
G158: 02 부서업무비 | H158: =M158 -> 20,220 | I158: 19,860 | J158: =H158-I158 -> 360 | M158: =M159+M160 -> 20,220 | P158: 단가 | R158: 명 | S158: 회 | T158: 개월
K159: ○ 부서운영비(30인이하) : 400,000×12월 | L159: = | M159: =ROUNDDOWN(O159/1000,0) -> 4,800 | O159: =P159*T159 -> 4,800,000 | P159: 400,000 | T159: 12
K160: ○ 부서운영비(30인이상) : 5,000×257명×12월 | L160: = | M160: =ROUNDDOWN(O160/1000,0) -> 15,420 | O160: =P160*R160*T160 -> 15,420,000 | P160: 5,000 | R160: 257 | T160: 12
D161: 환경사원 안전개선 사업 | H161: =H162 -> 727,617 | I161: 730,921 | J161: =H161-I161 -> △3,304
E162: 200 물건비 | H162: 727,617 | I162: 730,921 | J162: =H162-I162 -> △3,304
F163: 201 일반운영비 | H163: 727,617 | I163: 730,921 | J163: =H163-I163 -> △3,304
G164: 15 복리후생비 | H164: =M164 -> 727,617 | I164: 730,921 | J164: =H164-I164 -> △3,304 | M164: =M165+M193+M195+M196+M197+M198+M199 -> 727,617
K165: ○ 환경사원 피복비 | M165: =SUM(M166:M192) -> 372,949 | O165: =SUM(O166:O193) -> 719,528,320 | P165: 단가 | R165: 명 | S165: 일,회 | T165: 개월
K166: - 춘추 작업복 : 150,000원×274명×1회 | L166: = | M166: =ROUNDDOWN(O166/1000,0) -> 41,100 | O166: =P166*R166*S166 -> 41,100,000 | P166: 150,000 | R166: 274 | S166: 1
K167: - 하계 작업복 : 70,000원×274명×1회 | L167: = | M167: 19,180 | O167: =P167*R167*S167 -> 19,180,000 | P167: 70,000 | R167: 274 | S167: 1
K168: - 동절기 작업복 : 165,000원×274명×1회 | L168: = | M168: 45,210 | O168: =P168*R168*S168 -> 45,210,000 | P168: 165,000 | R168: 274 | S168: 1
K169: - 방한복 : 135,000원×274명×1회 | L169: = | M169: 36,990 | O169: =P169*R169*S169 -> 36,990,000 | P169: 135,000 | R169: 274 | S169: 1
K170: - 우의 : 55,000원×274명×1회 | L170: = | M170: 15,070 | O170: =P170*R170*S170 -> 15,070,000 | P170: 55,000 | R170: 274 | S170: 1
K171: - 안전장화 : 35,000원×274명×1회 | L171: = | M171: 9,590 | O171: =P171*R171*S171 -> 9,590,000 | P171: 35,000 | R171: 274 | S171: 1
K172: - 안전화 : 65,000원×274명×3회 | L172: = | M172: 53,430 | O172: 53,430,000 | P172: 65,000 | R172: 274 | S172: 3
K173: - 춘추작업모 : 7,500원×274명×1회 | L173: = | M173: 2,055 | O173: 2,055,000 | P173: 7,500 | R173: 274 | S173: 1
K174: - 하계작업모 : 15,000원×274명×1회 | L174: = | M174: 4,110 | O174: 4,110,000 | P174: 15,000 | R174: 274 | S174: 1
K175: - 방한모 : 20,000원×274명×1회 | L175: = | M175: 5,480 | O175: 5,480,000 | P175: 20,000 | R175: 274 | S175: 1
K176: - 자외선차단마스크 : 13,000원×280명(274명+신규6명)×2개 | L176: = | O176: =P176*R176*S176 -> 7,124,000 | P176: 13,000 | R176: 274 | S176: 2
K177: - 안전모 : 11,780원×274명×1회 | L177: = | M177: 3,228 | O177: =P177*R177*S177 -> 3,227,720 | P177: 11,780 | R177: 274 | S177: 1
K178: - 안전조끼 : 32,000원×274명×2회 | L178: = | M178: 17,536 | O178: 17,536,000 | P178: 32,000 | R178: 274 | S178: 2
K179: - 보안경 : 10,000원×274명×1회 | L179: = | M179: =ROUNDDOWN(O179/1000,0) -> 2,740 | O179: =P179*R179*S179 -> 2,740,000 | P179: 10,000 | R179: 274 | S179: 1
K180: - 방한용 넥워머 : 15,000원×274명×1회 | L180: = | M180: =ROUNDDOWN(O180/1000,0) -> 4,110 | O180: =P180*R180*S180 -> 4,110,000 | P180: 15,000 | R180: 274 | S180: 1
K181: - 하절기 쿨토시 : 10,000원×274명×1회 | L181: = | M181: =ROUNDDOWN(O181/1000,0) -> 2,740 | O181: =P181*R181*S181 -> 2,740,000 | P181: 10,000 | R181: 274 | S181: 1
K182: - 방진복 : 8,000원x85개x12회 | L182: = | M182: =ROUNDDOWN(O182/1000,0) -> 8,160 | O182: =P182*R182*S182 -> 8,160,000 | P182: 8,000 | R182: 85 | S182: 12
K183: - 안전벨트(탑승원) : 25,000원×10명×4회 | L183: = | M183: =ROUNDDOWN(O183/1000,0) -> 1,000 | O183: =P183*R183*S183 -> 1,000,000 | P183: 25,000 | R183: 10 | S183: 4
K184: - 작업용 장갑 :1,100원×274명×10개×12월 | L184: = | M184: =O184/1000 -> 36,168 | O184: =P184*R184*S184*T184 -> 36,168,000 | P184: 1,100 | R184: 274 | S184: 10 | T184: 12
K185: - 작업용 관절 보호대 : 35,000×230개×1회 | L185: = | M185: =O185/1000 -> 8,050 | O185: =P185*R185*S185 -> 8,050,000 | P185: 35,000 | R185: 230 | S185: 1
K186: - 베임방지 장갑 : 7,000원 x 72명 x 24회 | L186: = | M186: =ROUNDDOWN(O186/1000,0) -> 12,096 | O186: =P186*R186*S186 -> 12,096,000 | P186: 7,000 | R186: 72 | S186: 24
K187: - 캡 라이트(헤드렌턴,배터리포함) : 14,000원×230명×1회 | L187: = | M187: =ROUNDDOWN(O187/1000,0) -> 3,220 | O187: =P187*R187*S187 -> 3,220,000 | P187: 14,000 | R187: 230 | S187: 1
K188: - 황사마스크 : 1,200원×274명×12회 | L188: = | M188: 3,946 | O188: 3,945,600 | P188: 1,200 | R188: 274 | S188: 12
K189: - KF94마스크 : 500원×274명×150회 | L189: = | M189: =ROUNDDOWN(O189/1000,0) -> 20,550 | O189: 20,550,000 | P189: 500 | R189: 274 | S189: 150
K190: - KFAD(비말)마스크 : 500원×274명×90회 | L190: = | M190: =ROUNDDOWN(O190/1000,0) -> 12,330 | O190: 12,330,000 | P190: 500 | R190: 274 | S190: 90
K191: - 방독마스크 : 14,000원×30명×6회 | L191: = | M191: =ROUNDDOWN(O191/1000,0) -> 2,520 | O191: 2,520,000 | P191: 14,000 | R191: 30 | S191: 6
K192: - 방독필터 : 13,000원×30명×6회 | L192: = | M192: 2,340 | O192: 2,340,000 | P192: 13,000 | R192: 30 | S192: 6
K193: ○ 환경사원 목욕비 : 4,000원×272명×26회×12월 | L193: = | M193: 339,456 | O193: =P193*R193*S193*T193 -> 339,456,000 | P193: 4,000 | R193: 272 | S193: 26 | T193: 12
K194: ○ 환경사원 맞춤형 복지비 : 1,000,000원×275명×0.98 | L194: = | M194: 0 | O194: 0 | P194: 1,000,000 | R194: 0 | U194: 0.98
K195: ○ 휴게실 모포 세탁비 : 8,000원x50개x3회 | L195: = | M195: =ROUNDDOWN(O195/1000,0) -> 1,200 | O195: =P195*R195*S195 -> 1,200,000 | P195: 8,000 | R195: 50 | S195: 3
K196: ○ 벌레물림약 구입비 : 10,000원x80개 | L196: = | M196: 800 | O196: =P196*R196 -> 800,000 | P196: 10,000 | R196: 80
K197: ○ 폭염대비 식염포도당 구입비 : 15,000원x20개 | L197: = | M197: 300 | O197: =P197*R197 -> 300,000 | P197: 15,000 | R197: 20
K198: ○ 급량비 : 8,000원×6명×12회×12월 | L198: = | M198: 6,912 | O198: =P198*R198*S198*T198 -> 6,912,000 | P198: 8,000 | R198: 6 | S198: 12 | T198: 12
K199: ○ 경미한 부상(공상)에 따른 치료비 및 약제비 : 500,000원x12개월 | L199: = | M199: =ROUNDDOWN(O199/1000,0) -> 6,000 | O199: =P199*R199*S199 -> 6,000,000 | P199: 500,000 | R199: 1 | S199: 12
D200: 환경사원 복지관 유지보수 | H200: =H201 -> 311,200 | I200: =I201 -> 418,200 | J200: =H200-I200 -> △107,000
... 87 more rows

Sheet 체육시설팀
A1: 다. 지출예산(세부사업) - 체육시설팀 | M1: 단위 : 천원
A2: 구 분 | B2: 사업 | E2: 편성목 | H2: 당년도예산액 (A) | I2: 전년도예산액 (B) | J2: 증 감 (A-B) | K2: 산 출 기 초
B3: 정책 | C3: 단위 | D3: 세부 | E3: 그룹 | F3: 목 | G3: 세목
A4: 총계(사업예산 + 자본예산) | H4: =H5+H319 -> 2,024,994 | I4: =I5+I319 -> 2,623,648 | J4: =H4-I4 -> △598,654
A5: 사업예산 | H5: =H6 -> 1,999,638 | I5: =I6 -> 2,583,748 | J5: △584,110
B6: 체육시설 대행사업 | H6: =H7+H135+H240 -> 1,999,638 | I6: =I7+I135+I240 -> 2,583,748 | J6: △584,110
C7: 진남수영장 수탁 대행사업 | H7: =H8+H102 -> 1,029,364 | I7: =I8+I102 -> 1,254,794 | J7: △225,430
D8: 진남수영장 운영 및 관리 | H8: =H9+H21 -> 958,110 | I8: =I9+I21 -> 1,183,390 | J8: △225,280
E9: 100 인건비 | H9: =H10 -> 171,587 | I9: =I10 -> 441,033 | J9: △269,446
F10: 101 인건비 | H10: =H11+H12 -> 171,587 | I10: =I11+I12 -> 441,033 | J10: △269,446
G11: 03 무기계약근로자보수 | H11: 0 | I11: 414,880 | J11: △414,880 | K11: 03 무기계약근로자보수(본부 일괄 편성) | M11: 0 | N11: ○ 수영강사 공무직 전환으로 본부 일괄 편성
G12: 04 기간제근로자보수 | H12: =M12 -> 171,587 | I12: 26,153 | J12: 145,434 | K12: 04 기간제근로자 보수(2023년 여수시 생활임금) | M12: =M13 -> 171,587
K13: ○ 체육시설팀 매표, 수영강사, 수상안전요원, 환경 대체인력 인건비 | L13: = | M13: =SUM(M14:M20) -> 171,587 | N13: ○ 직원 병가 및 휴직 등 공백발생 시 채용(인건비 23년 기준)
K14: - 기본급 : 10,380원*8시간*6명*5일*44주 | L14: = | M14: =ROUND(P14*Q14*R14*S14*T14/1000,0) -> 109,613 | P14: 10,380 | Q14: 8 | R14: 6 | S14: 5 | T14: 44
K15: - 휴일근무수당 : 10,380원*8시간*150%*6명*44주 | L15: = | M15: =ROUND(P15*Q15*R15*S15*T15/1000,0) -> 32,884 | P15: 10,380 | Q15: 8 | R15: 1.5 | S15: 6 | T15: 44
K16: - 야간근무수당 : 10,380원*0.5시간*50%*6명*44주 | L16: = | M16: =ROUND(P16*Q16*R16*S16*T16/1000,0) -> 685 | P16: 10,380 | Q16: 0.5 | R16: 0.5 | S16: 6 | T16: 44
K17: - 연차휴가수당 : 10,380원*8시간*6명*10일 | L17: = | M17: =ROUND(P17*Q17*R17*S17/1000,0) -> 4,982 | P17: 10,380 | Q17: 8 | R17: 6 | S17: 10
K18: - 주휴수당 : 10,380원*8시간*5명*44주 | L18: = | M18: =ROUND(P18*Q18*R18*S18/1000,0) -> 21,923 | P18: 10,380 | Q18: 8 | R18: 6 | S18: 44
K19: - 강습수당 : 50,000원*1명*10개월 | L19: = | M19: =ROUND(P19*Q19*R19/1000,0) -> 500 | P19: 50,000 | Q19: 1 | R19: 10
K20: - 자격수당 : 50,000원*2명*10개월 | L20: = | M20: =ROUND(P20*Q20*R20/1000,0) -> 1,000 | N20: ○ 생체자격증 보유시 | P20: 50,000 | Q20: 2 | R20: 10
E21: 200 물건비 | H21: =H22+H92+H96 -> 786,523 | I21: =I22+I92+I96 -> 742,357 | J21: =H21-I21 -> 44,166 | M21: =M22+M346+M352+M355+M410 -> 0
F22: 201 일반운영비 | H22: =H23+H41+H69+H72+H82 -> 751,243 | I22: 702,477 | J22: =H22-I22 -> 48,766
G23: 01 사무관리비 | H23: =M23 -> 23,800 | I23: 33,850 | J23: =H23-I23 -> △10,050 | K23: 01 일반수용비 | M23: =SUM(M24:M32)+M37+M38+M39+M40 -> 23,800
K24: ○ (신규) 알약임대 : 26,000 * 21대 | L24: = | M24: =ROUNDUP(P24*Q24/1000,0) -> 546 | N24: ○ 진남수영장 PC알약 설치 | P24: 26000 | Q24: 21
K25: ○ (신규) 소프트웨어(한글, ms오피스)구입비 : 670,000원*1식 | L25: = | M25: =ROUNDUP(P25*Q25/1000,0) -> 670 | N25: ○ 한글 250천원, ms오피스 420천원 | P25: 670000 | Q25: 1
K26: ○ 회원카드 구입 : 1,000장 *400원 | L26: = | M26: =ROUNDUP(P26*Q26/1000,0) -> 400 | N26: ○회원카드 분실 및 신규회원 대비 구매 | P26: 1000 | Q26: 400
K27: ○ 영수증 용지 구입 : 80,000원*6박스*2회 | L27: = | M27: =ROUNDUP(P27*Q27*R27/1000,0) -> 960 | N27: ○수영장 영수증 용지 구입(친환경용지) | P27: 80,000 | Q27: 6 | R27: 2
K28: ○ 무인발권기 입장권 용지 구입 : 80,000원*3박스*2회 | L28: = | M28: =ROUNDUP(P28*Q28*R28/1000,0) -> 480 | N28: ○무인 발권기 용지 구입(친환경용지) | P28: 80000 | Q28: 3 | R28: 2
K29: ○ 사무용품 구입비 : 300,000원*12월 | L29: = | M29: =ROUNDUP(P29*Q29/1000,0) -> 3,600 | N29: ○기타 사무용품 구입 | P29: 300000 | Q29: 12
K30: ○ 소모성 공구류 구입 : 250,000원*2회 | L30: = | M30: =ROUNDUP(P30*Q30/1000,0) -> 500 | N30: ○소모성 공구류 구입비 | P30: 250000 | Q30: 2
K31: ○ 쓰레기 종량제 봉투 75L : 100장*1,800원*12월 | L31: = | M31: =ROUNDUP(P31*Q31*R31/1000,0) -> 2,160 | N31: ○쓰레기 종량제 봉투 구입 | P31: 100 | Q31: 1800 | R31: 12
K32: ○ 프린터 토너 구입 | L32: = | M32: =SUM(M33:M36) -> 2,400 | N32: ○사무실1, 카운터1, 카운터2, 강사실1
K33: - 블랙 : 250,000원*2대*1개 | M33: 500
K34: - 칼라 : 400,000원*2대*1개 | M34: 800
K35: - 드럼 : 450,000원*2대*1개 | M35: 900
K36: - 회수통 : 100,000원*1대*2개 | M36: 200
K37: ○ 리플릿 및 현수막 제작비 : 66,000원*2회*12월 | L37: = | M37: =ROUNDUP(P37*Q37*R37/1000,0) -> 1,584 | N37: ○리플릿, 현수막 제작비 | P37: 66,000 | Q37: 2 | R37: 12
K38: ○ 시설관리 청소용품 및 위생용품 구입 : 750,000원*12월 | L38: = | M38: =ROUNDUP(P38*Q38/1000,0) -> 9,000 | N38: ○점보롤휴지 ,핸드타올, 면봉, 락스, 세정제 등 | P38: 750,000 | Q38: 12
K39: ○ 전산소모품 구입비 :75,000원*12월 | L39: = | M39: =ROUNDUP(P39*Q39/1000,0) -> 900 | P39: 75,000 | Q39: 12
K40: ○ 자동심장충격기 카트리지 구입 : 300,000원*1회*2대 | L40: = | M40: =ROUNDUP(P40*Q40/1000,0) -> 600 | N40: ○ 자동심장충격기 카트리지 구입 (유효기간 24.2.) | P40: 300,000 | Q40: 2
G41: 11 지급수수료 | H41: =M41 -> 122,198 | I41: 122,292 | J41: =H41-I41 -> △94 | K41: 11 지급수수료 | M41: =SUM(M42:M68) -> 122,198
K42: ○ (법정)보일러 대기배출시설 자가측정 용역비 : 2,000,000원*2회 | L42: = | M42: 4,000 | N42: ○법적 대기배출시설 자가측정 용역비(연1회) | P42: 2,000,000 | Q42: 2
K43: ○ 승강기 유지보수 비용 : 160,000원*12회 | L43: = | M43: =ROUNDUP(P43*Q43/1000,0) -> 1,920 | N43: ○유지보수 관리계약 | P43: 160,000 | Q43: 12
K44: ○ (법정)방역 소독비 : 880,000원*5회 | L44: = | M44: 4,400 | N44: ○법적 방역소독 5회 / 수목 소독 2회 | P44: 880,000 | Q44: 5
K45: ○ (법정)도시가스 정기점검 수수료 : 500,000원*1회 | L45: = | M45: 500 | N45: ○법적 정기검사 실시 | P45: 500,000 | Q45: 1
K46: ○ (법정)수영장 수질검사 수수료 : 50,000원*4회 | L46: = | M46: 200 | N46: ○법적 검사 실시 | P46: 50,000 | Q46: 4
K47: ○ 무인경비 시스템 수수료 : 285,000원*12월 | L47: = | M47: 3,420 | N47: ○무인경비(에스원) 수수료 지불(분기별) | P47: 285,000 | Q47: 12
K48: ○ CCTV 임대료 : 50,000원*12월 | L48: = | M48: 600 | N48: ○무인경비(에스원) 수수료 지불(분기별) | P48: 50,000 | Q48: 12
K49: ○ 설비 유지관리 시스템 관리 : 350,000원*12월 | L49: = | M49: 4,200 | N49: ○시설관리 전산프로그램 사용 수수료 | P49: 350,000 | Q49: 12
K50: ○ 보일러 정기검사비 : 1,200,000원*1회 | L50: = | M50: 1,200 | N50: ○ 사용중검사, 성능검사 각 연 1회(보일러 3대) | P50: 1,200,000 | Q50: 1
K51: ○ 신용카드 결제대행수수료 : 1,900,000원*12월 | L51: = | M51: 22,800 | N51: ○ 신용카드 결제에 따른 카드사 결제대행수수료 | P51: 1,900,000 | Q51: 12
K52: ○ (법정)정기안전점검 용역비 : 4,800,000원*2회 | L52: = | M52: 9,600 | N52: ○법적 정기정검 2회 | P52: 4,800,000 | Q52: 2
K53: ○ (법정)전기연차점검 : 4,000,000원*1회 | L53: = | M53: 4,000 | N53: ○법적 전기 연차 점검 | P53: 4,000,000 | Q53: 1
K54: ○ (법정)소방작동기능점검 : 1,000,000원*2회 | L54: = | M54: 2,000 | N54: ○법적 소방 점검 | P54: 1,000,000 | Q54: 2
K55: ○ (법정)승강기 정기검사 수수료 : 130,000원*1회 | L55: = | M55: 130 | N55: ○승강기시설안전관리법에 의한 안전관리 대행 | P55: 130,000 | Q55: 1
K56: ○ (법정)보일러 세관 용역비 : 7,900,000원*1회 | L56: = | M56: =ROUNDUP(P56*Q56/1000,0) -> 7,900 | N56: ○보일러 관체 내부 약품 세척 용역비 | P56: 7,900,000 | Q56: 1
K57: ○ 보일러 유지관리 용역비 : 2,000,000원*1회 | L57: = | M57: 2,000 | N57: ○진남수영장 보일러 유지보수 계약비 | P57: 2,000,000 | Q57: 1
K58: ○ 통합회원관리 시스템 유지관리 용역비 : 370,000원*12월 | L58: = | M58: 4,440 | N58: ○진남수영장 회원관리 프로그램 용역비 | P58: 370,000 | Q58: 12
K59: ○ 냉난방기 유지관리 용역비 : 700,000원*4회 | L59: = | M59: 2,800 | N59: ○부품비 별도 관리(수선유지비) * 실외기 3대 / 실내기 31대 | P59: 700,000 | Q59: 4
K60: ○ 서버 유지관리 용역비 : 850,000원*12월 | L60: = | M60: 10,200 | N60: ○수영장 회원관리 프로그램 서버 유지관리 용역비 | P60: 850,000 | Q60: 12
K61: ○ 수영장 발란싱 탱크 청소 용역비 : 1,400,000원*1회 | L61: = | M61: 1,400 | N61: ○수영장 수질개선을 위한 물탱크 청소 | P61: 1,400,000 | Q61: 1
K62: ○ 기계실 집수정 내부 청소 용역비 : 300,000원*4대*1회 | L62: = | M62: 1,200 | N62: ○기계실 배수용 펌프 내부 청소 용역비 | P62: 300,000 | Q62: 4
K63: ○ 저수조 탱크 청소 용역비 : 1,200,000원*2회 | L63: = | M63: 2,400 | N63: ○저수조 청소 용역비 | P63: 1,200,000 | Q63: 2
K64: ○ 수영장 바닥타일 청소 용역비 : 1,300,000원*13회 | L64: = | M64: 16,900 | N64: ○월1회 수영장 내부 바닥청소 용역비(하계 월2회) | P64: 1,300,000 | Q64: 13
K65: ○ 수영장 주변 조경 및 제초 용역비 : 3,000,000원*3회 | L65: = | M65: 9,000 | N65: ○ 년 4회(5월, 7월, 9월 ,11월) 수영장 조경관리 예초, 제초작업 용역비 | P65: 3,000,000 | Q65: 3
K66: ○ (신규)비상안심벨 임대료 : 224,000원*12월 | L66: = | M66: 2,688 | N66: ○ 진남수영장 비상안심벨(6대) 임대료 | P66: 224,000 | Q66: 12
K67: ○ (신규)가스 정압기 분해점검 용역비 : 2,000,000원 *1회 | L67: = | M67: 2,000 | P67: 2,000,000 | Q67: 1
K68: ○ 생존수영 재인증 용역비 : 300,000원 *1회 | L68: = | M68: 300 | N68: ○ 년 1회 생존수영 인증 | P68: 300,000 | Q68: 1
G69: 13 임차료 | H69: =M69 -> 8,100 | I69: 5,076 | J69: =H69-I69 -> 3,024 | K69: 13 임차료 | M69: =SUM(M70:M71) -> 8,100
K70: ○ 수영장 운영관련 물품(정수기 및 공기청정기 등) 임차료 : 90,000원*5대*12월 | L70: = | M70: =ROUNDUP(P70*Q70*R70/1000,0) -> 5,400 | N70: ○공기청정기 및 정수기 등 임차료 납부 | P70: 90,000 | Q70: 5 | R70: 12
K71: ○ 복합기 임차료 : 225,000원*1대*12월 | L71: = | M71: =ROUNDUP(P71*Q71*R71/1000,0) -> 2,700 | N71: ○복합기 임대료(1대) 지급 | P71: 225,000 | Q71: 1 | R71: 12
G72: 15 복리후생비 | H72: =M72 -> 33,470 | I72: 33,660 | J72: =H72-I72 -> △190 | K72: 15 복리후생비 | M72: =M73+M74+M75+M77+M79+M81 -> 33,470
K73: ○ 피복비(체육시설팀) : 60,000원*2회*56명 | L73: = | M73: =ROUNDUP(P73*Q73*R73/1000,0) -> 6,720 | N73: ○ 체육시설팀(56명) 근무복 | P73: 60,000 | Q73: 2 | R73: 56
K74: ○ 강습용 슈트, 수경, 수모, 수영복 등 구입비(체육시설팀) : 300,000원*2회*18명 | L74: = | M74: =ROUNDUP(P74*Q74*R74/1000,0) -> 10,800 | N74: ○수영장(진남,망마) 수영강사 강습관련 장비 구입 | P74: 300,000 | Q74: 2 | R74: 18
K75: ○ 급량비(체육시설팀) | L75: = | M75: =SUM(M76:M76) -> 7,200
K76: - 8,000원 * 5명 * 15일 * 12월 | M76: =ROUNDUP(P76*Q76*R76*S76/1000,0) -> 7,200 | N76: ○진남 2, 망마 2, 장애인 2 | P76: 8,000 | Q76: 5 | R76: 15 | S76: 12
K77: ○ 간식비 | L77: = | M77: =SUM(M78:M78) -> 7,800
K78: - 수영강사 : 3,000원*10명*5일*52주 | M78: =ROUNDUP(P78*Q78*R78*S78/1000,0) -> 7,800 | N78: ○수영강사 10명 간식비 | P78: 3,000 | Q78: 10 | R78: 5 | S78: 52
K79: ○ 안전용품(안전화, 안전모 등) 구입비 | L79: = | M79: =SUM(M80:M80) -> 450
K80: - 150,000원 * 3회 | M80: =ROUNDUP(P80*Q80/1000,0) -> 450 | N80: ○안전장구류 안전화, 안전모 등 안전에 관한 개인장구류 구입 | P80: 150,000 | Q80: 3
K81: ○ 진남수영장 구급함 및 비상약품 등 구입비 : 250,000*2회 | L81: = | M81: =ROUNDUP(P81*Q81/1000,0) -> 500 | N81: ○의약품, 자가진단키트, 마스크 등 구입비 | P81: 250,000 | Q81: 2
G82: 21 공공요금 및 제세 | H82: =M82 -> 563,675 | I82: 507,599 | J82: =H82-I82 -> 56,076 | K82: 21 공공요금 및 제세 | M82: =SUM(M83:M91) -> 563,675
K83: ○ (법정)주민세 : 250원*6,496㎡ | L83: = | M83: 1,624 | N83: ○ 연 1회 법정 주민세(재산분) 납부
K84: ○ 상하수도 요금 : 21,000,000원*12월 | L84: = | M84: =ROUNDUP(P84*Q84/1000,0) -> 252,000 | N84: ○ 23년도 이용객 증가, 요금의 단가 상승분 반영 | P84: 21,000,000 | Q84: 12
K85: ○ 도시가스 요금 : 17,000,000원*12월 | L85: = | M85: 204,000 | N85: ○ 23년도 이용객 증가, 요금의 단가 상승분 반영 | P85: 17,000,000 | Q85: 12
K86: ○ 전기 요금 : 8,000,000원*12월 | L86: = | M86: 96,000 | N86: ○ 23년도 이용객 증가, 요금의 단가 상승분 반영 | P86: 8,000,000 | Q86: 12
K87: ○ 통신요금(전화기,인터넷) : 500,000원*12월 | L87: = | M87: 6,000 | P87: 500,000 | Q87: 12
K88: ○ (법정)도시가스사고배상책임보험 : 20,000원*1회 | L88: = | M88: 20 | N88: ○연 1회 법정 책임보험 가입 | P88: 20,000 | Q88: 1
K89: ○ (법정)승강기사고배상책임보험 : 35,000원*1회 | L89: = | M89: 35 | N89: ○연 1회 법정 책임보험 가입 | P89: 35,000 | Q89: 1
K90: ○ (신규)비상안심벨 통신비 : 33,000원*12월 | L90: = | M90: 396 | N90: ○ 화장실 비상안심벨 설치에 따른 통신비 | P90: 33,000 | Q90: 12
K91: ○ 문자메시지 요금 : 300,000원*12월 | L91: = | M91: 3,600 | N91: ○문자메시지 발송요금 | P91: 300,000 | Q91: 12
F92: 202 여비 | H92: =H93 -> 23,580 | I92: 28,180 | J92: =H92-I92 -> △4,600
G93: 01 국내여비 | H93: =M93 -> 23,580 | I93: 28,180 | J93: =H93-I93 -> △4,600 | K93: 01 국내여비(체육시설팀) | M93: =SUM(M94:M95) -> 23,580
K94: ○ 관내여비 : 20,000원*8명*11일*12월 | L94: = | M94: =ROUNDUP(P94*Q94*R94*S94/1000,0) -> 18,480 | N94: ○팀장1, 진남3, 망마3, 장애인3 | P94: 20,000 | Q94: 7 | R94: 11 | S94: 12
K95: ○ 관외여비 : 85,000원*5명*3일*4회 | L95: = | M95: =ROUNDUP(P95*Q95*R95*S95/1000,0) -> 5,100 | N95: ○팀장1, 진남3, 망마3, 장애인3 | P95: 85,000 | Q95: 5 | R95: 3 | S95: 4
F96: 217 관서업무비 | H96: =H97 -> 11,700 | I96: 11,700 | J96: =H96-I96 -> 0
G97: 02 부서업무비 | H97: =M97 -> 11,700 | I97: 11,700 | J97: =H97-I97 -> 0 | K97: 02 부서운영업무비 | M97: =M98 -> 11,700 | N97: ○ 회의개최 시 음식물 및 다과, 체육대회 식대 포함 (1년이상 근로계약을 체결하는 비정규직 포함)
K98: ○ 부서운영비(체육시설팀) | M98: =SUM(M99:M101) -> 11,700
K99: - 진남수영장(27명) : 400,000원 * 12월 | L99: = | M99: 4,800 | N99: ○30인이하 400,000원
K100: - 망마국민체육센터(24명) : 400,000원 * 12월 | L100: = | M100: 4,800 | N100: ○30인이하 400,000원
K101: - 장애인국민체육센터(7명) : 175,000원 * 12월 | L101: = | M101: 2,100 | N101: ○10인이하 175,000원
D102: 진남수영장 시설 유지보수 | H102: =H103 -> 71,254 | I102: =I103 -> 71,404 | J102: =H102-I102 -> △150
E103: 200 물건비 | H103: =H104+H113 -> 71,254 | I103: =I104+I113 -> 71,404 | J103: =H103-I103 -> △150 | M103: =M319+M463+M469+M472+M527 -> 0
F104: 206 재료비 | H104: =H105+H107 -> 10,354 | I104: 10,354 | J104: =H104-I104 -> 0
G105: 01 일반재료비 | H105: =M105 -> 1,000 | I105: 1,000 | J105: =H105-I105 -> 0 | K105: 01 일반재료비 | M105: =M106 -> 1,000
K106: ○ 방역소독약품 구입 : 500,000원*2회 | L106: = | M106: 1,000 | N106: ○수영장내/외부벌레퇴치약품살포/감염병예방약품 | P106: 500,000 | Q106: 2
G107: 02 약품비 | H107: =M107 -> 9,354 | I107: 9,354 | J107: =H107-I107 -> 0 | K107: 02 약품비 | M107: =SUM(M108:M112) -> 9,354
K108: ○ 정제염 소금 구입 : 8,800원*15포*12월 | L108: = | M108: =ROUNDUP(P108*Q108*R108/1000,0) -> 1,584 | N108: ○차염소산나트륨 발생기 소금 투입 | P108: 8,800 | Q108: 15 | R108: 12
K109: ○ 보일러 청관제 구입 : 60,000원*3통*12월 | L109: = | M109: =ROUNDUP(P109*Q109*R109/1000,0) -> 2,160 | N109: ○보일러 내부 관체 윤활제 구입 | P109: 60,000 | Q109: 3 | R109: 12
K110: ○ 응집제 구입 : 2,,000원(1L)*12통*12월 | L110: = | M110: =ROUNDUP(P110*Q110*R110/1000,0) -> 3,168 | N110: ○수영장 수질개선 응집제 구입 | P110: 22,000 | Q110: 12 | R110: 12
K111: ○ PH조절제 구입 : 33,000원*10통*1회 | L111: = | M111: =ROUNDUP(P111*Q111*R111/1000,0) -> 330 | N111: ○수영장 수질개선 PH조절제 구입 | P111: 33,000 | Q111: 10 | R111: 1
K112: ○ 탁도개선제 : 22,000원*8통*12월 | L112: = | M112: =ROUNDUP(P112*Q112*R112/1000,0) -> 2,112 | N112: ○수영장 수질개선 탁도개선제 구입 | P112: 22,000 | Q112: 8 | R112: 12
F113: 214 수선유지교체비 | H113: =H114 -> 60,900 | I113: 61,050 | J113: =H113-I113 -> △150
G114: 02 수선유지비 | H114: =M114 -> 60,900 | I114: 61,050 | J114: =H114-I114 -> △150 | K114: 02 수선유지비 | L114: = | M114: =SUM(M115:M134) -> 60,900
K115: ○ 수영장 내부 대정비 타일청소 : 3,000,000원*1식 | L115: = | M115: =ROUNDUP(P115*Q115/1000,0) -> 3,000 | N115: ○ 연 1회 대정비 타일청소(수영조 내/외부) | P115: 3,000,000 | Q115: 1
K116: ○ 냉난방기 유지보수 부품 구입 : 100,000원*31대(실내기) | L116: = | M116: 3,100 | N116: ○ 에어컨 유지관리 부품비 | P116: 100,000 | Q116: 31
K117: ○ 수중청소기 유지관리비 : 800,000원*2회 | L117: = | M117: 1,600 | N117: ○ 수중청소기 2대 수리비 | P117: 800,000 | Q117: 2
K118: ○ 소방설비 유지관리비 : 200,000원*12월 | L118: = | M118: 2,400 | N118: ○ 소방설비 유지관리비(화재감지기, 소화기 등) | P118: 200000 | Q118: 12
K119: ○ 전기설비 유지관리비 : 300,000원*12월 | L119: = | M119: 3,600 | N119: ○ 전기설비 유지관리비(차단기, 휴즈 등) | P119: 300000 | Q119: 12
K120: ○ 고압세척기 유지관리비 : 400,000원*2대 | L120: = | M120: 800 | N120: ○ 청소용 고압세척기 수리비 | P120: 400000 | Q120: 2
K121: ○ 수영장 네트워크 시스템 수리비 : 2,000,000원*1식 | L121: = | M121: 2,000 | N121: ○ 수영장 인터넷, 발권기 포스 수리비 | P121: 2000000 | Q121: 1
K122: ○ 기계실 센서류 구입비 : 2,000,000원*1식 | L122: = | M122: 2,000 | N122: ○ 저수조탱크, 응축수탱크, 발란싱탱크 센서 구입비 | P122: 2000000 | Q122: 1
K123: ○ 기계실 장비 및 배관 유지보수 : 2,000,000원*1식 | L123: = | M123: 2,000 | N123: ○ 기계실 설비 배관 유지관리비 | P123: 2000000 | Q123: 1
K124: ○ 수영장 및 로비 전광판 수리비 : 2,000,000원*1식 | L124: = | M124: 2,000 | N124: ○ 수영장 내부 및 로비 전광판 수리비 | P124: 2000000 | Q124: 1
K125: ○ 샤워실 및 수영장 내부 소모성 자재 구입 : 2,000,000원*1식 | L125: = | M125: 2,000 | N125: ○ 샤워기 헤드, 수영장 트렌치커버 등 수리비 | P125: 2,000,000 | Q125: 1
K126: ○ 수영장 내부 타일 보수 및 교체 : 15,000,000원*1식 | L126: = | M126: 15,000 | N126: ○ 수영장 내부 들뜸 등 타일 교체 및 수리비 | P126: 15,000,000 | Q126: 1
K127: ○ (신규)기계실 순환펌프 체크밸브 교체 : 2,000,000원*2대 | L127: = | M127: 4,000 | N127: ○ 기계실 순환라인 체크밸브 교체 | P127: 2,000,000 | Q127: 2
K128: ○ (신규)GHP 실외기(1,3호기) 소모품 교체 : 2,000,000원*2대 | L128: = | M128: 4,000 | N128: ○ GHP 실외기 정기 소모품 교체(1호, 3호기) | P128: 2,000,000 | Q128: 2
K129: ○ (신규)GHP 실외기 유지관리비(콤프) : 3,000,000원*1식 | L129: = | M129: 3,000 | N129: ○ GHP 실외기 콤프레샤 교체 예비비 | P129: 3,000,000 | Q129: 1
K130: ○ (신규)보일러 경수연화장치 수지 교체 : 1,200,000원*2대 | L130: = | M130: 2,400 | N130: ○ 보일러 경수연화장치 수지 교체 | P130: 1,200,000 | Q130: 2
K131: ○ (신규)수영장 PT층 누수부위 방수 공사 : 200,000원*15개소 | L131: = | M131: 3,000 | N131: ○ 23년 민관합동점검 지적사항 | P131: 200,000 | Q131: 15
K132: ○ (신규)수영장 좌측 출입문 상부 환풍기 설치 : 250,000원*4대 | L132: = | M132: 1,000 | N132: ○ 상반기 정기안전점검 지적사항 | P132: 250,000 | Q132: 4
K133: ○ (신규)캣워크 볼트 부식부위 수리 : 150,000원*10개소 | L133: = | M133: 1,500 | N133: ○ 23년 민관합동점검 지적사항 | P133: 150,000 | Q133: 10
K134: ○ (신규)진남수영장 고객쉼터 바닥 보수 : 2,500,000*1식 | L134: = | M134: 2,500 | N134: ○ 1층 로비 앞 고객쉼터 바닥 보수 비용 | P134: 2,500,000 | Q134: 1
C135: 망마국민체육센터 수탁 대행사업 | H135: =H136+H206 -> 745,283 | I135: =I136+I206 -> 1,112,544 | J135: =H135-I135 -> △367,261
D136: 망마국민체육센터 운영 및 관리 | H136: =H137+H149 -> 673,743 | I136: =I137+I149 -> 1,038,366 | J136: =H136-I136 -> △364,623
E137: 100 인건비 | H137: =H138+H139 -> 156,863 | I137: =I138+I139 -> 546,495 | J137: =H137-I137 -> △389,632 | M137: =M319+M465+M471+M474+M529 -> 0
G138: 03 무기계약근로자보수 | H138: 0 | I138: 333,910 | J138: =H138-I138 -> △333,910 | K138: 03 무기계약근로자보수(본부 일괄 편성) | M138: 0
G139: 04 기간제근로자등보수 | H139: =M139 -> 156,863 | I139: 212,585 | J139: △55,722 | K139: 04 기간제근로자등보수(2023년 여수시 생활임금) | M139: =M140+M147 -> 156,863 | N139: ○ 수영강사 공무직 전환으로 본부 일괄 편성
K140: ○ 환경미화 기간제근로자 인건비 | M140: =SUM(M141:M146) -> 144,863
K141: - 기본급 : 10,380원*8시간*4명*5일*52주 | L141: = | M141: =ROUND(P141*Q141*R141*S141*T141/1000,0) -> 86,362 | N141: - 일급 83,040원(10,380원*8시간) | P141: 10,380 | Q141: 8 | R141: 4 | S141: 5 | T141: 52
K142: - 주휴수당 : 10,380원*8시간*4명*52주 | L142: = | M142: =ROUND(P142*Q142*R142*S142/1000,0) -> 17,272 | P142: 10,380 | Q142: 8 | R142: 4 | S142: 52
K143: - 휴일근무수당 : 10,380원*8시간*150%*4명*52주 | L143: = | M143: =ROUND(P143*Q143*R143*S143*T143/1000,0) -> 25,908 | N143: '- 주말 운영에 따른 초과근무 | P143: 10,380 | Q143: 8.0 | R143: 1.5 | S143: 4 | T143: 52
K144: - 야간근무수당 : 10,380원*0.5시간*50%*4명*5일*52주 | L144: = | M144: =ROUND(P144*Q144*R144*S144*T144*U144/1000,0) -> 2,699 | N144: '- 새벽출근(05:30)에 따른 야간근무 | P144: 10,380 | Q144: 0.5 | R144: 0.5 | S144: 4 | T144: 5 | U144: 52
K145: - 연차휴가수당 : 10,380원*8시간*4명*12일 | L145: = | M145: =ROUND(P145*Q145*R145*S145/1000,0) -> 3,986 | P145: 10,380 | Q145: 8 | R145: 4 | S145: 12
K146: - 휴일전담 단시간근로자 인건비 : 10,380원*8시간*1명*2일*52주 | L146: = | M146: =ROUND(P146*Q146*R146*S146*T146/1000,0) -> 8,636 | N146: - 주말근무자 인건비 | P146: 10,380 | Q146: 8 | R146: 1 | S146: 2 | T146: 52
K147: ○ 아쿠아로빅강사 인건비 | M147: =M148 -> 12,000
K148: - 아쿠아로빅 강사 인건비 : 1,000,000원*1명*12개월 | L148: = | M148: =ROUND(P148*Q148*R148/1000,0) -> 12,000 | N148: - 아쿠아로빅 월 정액 급여 : 1,000,000원 | P148: 1,000,000 | Q148: 1 | R148: 12
E149: 200 물건비 | H149: =H150 -> 516,880 | I149: =I150 -> 491,871 | J149: =H149-I149 -> 25,009 | M149: =M329+M477+M483+M486+M541 -> 0
F150: 201 일반운영비 | H150: =H151+H169+H189+H192+H196 -> 516,880 | I150: =I151+I169+I189+I192+I196 -> 491,871 | J150: =H150-I150 -> 25,009
G151: 01 사무관리비 | H151: =M151 -> 25,660 | I151: 34,924 | J151: =H151-I151 -> △9,264 | K151: 01 사무관리비 | M151: =SUM(M152:M168) -> 25,660
K152: ○ (신규) 한글,엑셀 등 소프트웨어구입비 : 670,000원*1식 | L152: = | M152: =ROUND(P152*Q152*R152/1000,0) -> 670 | N152: ○ 한글 250천원, ms오피스 420천원 | P152: 670,000 | Q152: 1 | R152: 1
K153: ○ (신규) 알약임대 : 26,000원*16대 | L153: = | M153: =ROUND(P153*Q153/1000,0) -> 416 | N153: ○ 알약 임대비용 | P153: 26,000 | Q153: 16
K154: ○ 영수증 용지 구입 : 80,000원*6박스*2회(1박스/50롤) | L154: = | M154: =ROUND(P154*Q154*R154/1000,0) -> 960 | N154: ○ 카드 결제에 따른 영수증 용지 구입 | P154: 80,000 | Q154: 6 | R154: 2
K155: ○ 무인발매기 용지 구입 : 300,000원*2박스 | L155: = | M155: =ROUND(P155*Q155/1000,0) -> 600 | N155: ○ 1box 12롤 | P155: 300,000 | Q155: 2
K156: ○ 종량제봉투(75L) 구입 : 1,800원*3개소*23일*12개월 | L156: = | M156: =ROUND(P156*Q156*R156*S156/1000,0) -> 1,490 | N156: ○ 쓰레기수수료종량제 시행지침에 따른 폐기물 처리 | P156: 1,800 | Q156: 3 | R156: 23 | S156: 12
K157: ○ 복사기 카트리지 구입 : 1,200,000원*3회 | L157: = | M157: =ROUND(P157*Q157/1000,0) -> 3,600 | N157: ○ 복사기 잉크, 폐토너통, 드럼 등 구입 | P157: 1,200,000 | Q157: 3
K158: ○ 일직 수당 : 60,000원*2명*10회 | L158: = | M158: =ROUND(P158*Q158*R158/1000,0) -> 1,200 | N158: ○ 명절 등 비상근무 투입 시 일직근무 수당 | P158: 60,000 | Q158: 2 | R158: 10
K159: ○ 숙직 수당 : 60,000원*2명*10회 | L159: = | M159: =ROUND(P159*Q159*R159/1000,0) -> 1,200 | N159: ○ 명절 등 비상근무 투입 시 숙직근무 수당 | P159: 60,000 | Q159: 2 | R159: 10
K160: ○ 리플릿 및 현수막 제작 : 66,000원*2회*12개월 | L160: = | M160: =ROUND(P160*Q160*R160/1000,0) -> 1,584 | N160: ○ 홍보 및 안내용 제작물 제작 | P160: 66,000 | Q160: 2 | R160: 12
K161: ○ 화장실 위생용품 구입 : 400,000원*12개월 | L161: = | M161: =ROUND(P161*Q161/1000,0) -> 4,800 | N161: ○ 점보롤화장지, 면봉, 세정제, 핸드타올 등 구입 | P161: 400,000 | Q161: 12
K162: ○ 시설관리 청소용품 구입 : 100,000원*6개월*2회 | L162: = | M162: =ROUND(P162*Q162*R162/1000,0) -> 1,200 | N162: ○ 청소 도구, 용품(타올, 비누 등) 구입 | P162: 100,000 | Q162: 6 | R162: 2
K163: ○ 소규모 전자제품 구입 : 300,000원*4회 | L163: = | M163: =ROUND(P163*Q163/1000,0) -> 1,200 | N163: ○ 벽걸이 선풍기, 헤어 드라이기, 탈수기 구입 | P163: 300,000 | Q163: 4
K164: ○ 수영장 시설 용품 등 구입 : 200,000원*5회 | M164: 1,000 | N164: ○ 수영 보조 도구(킥판,구명조끼) 등 구입 | P164: 200,000 | Q164: 5
K165: ○ 탈의실 내부 락커 키밴드 , 자물쇠 등 구입 : 10,000원*100개 | L165: = | M165: 1,000 | N165: ○ 탈의실 내부 락커 키 등 분실 및 노후화 교체 | P165: 10,000 | Q165: 100
K166: ○ 다목적체육관 시설 용품 등 구입 : 200,000원*5회 | L166: = | M166: 1,000 | N166: ○ 배드민턴 네트, 배구 용품 등 구입 | P166: 200,000 | Q166: 5
K167: ○ 전산소모품 구입 : 50,000원*10대 | L167: = | M167: 500 | N167: ○ 전산기기 등 소모품 구입 | P167: 50,000 | Q167: 10
K168: ○ 사무용품(복사용지 등) 구입 : 270,000원*12개월 | L168: = | M168: 3,240 | N168: ○ 사무용품, 복사용지 등 구입 | P168: 270,000 | Q168: 12
G169: 11 지급수수료 | H169: =M169 -> 63,933 | I169: 62,996 | J169: =H169-I169 -> 937 | K169: 11 지급수수료 | M169: =SUM(M170:M188) -> 63,933
K170: ○ (법정) 승강기 정기검사 수수료 : 130,000원*1회 | L170: = | M170: =ROUND(P170*Q170/1000,0) -> 130 | N170: ○ 연 1회 법정점검 실시 / 1대 | P170: 130,000 | Q170: 1
K171: ○ (법정) 도시가스 시설 정기검사 수수료 : 210,000원*1회 | L171: = | M171: 210 | N171: ○ 연 1회 법정점검 실시 | P171: 210,000 | Q171: 1
K172: ○ (법정) 수영장 수질검사 수수료 : 50,000원*4회 | L172: = | M172: 200 | N172: ○ 수영장 수질검사 수수료 (분기별 실시) | P172: 50,000 | Q172: 4
K173: ○ (법정) 저수조 수질검사 수수료 : 60,000원*1회 | L173: = | M173: 60 | N173: ○ 연 1회 법정점검 실시 | P173: 60,000 | Q173: 1
K174: ○ (법정) 기계실 저수조 청소 용역비 : 1,000,000원*2회 | L174: = | M174: 2,000 | N174: ○ 저수조 매년 2회 청소(수도법 33조) | P174: 1,000,000 | Q174: 2
K175: ○ (법정) 전기 연차 점검 용역비 : 1,700,000원*1회 | L175: = | M175: 1,700 | N175: ○ 연 1회 법정점검 실시 | P175: 1,700,000 | Q175: 1
K176: ○ (법정) 소방시설 정기 점검 용역비 : 1,000,000원*2회 | L176: = | M176: 2,000 | N176: ○ 연 2회 법정점검 실시 | P176: 1,000,000 | Q176: 2
K177: ○ (법정) 체육센터 내·외부 방역 용역비 : 600,000원*5회 | L177: = | M177: 3,000 | N177: ○ 센터 내부 및 주차장 방역 실시 | P177: 600,000 | Q177: 5
K178: ○ (법정) 대기배출시설 자가측정 용역비 : 1,500,000원*1회 | L178: = | M178: 1,500 | N178: ○ 연 1회 법정 점검 실시 (대기 환경 보존법 제39조) | P178: 1,500,000 | Q178: 1
K179: ○ (신규) 생존수영 재인증 용역비 : 300,000원*1식 | L179: = | M179: 300 | N179: ○ 생존수영 재인증 용역비 | P179: 300,000 | Q179: 1
K180: ○ (신규) 냉난방기 오버홀 세척 용역비 : 145,000원*21대*1회 | L180: = | M180: =ROUND(P180*Q180*R180/1000,0) -> 3,045 | N180: ○ 2년마다 냉난방기 세척 | P180: 145,000 | Q180: 21 | R180: 1
K181: ○ (신규) 비상안심벨 임대료 : 224,000원*12개월 | L181: = | M181: =ROUND(P181*Q181/1000,0) -> 2,688 | N181: ○ 화장실 비상안심벨 설치에 따른 임대료 | P181: 224,000 | Q181: 12
K182: ○ (신규) 무인경비 시스템 수수료 : 200,000원*12개월 | L182: = | M182: 2,400 | N182: ○ 진공온수보일러 교체에 따른 야간 비상주 | P182: 200,000 | Q182: 12
K183: ○ 신용카드 결제대행수수료 : 1,800,000원*12개월 | L183: = | M183: 21,600 | N183: ○ 사용료 신용카드 결제에 따른 카드사 결제대행 수수료 | P183: 1,800,000 | Q183: 12
K184: ○ 밸런싱탱크 청소 용역비 : 500,000원*1회 | L184: = | M184: 500 | N184: ○ 대정비 기간 중 내부 오염 청소 | P184: 500,000 | Q184: 1
K185: ○ 승강기 유지관리 용역비 : 150,000원*12개월 | L185: = | M185: 1,800 | N185: ○ 승강기 유지보수 관리계약 | P185: 150,000 | Q185: 12
K186: ○ 체육센터 건물 내,외부(천장 등) 청소 용역비 : 3,000,000원*1식 | L186: = | M186: 3,000 | N186: ○ 대정비기간 수영장 내부 전체 청소 실시(경영풀,유아풀,스파풀) | P186: 3,000,000 | Q186: 1
K187: ○ 통합회원관리 시스템 유지보수 용역비 : 1,200,000원*4회(분기별) | L187: = | M187: 4,800 | N187: ○ 통합 회원관리 프로그램 유지보수 계약 | P187: 1,200,000 | Q187: 4
K188: ○ 수영장 바닥 청소 용역비 : 1,000,000원*13회 | L188: = | M188: 13,000 | N188: ○ 수영장 바닥 청소 월 1회(하계 월 2회) | P188: 1,000,000 | Q188: 13
G189: 13 임차료 | H189: =M189 -> 5,112 | I189: 5,112 | J189: =H189-I189 -> 0 | K189: 13 임차료 | M189: =SUM(M190:M191) -> 5,112
K190: ○ 공기청정기 임차 : 42,000원*3대*12회 | L190: = | M190: =ROUND(P190*Q190*R190/1000,0) -> 1,512 | N190: ○ 공기청정기 4대 임차 | P190: 42,000 | Q190: 3 | R190: 12
K191: ○ 정수기 임차 : 45,000원*6대*12회 | L191: = | M191: 3,600 | N191: ○ 정수기 6대 임차 | P191: 45,000 | Q191: 6 | R191: 12
G192: 15 복리후생비 | H192: =M192 -> 7,640 | I192: 10,940 | J192: =H192-I192 -> △3,300 | K192: 15 복리후생비 | M192: =M193+M195+M194 -> 7,640
K193: ○ 안전용품 등 구입 : 200,000원*4명 | L193: = | M193: =ROUND(P193*Q193/1000,0) -> 800 | N193: ○ 안전 보호구, 안전용품 등 구입 | P193: 200,000 | Q193: 4
K194: ○ 구급함 및 비상약품구입비 : 300,000원*2회 | L194: = | M194: =ROUND(P194*Q194*R194*S194/1000,0) -> 600 | N194: ○ 과목변경(공공운영비 > 복리후생비) | P194: 300,000 | Q194: 2 | R194: 1 | S194: 1
K195: ○ 수영강사 간식비 : 3,000원*5일*52주*8명 | L195: = | M195: =ROUND(P195*Q195*R195*S195/1000,0) -> 6,240 | N195: ○ 수영강사 간식 구입 | P195: 3,000 | Q195: 5 | R195: 52 | S195: 8
G196: 21 공공요금및제세 | H196: =M196 -> 414,535 | I196: 377,899 | J196: =H196-I196 -> 36,636 | K196: 21 공공요금및제세 | M196: =SUM(M197:M205) -> 414,535
K197: ○ (법정) 도시가스사고배상책임보험 : 20,000원*1회 | L197: = | M197: =ROUND(P197*Q197/1000,0) -> 20 | N197: ○ 연 1회 법정 책임보험 가입대상 | P197: 20,000 | Q197: 1
K198: ○ (법정) 승강기책임보험 : 35,000원*1회 | L198: = | M198: =ROUND(P198*Q198/1000,0) -> 35 | N198: ○ 연 1회 법정 책임보험 가입대상 | P198: 35,000 | Q198: 1
K199: ○ (법정) 주민세 : 280원*3,299㎡*1회 | L199: = | M199: =ROUND(P199*Q199*R199/1000,0) -> 924 | N199: ○ 연 1회 법정 주민세(재산분) 납부 | P199: 280 | Q199: 3299 | R199: 1
K200: ○ (신규) 비상안심벨 통신비 : 33,000원*12개월 | L200: = | M200: =ROUND(P200*Q200/1000,0) -> 396 | N200: ○ 화장실 비상안심벨 설치에 따른 통신비 | P200: 33,000 | Q200: 12
... 143 more rows

Sheet 환경자원사업소
A1: 다. 지출예산(세부사업) - 환경자원사업소 | M1: 단위 : 천원
A2: 구분 | B2: 사업 | E2: 편성목 | H2: 당년도예산액 (A) | I2: 전년도예산액 (B) | J2: 증 감 (A-B) | K2: 산 출 기 초
B3: 정책 | C3: 단위 | D3: 세부 | E3: 그룹 | F3: 목 | G3: 세목
A4: 총계(사업예산 + 자본예산) | H4: =H5+H184 -> 6,530,023 | I4: =I5+I184 -> 5,770,937 | J4: =H4-I4 -> 759,086
A5: 사업예산 | H5: =H6 -> 4,423,582 | I5: =I6 -> 4,467,457 | J5: =H5-I5 -> △43,875
B6: 환경대행사업 | H6: =H7 -> 4,423,582 | I6: =I7 -> 4,467,457 | J6: △43,875
C7: 도시형 폐기물 처리시설 수탁 대행사업 | H7: =H8+H114 -> 4,423,582 | I7: =I8+I114 -> 4,467,457 | J7: △43,875
D8: 도시형 폐기물 처리시설 운영 | H8: =H9+H11 -> 821,676 | I8: =I9+I11 -> 907,116 | J8: △85,440
E9: 100 인건비 | H9: =H10 -> 0 | I9: =I10 -> 34,656 | J9: △34,656
F10: 04 기간제근로자보수 | H10: 0 | I10: 34,656 | J10: △34,656
E11: 200 물건비 | H11: =H12+H107+H111 -> 821,676 | I11: =I12+I107+I111 -> 872,460 | J11: =H11-I11 -> △50,784
F12: 201 일반운영비 | H12: =SUM(H13,H39,H62,H73,H83,H102) -> 808,716 | I12: =SUM(I13,I39,I62,I73,I83,I102) -> 857,865 | J12: =H12-I12 -> △49,149
G13: 01 사무관리비 | H13: =O13 -> 40,170 | I13: 86,295 | J13: =H13-I13 -> △46,125 | M13: =SUM(M14,M17:M19,M21,M22,M25:M26,M29,M31,M33,M35,M38:M38) -> 40,170 | O13: =SUM(O14:O38) -> 40,170
K14: ○ 사무용품구입 | M14: =SUM(M15:M16) -> 2,720 | N14: ○ 사무용품구입 | O14: =SUM(P15:P16) -> 2,720
K15: - 복사용지구입 : 23,000원*40박스 | L15: = | M15: =P15 -> 920 | N15: 복사용지(A4) 사용량 : 20박스 × 2회(상,하반기) | P15: =Q15*R15*S15 -> 920 | Q15: 23.0 | R15: 40 | S15: 1
K16: - 표준사무용품 : 60,000원*10명*3회 | L16: = | M16: =P16 -> 1,800 | N16: 표준사무용품(일근자 : 10명) × 3회 | P16: =Q16*R16*S16 -> 1,800 | Q16: 60.0 | R16: 10 | S16: 3
K17: ○ 범용 S/W 구입(캐드, 엑셀, 알약 등) : 3,000,000원*1회 | L17: = | M17: =P17 -> 3,000 | N17: ○ 범용 S/W 구입(엑셀13, 알약13, 캐드 등) -1년갱신형 | O17: =P17 -> 3,000 | P17: =Q17*R17 -> 3,000 | Q17: 3,000.0 | R17: 1
K18: ○ 복합기 인쇄비(월 사용) : 50,000원*12월 | L18: = | M18: =O18 -> 600 | N18: 복합기 월사용료 외 추가분 | O18: =P18*Q18*R18 -> 600 | P18: 50.0 | Q18: 1 | R18: 12
K19: ○ 전산소모비품비(토너, 드럼, 잉크 등) | M19: =SUM(M20) -> 3,150 | N19: ○ 전산 소모품 | O19: =SUM(P20) -> 3,150
K20: - 토너,드럼,잉크 등 : 150,000원*7대*3회 | L20: = | M20: =P20 -> 3,150 | N20: 칼라 프린트 잉크 및 토너(사무실2, 실험실1, 제어실3, 소장실1) | P20: =Q20*R20*S20 -> 3,150 | Q20: 150.0 | R20: 7 | S20: 3
K21: ○ 컴퓨터수리비 : 50,000원*16대*1회 | L21: = | M21: 800 | N21: ○ 컴퓨터 수리비 (사무실11, 실험실1, 소장실1, 제어실10,계근대2) | O21: =SUM(P21) -> 800 | P21: =Q21*R21*S21 -> 800 | Q21: 50.0 | R21: 16 | S21: 1
K22: ○ 청소용품 구입비 | M22: =SUM(M23:M24) -> 16,000 | N22: ○ 청소용품 | O22: =SUM(P23:P24) -> 16,000
K23: - 청소용품 (세탁세제, 유연제, 화장지 등) : 500,000원*12월 | L23: = | M23: =P23 -> 6,000 | N23: 작업복 세탁관련(교대근무자 및 현장 근무자 : 35명) | P23: =Q23*S23 -> 6,000 | Q23: 500.0 | S23: 12
K24: - 작업용 (면, 반코팅, 완코팅 등)장갑 구입 : 1,290,000원*12월 | L24: = | M24: =P24 -> 10,000 | N24: 면 : 250×40×30 = 240천원, 반코팅 : 300×40×30 = 300천원, 완코팅 : 800×40×30 = 900천원 | P24: =Q24*S24 -> 10,000 | Q24: 1,000.0 | S24: 10
K25: ○ 무전기 구입(소각,바이오,기술,관리) : 500,000원 * 2대 | L25: = | M25: =O25 -> 1,000 | N25: ○ 무전기 구매 : '23년 신규직원 2명 + 예비품 | O25: =SUM(P25) -> 1,000 | P25: =Q25*R25 -> 1,000 | Q25: 500.0 | R25: 2
K26: ○ 기타 운영비품 구입 | M26: =SUM(M27:M28) -> 3,000 | N26: ○ 기타 운영비품 | O26: =SUM(P27:P28) -> 3,000
K27: - 회의실, 홍보실 비품 구입 : 1,000,000원*2회 | L27: = | M27: =P27 -> 2,000 | N27: 상수도 없음(28만/월), 스팀소독용역 포함(12만/월)-부기명 바꿈(생수 감사 걸림) | P27: =Q27*S27 -> 2,000 | Q27: 1,000.0 | S27: 2
K28: - 중앙제어실 사무가구 등 구입 : 1,000,000원*1회 | L28: = | M28: 1,000 | N28: 제어실 근무의자, 회의용 탁자 구매 등 | P28: =Q28*S28 -> 1,000 | Q28: 1,000.0 | S28: 1
K29: ○ 소각, 바이오, 폐수 운영비품 구입 | M29: =SUM(M30:M30) -> 2,000 | N29: ○ 소각시설 운영비품 | O29: =SUM(P30:P30) -> 2,000
K30: - 소규모 비품 구입 : 500,000원* 4회 | L30: = | M30: =P30 -> 2,000 | N30: 100만원 이하 소모품 구매 | P30: =Q30*R30*S30 -> 2,000 | Q30: 500.0 | R30: 1 | S30: 4
K31: ○ 정기간행물 등 구독 | M31: =SUM(M32:M32) -> 800 | N31: ○ 정기 간행물 | O31: =SUM(P32:P32) -> 800
K32: - 기술서적 및 업무용자료 구입 등 : 100,000원*2권*4회 | L32: = | M32: 800 | N32: 물가자료 등 구매 | P32: =Q32*R32*S32 -> 800 | Q32: 100.0 | R32: 2 | S32: 4
K33: ○ 유인물인쇄 | M33: =SUM(M34:M34) -> 1,500 | N33: ○ 유인물 인쇄 | O33: =SUM(P34:P34) -> 1,500
K34: - 도면복사 / 제본,사진인화 등 : 30,000원*5종*10회 | L34: = | M34: =P34 -> 1,500 | N34: 제본, 사진인화 관련 | P34: =Q34*R34*S34 -> 1,500 | Q34: 30.0 | R34: 5 | S34: 10
K35: ○ 시설관련 | M35: =SUM(M36:M37) -> 5,000 | N35: ○ 시설관련 | O35: =SUM(P36:P37) -> 5,000
K36: - 견학 기념품 제작 : 10,000원*300개 | L36: = | M36: =P36 -> 3,000 | N36: 도시형폐기물 견학자 기념품 제작 | P36: =Q36*R36*S36 -> 3,000 | Q36: 10.0 | R36: 300 | S36: 1
K37: - 현수막, 간판 등의 제작비 : 2,000,000원*1식 | L37: = | M37: =P37 -> 2,000 | N37: 안전, 화재 등 현수막 제작 | P37: 2,000 | Q37: 2,000.0 | R37: 1 | S37: 1
K38: ○ 공개입찰(나라장터) 수수료 등 : 100,000원*6월 | L38: = | M38: =O38 -> 600 | N38: 나라장터 물품구매 수수료 | O38: =P38*R38 -> 600 | P38: =Q38*R38*S38 -> 600.0 | Q38: 100 | R38: 1 | S38: 6
G39: 11 지급수수료 | H39: =M39 -> 557,272 | I39: 533,432 | J39: =H39-I39 -> 23,840 | M39: =SUM(M40,M50,M55) -> 557,272 | O39: =SUM(O40:O61) -> 557,272
K40: ○ 전문기관 용역비 | M40: =O40 -> 432,372 | N40: ○ 전문기관 용역 | O40: =SUM(P41:P49) -> 432,372
K41: - 작업환경 측정(특수건강검진 관련) : 3,600,000원*2회(상,하반기) | L41: = | M41: =P41 -> 7,200 | N41: 산업안전보건법 제42조(작업환경측정등)제4항 관련, 2회/년 | P41: =Q41*S41 -> 7,200 | Q41: 3,600.0 | S41: 2
K42: - 소방시설 검사(작동기능, 종합점검) : 2,000,000원*2회 | L42: = | M42: 4,000 | N42: 『소방시설설치유지 및 안전관리에 관한 법률』제25조 관련(작동기능점검, 종합정밀점검) | P42: =Q42*S42 -> 4,000 | Q42: 2,000.0 | S42: 2
K43: - 대기 자가측정 : 5,000천원*22회(27항목)+2,500천원*2회(벤조피렌) | L43: = | M43: 115,000 | N43: 대기환경보전법 제39조(자가측정) 관련, 1회/2주 | P43: 115,000
K44: - 악취측정 용역 : 5,000,000원*2회 | L44: = | M44: =P44 -> 10,000 | N44: 반입장 외 4, 악취 측정 | P44: =Q44*S44 -> 10,000 | Q44: 5,000.0 | S44: 2
K45: - 폐수처리분담금 : 20,000,000원/월 * 12개월 | L45: = | M45: =P45 -> 240,000 | N45: 「자원순환기본법」제21조 의거 | P45: =Q45*S45 -> 240,000 | Q45: 20,000.0 | S45: 12.0000
K46: - CleanSYS(TMS) 정기점검 : 3,656,000원*12월 | L46: = | M46: 43,872 | N46: 대기환경보전법 제32조(측정기기의 부착 등) 4항 관련, 1회/월 | P46: =Q46*S46 -> 43,872 | Q46: 3,656.0 | S46: 12
K47: - 승강기 정기정검 : 250,000원*12월 | L47: = | M47: 3,000 | N47: 승강기시설 안전관리법 제17조(승강기의 자체점검) 1함 및 4항 관련, 1회/월 | P47: =Q47*S47 -> 3,000 | Q47: 250.0 | S47: 12
K48: - 병해충 방역 : 550,000원*6월 | L48: = | M48: 3,300 | N48: 병해충 방역(세스코) | P48: =Q48*S48 -> 3,300 | Q48: 550.0 | S48: 6
K49: - 환경정비(예초 등) : 2,000,000원*3회 | L49: = | M49: 6,000 | N49: 도시형폐기물 내 예초작업(3회) | P49: =Q49*T49 -> 6,000 | Q49: 2,000.0 | T49: 3
K50: ○ 법정정기검사수수료 | M50: =SUM(M51:M54) -> 29,000 | N50: ○ 법정검사 수수료 | O50: =SUM(P51:P54) -> 29,000
K51: - CleanSYS(TMS) 정도검사 : 5,500,000원*1회 | L51: = | M51: =P51 -> 5,500 | N51: 환경분야 시험ㆍ검사 등에 관한 법률 제11조(측정기기의 정도검사) 제 1항 및 4항 관련, 1회/년 | P51: =Q51*R51 -> 5,500 | Q51: 5,500.0 | R51: 1
K52: - 다이옥신(대기, 수질) 검사 : 6,500,000원*2회 | L52: = | M52: =P52 -> 13,000 | N52: 잔류성유기오염물질관리법 제19조(잔류성유기오염물질의 측정) 및 동법 시행규칙 제14조 관련 | P52: =Q52*R52 -> 13,000 | Q52: 6,500.0 | R52: 2
K53: - 음식물폐기물처리시설(혐기성분해) 정기검사 : 2,750,000원*2회 | L53: = | M53: =P53 -> 5,500 | N53: 폐기물처리시설의 검사수수료 국립환경과학원고시 제2022-13호 | P53: =Q53*R53 -> 5,500 | Q53: 5,500.0 | R53: 1
K54: - 기타(보일러,압력용기,호이스트 등) : 5,000,000원*1회 | L54: = | M54: =P54 -> 5,000 | N54: 산업안전보건법 제36조(안전검사) 1항 관련 | P54: =Q54*R54 -> 5,000 | Q54: 5,000.0 | R54: 1
K55: ○ 에너지 회수 및 온실가스 관련 분석(소각시설 / 바이오 / 폐수 등) | M55: =SUM(M56:M61) -> 95,900 | N55: ○ 에너지 회수 및 온실가스 관련 분석 | O55: =SUM(P56:P61) -> 95,900
K56: - 쓰레기(바닥재 포함) 성상분석 : 3,600,000원*12회(월) | L56: = | M56: =P56 -> 43,200 | N56: 반입폐기물 성상분석, 1회/월 | P56: =Q56*R56 -> 43,200 | Q56: 3,600.0 | R56: 12
K57: - 비점오염원, 식수 분석 | L57: = | M57: 4,000 | N57: (우수)비점오염원 관리규정 | P57: =Q57*R57*S57 -> 4,000 | Q57: 500.0 | R57: 1 | S57: 8
K58: - 유입 / 방류수 수질분석 | L58: = | M58: 10,800 | N58: 바이오 및 폐수 운영관련 | P58: =Q58*R58*S58+3000 -> 10,800 | Q58: 650.0 | R58: 1 | S58: 12
K59: - 기타 공정(소화액 외 5) 수질분석 | L59: = | M59: 22,800 | N59: 바이오시설 운영관련 | P59: =Q59*R59*S59 -> 22,800 | Q59: 1,900.0 | R59: 1 | S59: 12
K60: - 각 계측기 검교정(에너지 회수관련) : 1,000,000원 *1회*15지점 | L60: = | M60: 15,000 | N60: 자원순환법 에너지 회수 부분관련 자료(측정기기는 1년 1회이상 검교정을 실시) | P60: =Q60*R60*S60 -> 15,000 | Q60: 1,000.0 | R60: 1 | S60: 15
K61: - 차량(암롤트럭, 지게차 등) 정기검사 : 50,000원 *2대 | L61: = | M61: 100 | N61: 자원순환법 에너지 회수 부분관련 자료(측정기기는 1년 1회이상 검교정을 실시) | P61: =Q61*R61 -> 100 | Q61: 50.0 | R61: 2
G62: 13 임차료 | H62: =O62 -> 26,224 | I62: 27,984 | J62: =H62-I62 -> △1,760 | M62: =SUM(M63,M68,M71) -> 26,224 | O62: =SUM(O63:O72) -> 26,224
K63: ○ 렌트비용 | M63: =SUM(M64:M67) -> 6,624 | N63: ○ 렌트비용 | O63: =SUM(P64:P67) -> 6,624
K64: - 얼음정수기(2대) 렌트비용 : 60,000*2대*12월 | L64: = | M64: =P64 -> 1,440 | N64: 탕비실, 제어실 | P64: =Q64*R64*S64 -> 1,440 | Q64: 60.0 | R64: 2 | S64: 12
K65: - 비데 렌트비용 : 22,000원*6대*12월 | L65: = | M65: =P65 -> 1,584 | N65: 비데(화장실3곳) | P65: =Q65*R65*S65 -> 1,584 | Q65: 22.0 | R65: 6 | S65: 12
K66: - 복합기 렌트비용 : 150,000원*2대*12월 | L66: = | M66: 3,600 | N66: 복합기(사무실, 계근대) | P66: 3,600 | Q66: 150.0 | R66: 2 | S66: 12
K67: - 안마의자 렌트비용 : 100,000원*1대*12월(삭제) | L67: = | M67: 0 | N67: 산업안전보건위원회 요청사항 | P67: 0 | Q67: 100.0 | R67: 1
K68: ○ 장비임대료 | M68: =SUM(M69:M70) -> 7,600 | N68: ○ 장비임대료 | O68: =SUM(P69:P70) -> 7,600
K69: - 준설(정화조 및 비점오염원 등) : 2,200,000원* 3회 | L69: = | M69: =P69 -> 6,600 | N69: 슬러지 준설(비점오염원 퇴적물 등) | P69: =Q69*S69 -> 6,600 | Q69: 2,200.0 | S69: 3
K70: - 중장비(지게차, 카고크레인 등) 임대료 : 500,000원*3회 | L70: = | M70: =P70 -> 1,000 | N70: 지게차 ,포크레인 등 시설운영관련 임대 | P70: =Q70*S70 -> 1,000 | Q70: 500.0 | S70: 2
K71: ○ 업무용 차량임차료(렌터카) | M71: =O71 -> 12,000 | N71: ○ 차량유지비 | O71: =SUM(P72:P72) -> 12,000
K72: - 차량임대비 : 1,000,000원*1대*12월 | L72: = | M72: =P72 -> 12,000 | N72: 공영차량 운영(니로) | P72: =Q72*R72*S72 -> 12,000 | Q72: 1,000.0 | R72: 1 | S72: 12
G73: 15 기타복리후생비 | H73: =O73 -> 54,360 | I73: 64,140 | J73: =H73-I73 -> △9,780 | M73: =SUM(M74,M78,M81) -> 54,360 | O73: =SUM(O74:O82) -> 54,360
K74: ○ 피복구입비 | M74: =SUM(M75:M77) -> 24,360 | N74: ○ 피복구입 | O74: =SUM(P75:P77) -> 24,360
K75: - 동복(방한복) : 130,000원*42명*2벌*1회 | L75: = | M75: =P75 -> 10,920 | N75: 동복 지급(2벌) | P75: =Q75*R75*S75*T75 -> 10,920 | Q75: 130.0 | R75: 42 | S75: 2 | T75: 1
K76: - 하복(작업조끼) 등 : 80,000원*42명*2벌*1회 | L76: = | M76: =P76 -> 6,720 | N76: 하복 지급(2벌) | P76: =Q76*R76*S76*T76 -> 6,720 | Q76: 80.0 | R76: 42 | S76: 2 | T76: 1
K77: - 춘,추복 등 : 80,000원*42명*2벌*1회 | L77: = | M77: =P77 -> 6,720 | N77: 춘추복 지급(2벌) | P77: =Q77*R77*S77*T77 -> 6,720 | Q77: 80.0 | R77: 42 | S77: 2 | T77: 1
K78: ○ 개인 안전장구 구입비 | M78: =SUM(M79:M80) -> 25,200 | N78: ○ 개인안전 장구 구입 | O78: =SUM(P79:P80) -> 25,200
K79: - 안전모, 안전화, 작업화 등 : 100,000원*42명*3회 | L79: = | M79: =P79 -> 12,600 | N79: 안전화, 안전모 지급(2회/년) | P79: =Q79*R79*S79 -> 12,600 | Q79: 100.0 | R79: 42 | S79: 3
K80: - 안전용품(마스크, 필터, 방진복) 등 : 30,000원*42명*10회 | L80: = | M80: =P80 -> 12,600 | N80: 유해가스(바이오, 폐수) 및 비산먼지 제거용 마스크, 방진복 지급(매월) | P80: =Q80*R80*S80 -> 12,600 | Q80: 30.0 | R80: 42 | S80: 10
K81: ○ 야간근무자 급량비 | M81: =SUM(M82:M82) -> 4,800 | N81: ○ 급량비 | O81: =P82 -> 4,800
K82: - 8,000원*5명*10일*12개월 | L82: = | M82: =P82 -> 4,800 | N82: 시간외근무자 급식비 지급 | P82: =Q82*R82*S82*T82 -> 4,800 | Q82: 8.0 | R82: 5 | S82: 10 | T82: 12
G83: 21 공공요금 및 제세 | H83: =O83 -> 124,264 | I83: 136,614 | J83: =H83-I83 -> △12,350 | M83: =SUM(M84:M90,M93,M95,M98) -> 124,264 | O83: =SUM(O84:O101) -> 124,264
K84: ○ 우편요금 : 3,000원*10건*12월 | L84: = | M84: =O84 -> 360 | N84: 계약관련 문서 등기발송(협력업체) | O84: =P84*Q84*R84 -> 360 | P84: 3.0 | Q84: 10 | R84: 12
K85: ○ 일반전화 및 인터넷 요금 : 60,000원*3회선*12월 | L85: = | M85: 2,160 | N85: 인터넷 3회선(TMS실, 사무실, 계근대시설) | O85: =P85*Q85*R85 -> 2,160 | P85: 60.0 | Q85: 3 | R85: 12
K86: ○ 택배비 : 5,000원*3회*12월 | L86: = | M86: 180 | N86: 물품 및 검교정 등 발송 | O86: =P86*Q86*R86 -> 180 | P86: 5.0 | Q86: 3 | R86: 12
K87: ○ 업무용 무선장비 전파 사용료 : 3,500원*36대*4회 | L87: = | M87: 504 | N87: 『전파법』제67조(전파사용료)에 의거 무전기 전파 사용료 납부(20대) | O87: =P87*Q87*R87 -> 504 | P87: 3.5 | Q87: 36 | R87: 4
K88: ○ 공증 및 각종 제증명발급/등기수수료 등 : 50,000원*12월 | L88: = | M88: 600 | O88: =P88*R88 -> 600 | P88: 50.0 | R88: 12
K89: ○ 주민세 | L89: = | M89: 400 | N89: 주민세 사업소분 | O89: =P89*Q89 -> 400 | P89: 400.0 | Q89: 1
K90: ○ 협회비 | M90: =SUM(M91:M92) -> 800 | N90: ○ 협회비 | O90: =SUM(P91:P92) -> 800
K91: - 산업안전관리협회 외 : 500,000원*1회 | L91: = | M91: =P91 -> 500 | N91: 산업안전관리 협회 등록 | P91: =Q91*R91 -> 500 | Q91: 500.0 | R91: 1
K92: - 기타협회비(전국 생활폐기물 자원회수 운영협회) : 300,000원*1회 | L92: = | M92: =P92 -> 300 | N92: 전국 생활폐기물 자원회수시설 운영협회(소장단) | P92: =Q92*R92 -> 300 | Q92: 300.0 | R92: 1
K93: ○ 환경책임보험료 | M93: =SUM(M94) -> 10,000 | N93: ○ 환경책임보험료 | O93: =SUM(P94) -> 10,000
K94: - 환경책임보험(소각시설) : 10,000,000원*1회 | L94: = | M94: =P94 -> 10,000 | N94: 「환경오염피해배상책임 및 구제에 관한 법률」제17조 의거 환경책임보험의무 가입 | P94: =Q94*R94 -> 10,000 | Q94: 10,000.0 | R94: 1
K95: ○ 폐기물처분 분담금 | M95: =SUM(M96:M97) -> 107,060 | N95: ○ 폐기물처분 분담금 | O95: =SUM(P96:P97) -> 107,060 | Q95: 발생량 | R95: 요율 | S95: 산정지수
K96: - 소각재(소각시설) : 7,600톤/년 * 10,000원/톤 *산정지수(1.06) | L96: = | M96: =P96 -> 80,560 | N96: 「자원순환기본법」제21조 의거 | P96: =Q96*R96*S96 -> 80,560 | Q96: 7,600.0 | R96: 10 | S96: 1.0600
K97: - 오니(폐수처리시설) :1,000톤/년 * 25,000원/톤 *산정지수(1.06) | L97: = | M97: =P97 -> 26,500 | N97: 「자원순환기본법」제21조 의거 | P97: =Q97*R97*S97 -> 26,500 | Q97: 1,000.0 | R97: 25 | S97: 1.0600
K98: ○ 차량유지 공공요금(지게차) | M98: =SUM(M99:M101) -> 2,200 | N98: ○ 차량유지 공공요금(지게차) | O98: =SUM(P99:P101) -> 2,200
K99: - 자동차세 : 100,000원*1대*1회 | L99: = | M99: =P99 -> 100 | N99: 지게차 자동차세(2회/년) | P99: =Q99*R99*S99 -> 100 | Q99: 100.0 | R99: 1 | S99: 1
K100: - 환경개선부담금 : 150,000원*1대*2회 | L100: = | M100: =P100 -> 300 | N100: 경유차량 환경개선부담금 | P100: =Q100*R100*S100 -> 300 | Q100: 150.0 | R100: 1 | S100: 2
K101: - 차량보험료 : 1,800,000원*1식(지게차+암롤차)*1회 | L101: = | M101: =P101 -> 1,800 | N101: 지게차 보험료 | P101: =Q101*R101*S101 -> 1,800 | Q101: 1,800.0 | R101: 1 | S101: 1
G102: 22 차량.선박비 | H102: =M102 -> 6,426 | I102: 9,400 | J102: =H102-I102 -> △2,974 | M102: =SUM(M104:M106) -> 6,426 | N102: ○ 차량선박비(렌터카, 지게차, 암롤트럭) | O102: =P104+P105 -> 5,436
K103: ○ 렌터카, 지게차, 암롤차 유지비 | M103: =SUM(M104:M106) -> 6,426
K104: - 차량유지비(세차,소모품,엔진오일 등) : 300,000원*2대*6월 | L104: = | M104: =P104 -> 3,600 | N104: 소모품(엔진오일 등) 교체 | P104: =Q104*R104*S104 -> 3,600 | Q104: 300.0 | R104: 2 | S104: 6
K105: - 차량유류비 :90리터/(암롤,지게)*1,700원*12월 | L105: = | M105: =P105 -> 1,836 | N105: 연료(경유) 구입 | P105: =Q105*R105*S105*T105 -> 1,836 | Q105: 1.7 | R105: 1 | S105: 12 | T105: 90
K106: - 전기차량충전비 : 1.5만km/년*66원/km | L106: = | M106: =P106 -> 990 | N106: 급속충전 | P106: =Q106*R106*S106*T106 -> 990 | Q106: 0.1 | R106: 1 | S106: 1 | T106: 15,000
F107: 202 여비 | H107: =H108 -> 7,440 | I107: =I108 -> 9,015 | J107: =H107-I107 -> △1,575
G108: 01 국내여비 | H108: =O108 -> 7,440 | I108: 9,015 | J108: =H108-I108 -> △1,575 | M108: =SUM(M109:M110) -> 7,440 | O108: =SUM(P109:P110) -> 7,440
K109: ○ 관내 여비 : 20,000원*4명*5일*12월 | L109: = | M109: =P109 -> 4,800 | N109: ○ 사규(여비규정) 관련-시기준 | P109: =Q109*R109*S109*T109 -> 4,800 | Q109: 20.0 | R109: 4 | S109: 5 | T109: 12
K110: ○ 관외 여비 :110,000원*4명*3일*2회 | L110: = | M110: =P110 -> 2,640 | N110: 관내 : 출장여비(자차 4시간-2만/관용 4시간-1만원), 관외 : 일비+식비+숙박비(85,000원) | P110: =Q110*R110*S110*T110 -> 2,640 | Q110: 110.0 | R110: 4 | S110: 3 | T110: 2
F111: 217 관서업무비 | H111: =H112 -> 5,520 | I111: =I112 -> 5,580 | J111: =H111-I111 -> △60 | O111: =SUM(O112:O113) -> 5,520
G112: 02 부서업무비 | H112: =M112 -> 5,520 | I112: 5,580 | J112: =H112-I112 -> △60 | M112: =M113 -> 5,520 | O112: =P113 -> 5,520 | Q112: 기본액(30명기준) | S112: 월 | T112: 추가금액 | U112: 추가명 | V112: 월
K113: ○ 부서운영업무비 : (400,000원*12월)+(5,000원*12명*12월) | L113: = | M113: =P113 -> 5,520 | N113: 부서업무비 : 30인 이하(350천원),1명추가시(5,000천원/월) | P113: =(Q113*S113)+(T113*U113*V113) -> 5,520 | Q113: 400.0 | S113: 12 | T113: 5 | U113: 12 | V113: 12
D114: 도시형 폐기물 처리시설 유지보수 | H114: =H115 -> 3,601,906 | I114: =I115 -> 3,560,341 | J114: =H114-I114 -> 41,565
E115: 200 물건비 | H115: =H116+H137+H174+H135 -> 3,601,906 | I115: =I116+I137+I174 -> 3,560,341 | J115: =H115-I115 -> 41,565
F116: 206 재료비 | H116: =H117 -> 625,233 | I116: =I117 -> 815,212 | J116: =H116-I116 -> △189,979
G117: 02 약품비 | H117: =O117 -> 625,233 | I117: 815,212 | J117: =H117-I117 -> △189,979 | M117: =SUM(M118:M134) -> 625,233 | O117: =SUM(O118:O134) -> 625,233
K118: ○ 요소수(40%) : 700원*310kg*320일 | L118: = | M118: =P118 -> 69,440 | N118: ○ 요소수 : '23 계약단가(668원), 일평균사용량(379kg) -'24년 견적가(625원) | O118: =P118 -> 69,440 | P118: =Q118*R118*S118 -> 69,440.00 | Q118: 0.7 | R118: 310 | S118: 320
K119: ○ 소석회슬러리 : 80원*5,500kg*320일 | L119: = | M119: 140,800 | N119: ○ 소석회슬러리 : '23 계약단가(67.78원), 일평균사용량(5,912kg) -'24년 견적가(78원) | O119: =P119 -> 140,800 | P119: =Q119*R119*S119 -> 140,800.00 | Q119: 0.1 | R119: 5,500 | S119: 320
K120: ○ 활성탄(소각) : 2,750원*55kg*320일 | L120: = | M120: 48,400 | N120: ○ 활성탄 : '23 계약단가(2514.2원), 일평균사용량(67.59kg) -'24년 견적가(2,500원) | O120: 48,400 | P120: 48,400.00 | Q120: 2.8 | R120: 55 | S120: 320
K121: ○ 탈취제(반입장) : 2,750원*10L*365일 | L121: = | M121: 10,038 | N121: ○ 탈취제 : '22 계약단가(2413원), 일평균사용량(17L) -'24년 견적가(2,500원) | O121: 10,038 | P121: 10,037.50 | Q121: 2.8 | R121: 10 | S121: 365
K122: ○ 살충제(반입장) : 25,000원*1L*90일 | L122: = | M122: 2,250 | N122: ○ 살충제 : '21 계약단가(22,000원), 일평균사용량(1L) -'24년 견적가(25,000원) | O122: 2,250 | P122: 2,250.00 | Q122: 25.0 | R122: 1 | S122: 90
K123: ○ 청관제 : 3,400원*3.2kg*320일 | L123: = | M123: 3,482 | N123: ○ 청관제 : '23 계약단가(2,748원), 일평균사용량(1kg) -'24년 견적가(3,375원) | O123: 3,482 | P123: 3,481.60 | Q123: 3.4 | R123: 3 | S123: 320
K124: ○ 탈산제 : 3,600원*3.2kg*320일 | L124: = | M124: 3,686 | N124: ○ 탈산제 : '23 계약단가(2,750.7원), 일평균사용량(1L) -'24년 견적가(3,500원) | O124: 3,686 | P124: 3,686.40 | Q124: 3.6 | R124: 3 | S124: 320
K125: ○ 부식방지제 : 5,100원*1.6kg*320일 | L125: = | M125: 2,611 | N125: ○ 부식방지제 : '23 계약단가(4,140.7원), 일평균사용량(1L) -'24년 견적가(5,000원) | O125: 2,611 | P125: 2,611.20 | Q125: 5.1 | R125: 2 | S125: 320
K126: ○ 고형화제(킬레이트) : 2,800원*145kg/일*320일 | L126: = | M126: 129,920 | N126: ○ 킬레이트 : '23 계약단가(2,071원), 일평균사용량(10L) -'24년 견적가(2,750원) | O126: 129,920 | P126: 129,920.00 | Q126: 2.8 | R126: 145 | S126: 320
K127: ○ 암모니아수(9%) : 460원/kg*200kg*320일 | L127: = | M127: 29,440 | N127: ○ 암모니아수 : '23 계약단가(331.61원), 일평균사용량(10L) -'24년 견적가(450원) | O127: 29,440 | P127: 29,440.00 | Q127: 0.5 | R127: 200 | S127: 320
K128: ○ 가성소다(4.5%) : 165원*50kg*360일 | L128: = | M128: 3,420 | N128: ○ 가성소다 : '23 계약단가(104원), 일평균사용량(10L) -'24년 견적가(163원) | O128: 3,420 | P128: 3,420.00 | Q128: 0.2 | R128: 50 | S128: 360
K129: ○ 응집제(응집보조제 포함) : 4,200원*100kg*360일 | L129: = | M129: 151,200 | N129: ○ 응집제 : '23 계약단가(4,081원), 일평균사용량(120kg) -'24년 견적가(5,000원) | O129: 151,200 | P129: 151,200.00 | Q129: 4.2 | R129: 100 | S129: 360
K130: ○ 소포제(폐수) : 3,000원*6kg/일*360일 | L130: = | M130: 6,480 | N130: ○ 소포제 : '23 계약단가(2,550원), 일평균사용량(120kg) -'24년 견적가(3,215원) | O130: 6,480 | P130: =Q130*R130*S130 -> 6,480.00 | Q130: 3.0 | R130: 6 | S130: 360
K131: ○ 황산(9%) : 260원*39kg/일*360일 | L131: = | M131: 3,650 | N131: ○ 황산 : '23년 계약단가(155.1원), 일평균사용량(5kg) -'24년 견적가(250원) | O131: 3,650 | P131: =Q131*R131*S131 -> 3,650.40 | Q131: 0.3 | R131: 39 | S131: 360
K132: ○ 구연산 : 3,000원*209kg*2회/월*12개월 | L132: = | M132: 15,048 | N132: ○ 구연산 : '23년 계약단가(2,750원), 일평균사용량(5kg) -'24년 견적가(2,500원) | O132: 15,048 | P132: =Q132*R132*S132*T132 -> 15,048.00 | Q132: 3.0 | R132: 209 | S132: 2 | T132: 12
K133: ○ 차아염소산나트륨(12%) : 690원*14kg*360일 | L133: = | M133: 3,726 | N133: ○ 차염 : '23년 계약단가(531원), 일평균사용량(5kg) -'24년 견적가(688원) | O133: 3,726 | P133: =Q133*R133*S133 -> 3,726.00 | Q133: 0.7 | R133: 15 | S133: 360
K134: ○ 염화 제2철 : 380원*12kg*360일 | L134: = | M134: 1,642 | N134: ○ 염화제2철 : '23년 계약단가(없음), 일평균사용량(12kg)예상 -'24년 견적가(375원) | O134: 1,642 | P134: 1,641.60 | Q134: 0.4 | R134: 12 | S134: 360
F135: 207 연구개발비 | H135: =H136 -> 21,000 | I135: =I136 -> 0 | J135: =H135-I135 -> 21,000 | K135: (신설 - 수선유지비 일부 감액) | O135: =O136 -> 6,581,550
G136: 03 시험연구비 | H136: =M136 -> 21,000 | I136: 0 | J136: =H136-I136 -> 21,000 | K136: ○ 실험실 실험용품(분석키트 및 기자재) 구입 : 250,000원*7종*12월 | L136: = | M136: 21,000 | O136: =SUM(O137:O171) -> 6,581,550
F137: 214 수선유지교체비 | H137: =H138 -> 2,187,850 | I137: =I138 -> 2,015,125 | J137: =H137-I137 -> 172,725 | O137: =O138 -> 2,193,850
G138: 05 수선유지비 | H138: =M138 -> 2,187,850 | I138: 2,015,125 | J138: =H138-I138 -> 172,725 | M138: =SUM(M139,M141,M143,M145,,M147,,M151,M154,M155,M156,M164,M167,M168,M169,M171) -> 2,187,850 | O138: =SUM(O139:O173) -> 2,193,850
K139: ○ 소각시설물 정기 수선유지비(시설투자비의 0.5% 적용) | M139: =M140 -> 179,000 | N139: ○ 보수 및 운영비 | O139: =SUM(P140) -> 179,000
K140: - 35,889,672,000원*0.5%(12개월) | L140: = | M140: =P140 -> 179,000 | N140: 소각시설 설치 운영지침 해설서(201210최종본) : 유지관리비 산출내역 참조 | P140: =ROUNDDOWN(Q140*R140, -3) -> 179,000 | Q140: 35,889,672.0 | R140: 0.005 | U140: ○ 보수 및 운영비
K141: ○ 소각시설 정기유지보수비용(시설투자비의 0.5% 적용) | M141: =M142 -> 179,000 | N141: 보수 및 운영비 : 추정공사비의 1.0% | O141: =SUM(P142) -> 179,000 | U141: 소각시설 설치 운영지침 해설서(201210최종본) : 유지관리비 산출내역 참조
K142: - 35,889,672,000원 * 0.5% (2회*1년) | L142: = | M142: =P142 -> 179,000 | N142: 소각시설 총 공사비 : 35,889,672천원 | P142: =ROUNDDOWN(Q142*R142, -3) -> 179,000 | Q142: 35,889,672.0 | R142: 0.005 | U142: 보수 및 운영비 : 추정공사비의 1.0%
K143: ○ 바이오시설물등 수선유지비(시설투자비의 0.8% 적용) | M143: =M144 -> 53,000 | N143: 바이오시설 총 공사비 : 6,613,000천원 | O143: =SUM(P144) -> 53,000 | U143: 소각시설 총 공사비 : 35,889,672천원
K144: - 6,613,000,000원 * 0.8% | L144: = | M144: =P144 -> 53,000 | P144: =ROUNDUP(Q144*R144, -3) -> 53,000 | Q144: 6,613,000.0 | R144: 0.008 | U144: 바이오시설 총 공사비 : 6,613,000천원
K145: ○ 바이오시설 정기유지보수비용(시설투자비의 0.8% 적용) | M145: =M146 -> 53,000 | O145: =SUM(P146) -> 53,000
K146: - 6,613,000,000원 * 0.8% | L146: = | M146: =P146 -> 53,000 | P146: =ROUNDUP(Q146*R146, -3) -> 53,000 | Q146: 6,613,000.0 | R146: 0.008
K147: ○ 재난 예방, 복구 및 관련 물품 등 구입비(태풍, 지진, 화재) | M147: =O147 -> 9,000 | N147: ○ 재난 예방 및 발생시 복구비 | O147: =SUM(P148:P150) -> 9,000
K148: - 재난 예방, 복구 공사 및 용역 : 2,000,000원*2회 | L148: = | M148: =P148 -> 4,000 | N148: 자연재해 예방 및 복구 비용 | P148: =Q148*R148*S148 -> 4,000 | Q148: 2,000.0 | R148: 1.00 | S148: 2
K149: - 재난 예방 물품 구입 : 1,000,000원*1회 | L149: = | M149: =P149 -> 2,000 | N149: 재난대비 물품 구매 | P149: =Q149*R149*S149 -> 2,000 | Q149: 1,000.0 | R149: 1.00 | S149: 2
K150: - 소방시설 유지보수 공사 등 물품 구매 : 1,500,000원*2회 | L150: = | M150: 3,000 | N150: 소방시설 보수공사 및 관련 물품 교체(노후화, 사용기한 등) | P150: 3,000 | Q150: 1,500.0 | R150: 1.00 | S150: 2
K151: ○ CleanSYS(TMS)소모품 구매 등 | M151: =SUM(M152:M153) -> 9,000 | N151: ○ CleanSYS(대기측정기기) 소모품구매 | O151: =SUM(P152:P153) -> 9,000
K152: - CleanSYS(TMS) 표준가스 구매 : 5,000,000 * 1식 | L152: = | M152: =P152 -> 5,000 | N152: 환경분야 시험․검사등에 관한법률 시행규칙 제9조제1항제1호에 의거 | P152: =Q152*S152 -> 5,000 | Q152: 5,000.0 | S152: 1
K153: - CleanSYS(TMS)유지관리 부품 구매 : 4,000,000 * 1식 | L153: = | M153: 4,000 | N153: 표준가스 교체주기 준수(CO, HCL, NOx, SOx, O2 등), 기타 소모품 구매 | P153: =Q153*S153 -> 4,000 | Q153: 4,000.0 | S153: 1
K154: ○ 윤활유 : 4,000원*30L*1회 | L154: = | M154: 120 | N154: ○ 윤활유 구매 : 크레인 및 유압장치 등 유압유 교체용 | O154: =P154 -> 120 | P154: =Q154*R154*S154 -> 120 | Q154: 4.0 | R154: 30 | S154: 1
K155: ○ 그리스 : 6,000원*10L*4회 | L155: = | M155: 240 | N155: ○ 그리스 구매 : 회전기기류 및 유압설비 그리스 교체용 | O155: 240 | P155: =Q155*R155*S155 -> 240 | Q155: 6.0 | R155: 10 | S155: 4
K156: ○ 소각시설 관련 구매 | M156: =SUM(M157:M163) -> 27,010 | N156: ○ 소각시설 관련 구매 | O156: =SUM(P157:P163) -> 33,010
K157: - 소각로 투시창 : 20,000원 * 10개 | L157: = | M157: =P157 -> 200 | N157: 소각로 내부 확인용 강화유리 구매 | P157: =Q157*R157 -> 200 | Q157: 20.0 | R157: 10
K158: - 소각로 온도계 : 1,950,000원 * 3개 | L158: = | M158: 5,850 | N158: 소각로 출구 법적온도(850℃) 측정용 온도계 구매('18년도 교체 : 15개) | P158: =Q158*R158 -> 5,850 | Q158: 1,950.0 | R158: 3
K159: - 톤백 : 7,000원 * 40개 * 12월 | L159: = | M159: 3,360 | N159: 지정폐기물(비산재) 보관용기(톤백) 구매 | P159: =Q159*R159*S159 -> 3,360 | Q159: 7.0 | R159: 40 | S159: 12
K160: - 약품 관련 분사 노즐(팁포함) 구매 : 3,500,000원*2set | L160: = | M160: 7,000 | N160: 액상소석회 요소수 분무용 노즐 및 팁 구매(각 2EA) | P160: =Q160*R160 -> 7,000 | Q160: 3,500.0 | R160: 2
K161: - 크레인 버켓 SCOOP(발톱 포함)구매 : 2,000,000원*3개 | L161: = | M161: 6,000 | N161: 크레인 버켓 예비품 구매(6발톱/1버켓) | P161: =Q161*R161 -> 12,000 | Q161: 2,000.0 | R161: 6
K162: - 크레인 와이어 구매 : 600,000원* 4set | L162: = | M162: 2,400 | N162: 크레인 버켓 예비품 구매(2와이어(S,Z)/1버켓) - 2호기 | P162: =Q162*R162 -> 2,400 | Q162: 600.0 | R162: 4
K163: - 크레인 전선 케이블 구매 : 1,100,000원* 2set | L163: = | M163: 2,200 | N163: 크레인 버켓 예비품 구매(1전선케이블/1버켓) - 2호기 | P163: =Q163*R163 -> 2,200 | Q163: 1,100.0 | R163: 2
K164: ○ 건축설비 관련 구매 | M164: =SUM(M165:M166) -> 11,600 | N164: ○ 건축설비 관련 구매 | O164: =SUM(P165:P166) -> 11,600
K165: - CCTV 모니터 및 제어실 비디오월 구매 : 300,000원*2개+3,000,000*2개 | L165: = | M165: =P165 -> 6,600 | N165: 시설기기 감시용 CCTV 모니터 구매(24시간 연속가동에 따른 소모) | P165: =Q165*R165 -> 6,600 | Q165: 3,300.0 | R165: 2
K166: - 스팀관련 (게이트, 볼)밸브류 구매 : 5,000,000원 * 1식 | L166: = | M166: 5,000 | N166: 소각시설 스팀밸브류 구매(연속가동 및 고온에 의한 고착) | P166: =Q166*R166 -> 5,000 | Q166: 5,000.0 | R166: 1
K167: ○ 기타 잡자재, 소모자재(베어링,실,벨트 등) : 2,000,000원*6회 | L167: = | M167: 12,000 | N167: ○ 기타 소모자제구매 : 각시설에 필요한 잡자제 구매 | O167: =P167 -> 12,000 | P167: =Q167*S167 -> 12,000 | Q167: 2,000.0 | S167: 6
K168: ○ 작업도구(공구 등) 구입 : 2,000,000원*2회(삭제) | L168: = | M168: 0 | N168: ○ 작업도구(공구 등) 구매 : 유지보수기간에 필요한 공구 구입 | O168: 0 | P168: =Q168*S168 -> 0
K169: ○ 폐기물 위탁처리비 | L169: = | M169: =SUM(M170) -> 1,634,000 | O169: =SUM(P170:P170) -> 1,634,000
K170: - 폐기물(바닥재,안정화처리물,오니) 8,600톤 * 190천원/톤 | L170: = | M170: 1,634,000 | P170: =Q170*S170 -> 1,634,000 | Q170: 190.0 | S170: 8,600
K171: ○ 시설(시스템) 유지 관리 | M171: =SUM(M172:M173) -> 20,880 | N171: ○ 시설(시스템) 유지 관리 | O171: =SUM(P172:P173) -> 20,880
K172: - 설비운영지원시스템(관리시스템) : 1,700,000원*12월 [신규] | L172: = | M172: =P172 -> 20,400 | N172: 설비운영지원시스템 도입 | P172: =Q172*S172 -> 20,400 | Q172: 1,700.0 | S172: 12
K173: - 근태관리(관리프로그램) : 40,000원*12월 | L173: = | M173: =P173 -> 480 | N173: 근태관리 프로그램(지문) | P173: =Q173*S173 -> 480 | Q173: 40.0 | S173: 12
F174: 215 동력비 | H174: =O174 -> 767,823 | I174: 730,004 | J174: =H174-I174 -> 37,819 | M174: =SUM(M175+M178+M179) -> 767,823 | O174: =SUM(O175:O183) -> 767,823
K175: ○ 공업용수 사용요금 | M175: =SUM(M176:M177) -> 141,570 | N175: ○ 공업용수 사용요금 | O175: =SUM(P176:P177) -> 141,570
K176: - 보일러용수(demi-water) : 1,650원*5,500톤*12개월 | L176: = | M176: =P176 -> 108,900 | N176: 보일러 용수 : 년간 계약단가(1,650원), 사용량(5,500톤/월) | P176: =INT(Q176*R176*S176) -> 108,900 | Q176: 1.7 | R176: 5,500 | S176: 12
K177: - 공업용수 : 450원*6,050톤*12월 | L177: = | M177: =P177 -> 32,670 | N177: 공업용수 : 년간 계약단가(407원), 사용량(6,050톤/월) | P177: =INT(Q177*R177*S177) -> 32,670 | Q177: 0.5 | R177: 6,050 | S177: 12
K178: ○ 전기요금 : 160원*308,288kwh*12월 | M178: =O178 -> 591,913 | N178: ○ 전기요금 : '23년도 평균단가(157원/kwh), 월평균 사용량(308,288kwh), 월평균 사용금액 : 44,059천원 | O178: =P178 -> 591,913 | P178: =INT(Q178*R178*S178) -> 591,913 | Q178: 0.2 | R178: 308,288 | S178: 12
K179: ○ 연료비 | M179: =SUM(M180:M183) -> 34,340 | N179: ○ 연료비 | O179: =SUM(P180:P183) -> 34,340
K180: - 보조버너(정기유지보수 승온) : 1,700원*5,000L*2회 | L180: = | M180: =P180 -> 17,000 | N180: '23.8월 전남지역 경유단가 : 1,420원 - 정기유지보수 : 2회(상반기/4월, 하반기/10월) | P180: =INT(Q180*R180*S180) -> 17,000.00 | Q180: 1.7 | R180: 5,000 | S180: 2
K181: - 보조버너(비상정지 승온) : 1,700원*3,000L*3회 | L181: = | M181: =P181 -> 15,300 | N181: '17년도 시설이상 관련 비상정지 : 4회 | P181: =INT(Q181*R181*S181) -> 15,300.00 | Q181: 1.7 | R181: 3,000 | S181: 3
K182: - 보조보일러 : 1,700원*200L*3월 | L182: = | M182: =P182 -> 1,020 | N182: 기타 난방용(보조 보일러) 경유 구입 | P182: =INT(Q182*R182*S182) -> 1,020.00 | Q182: 1.7 | R182: 200 | S182: 3
K183: - 비상발전기 : 1,700원*50L*12월 | L183: = | M183: =P183 -> 1,020 | N183: 비상발전기용 경유 구입 | P183: =INT(Q183*R183*S183) -> 1,020.00 | Q183: 1.7 | R183: 50 | S183: 12
A184: 자본예산 | H184: =H185 -> 2,106,441 | I184: =I185 -> 1,303,480 | J184: =H184-I184 -> 802,961
B185: 폐기물 효율적 처리 | H185: =H186 -> 2,106,441 | I185: =I186 -> 1,303,480 | J185: 802,961
C186: 환경대행사업 | H186: =H187+H194 -> 2,106,441 | I186: =I187+I194 -> 1,303,480 | J186: 802,961
D187: 악취방지시설 개선 공사(기계장치) | H187: =H188 -> 2,090,839 | I187: 1,275,000 | J187: 815,839
E188: 400 자본지출 | H188: 2,090,839 | I188: 1,275,000 | J188: 815,839 | M188: =M189+M333+M339+M342+M397 -> 0
F189: 401 시설비및부대비 | H189: 2,090,839 | I189: 1,275,000 | J189: 815,839
G190: 01 시설비 | H190: =M190 -> 2,090,839 | I190: 1,275,000 | J190: 815,839 | M190: 2,090,839
K191: ○ 여수시도시형폐기물종합처리시설 악취저감시설 개선공사 * 1식 | M191: 2,090,839
K192: - '24년 악취저감시설 2차 개선공사 * 1식 | L192: = | M192: 2,090,839
K193: (악취방지시설, 바이오가스 제습설비, 탈황설비, 연결덕트 공사)
D194: 도시형 폐기물 처리시설 자산비품 구입(공기구비품) | H194: =H195 -> 15,602 | I194: 28,480 | J194: =H194-I194 -> △12,878
E195: 400 자본지출 | H195: 15,602 | I195: 28,480 | J195: =H195-I195 -> △12,878 | M195: =M196+M341+M347+M350+M405 -> 0
F196: 405 자산취득비 | H196: 15,602 | I196: 28,480 | J196: =H196-I196 -> △12,878
G197: 12 수탁자산취득비 | H197: =M197 -> 15,602 | I197: 28,480 | J197: =H197-I197 -> △12,878 | M197: =M198+M199 -> 15,602
K198: ○ 안전모 건조기 | L198: = | M198: =O198 -> 3,300 | N198: ○ 운전과 안전모 건조기 MS-280SW | O198: =P198 -> 3,300 | P198: =Q198*R198*S198 -> 3,300 | Q198: 3,300.0 | R198: 1 | S198: 1
K199: ○ 밀폐공간 인명구조장비 세트 | M199: 12,302
K200: - 공기호흡기 : 3,025,000원*2세트 | L200: = | M200: 6,050
... 4 more rows

Sheet 4.자금운영계획
B9: 4. 자 금 운 영 계 획

Sheet 자금운용수입4장
A1: ○ 자금운영계획
A2: 가.수입자금 | F2: (단위:천원)
A3: 구분 | C3: 당년도 예산 (A) | D3: 전년도 예산 (B) | E3: 증 감 (A-B) | F3: 비고
A4: 수입자금 | C4: =C5+C10+C13+C21+C15+C17+C19 -> 49,686,585 | D4: =D5+D10+D13+D21+D15+D17+D19 -> 49,581,723 | E4: =C4-D4 -> 104,862
A5: 영업수익 | B5: 계 | C5: =SUM(C6:C9) -> 46,229,779 | D5: =SUM(D6:D9) -> 46,799,453 | E5: =C5-D5 -> △569,674
B6: 용지매출수익 | C6: 0 | D6: 0 | E6: =C6-D6 -> 0
B7: 주택판매수익 | C7: 0 | D7: 0 | E7: 0
B8: 임대사업수익 | C8: 0 | D8: 0 | E8: 0
B9: 대행사업수익 | C9: ='가. 수입예산 총괄표(사업수익+자본적수입)'!F9 -> 46,229,779 | D9: ='가. 수입예산 총괄표(사업수익+자본적수입)'!G9 -> 46,799,453 | E9: △569,674
A10: 영업외수익 | B10: 계 | C10: =SUM(C11:C12) -> 0 | D10: 5,000 | E10: △5,000
B11: 이자수익 | C11: 0 | D11: 0 | E11: 0
B12: 기타영업외수익 | C12: ='가. 수입예산 총괄표(사업수익+자본적수입)'!F23 -> 0 | D12: ='가. 수입예산 총괄표(사업수익+자본적수입)'!G23 -> 5,000 | E12: △5,000
A13: 기타비유동자산처분 | B13: 계 | C13: =C14 -> 0 | D13: 0 | E13: 0
B14: 비유동자산처분수입 | C14: 0 | D14: 0 | E14: 0
A15: 유동부채수입 | B15: 계 | C15: =C16 -> 0 | D15: 0 | E15: 0
B16: 기타유동부채수입 | C16: 0 | D16: 0 | E16: 0
A17: 자본잉여금수입 | B17: 계 | C17: =C18 -> 2,956,806 | D17: =D18 -> 2,277,270 | E17: 679,536
B18: 자본잉여금수입 | C18: ='3-2.자본예산총괄표'!C17 -> 2,956,806 | D18: ='가. 수입예산 총괄표(사업수익+자본적수입)'!G28 -> 2,277,270 | E18: 679,536
A19: 유보자금 | B19: 계 | C19: =C20 -> 500,000 | D19: =D20 -> 500,000 | E19: =E20 -> 0
B20: 유 보 자 금 | C20: 500,000 | D20: 500,000 | E20: =C20-D20 -> 0
A21: 전년이월금 | B21: 계 | C21: =C22 -> 0 | D21: 0 | E21: =C21-D21 -> 0
B22: 사 고 이 월 금 | C22: 0 | D22: 0 | E22: =C22-D22 -> 0

Sheet 자금운용지출5장
A1: 나. 지출자금 | G1: (단위 : 천원)
A2: 구 분 | D2: 당년도 예산 (A) | E2: 전년도 예산 (B) | F2: 증 감 (A-B) | G2: 비고
A3: 지출자금 | D3: =D4+D20+D21+D23+D25+D28+D32+D34 -> 49,686,585 | E3: =E4+E20+E21+E23+E25+E28+E32+E34 -> 49,581,723 | F3: =D3-E3 -> 104,862
B4: 정책사업 총계 | D4: =D5+D9+D13+D17 -> 49,186,585 | E4: =E5+E9+E13+E17 -> 49,081,723 | F4: =D4-E4 -> 104,862
B5: 교통휴양 대행사업 | C5: 계 | D5: =D6+D7+D8 -> 2,113,893 | E5: =E6+E7+E8 -> 1,724,955 | F5: =D5-E5 -> 388,938
C6: 공영주차장 수탁 대행사업 | D6: ='나. 지출예산 총괄표'!H9+'나. 지출예산 총괄표'!H271 -> 1,584,381 | E6: ='나. 지출예산 총괄표'!I9+'나. 지출예산 총괄표'!I271 -> 1,194,643 | F6: =D6-E6 -> 389,738
C7: 돌산 공원주차장 수탁 대행사업 | D7: ='나. 지출예산 총괄표'!H31 -> 230,088 | E7: ='나. 지출예산 총괄표'!I31 -> 230,888 | F7: △800
C8: 휴양림 수탁 대행사업 | D8: ='나. 지출예산 총괄표'!H275+'나. 지출예산 총괄표'!H47 -> 299,424 | E8: ='나. 지출예산 총괄표'!I275+'나. 지출예산 총괄표'!I47 -> 299,424 | F8: 0
B9: 체육시설 대행사업 | C9: 계 | D9: =D10+D11+D12 -> 2,024,994 | E9: =E10+E11+E12 -> 2,623,648 | F9: △598,654
C10: 진남수영장 수탁 대행사업 | D10: ='나. 지출예산 총괄표'!H67+'나. 지출예산 총괄표'!H280 -> 1,032,834 | E10: ='나. 지출예산 총괄표'!I67+'나. 지출예산 총괄표'!I280 -> 1,277,344 | F10: △244,510
C11: 망마국민체육센터 수탁 대행사업 | D11: ='나. 지출예산 총괄표'!H87+'나. 지출예산 총괄표'!H284 -> 767,169 | E11: ='나. 지출예산 총괄표'!I87+'나. 지출예산 총괄표'!I284 -> 1,121,894 | F11: △354,725
C12: 장애인국님체육센터 수탁 대행사업 | D12: ='나. 지출예산 총괄표'!H103+'나. 지출예산 총괄표'!H288 -> 224,991 | E12: ='나. 지출예산 총괄표'!I103+'나. 지출예산 총괄표'!I288 -> 224,410 | F12: 581
B13: 환경대행사업 | C13: 계 | D13: =D14+D15+D16 -> 29,125,117 | E13: =E14+E15+E16 -> 26,714,687 | F13: 2,410,430
C14: 생활폐기물 수집운반∙가로청소 수탁 대행사업 | D14: ='나. 지출예산 총괄표'!H118+'나. 지출예산 총괄표'!H293 -> 22,493,349 | E14: ='나. 지출예산 총괄표'!I118+'나. 지출예산 총괄표'!I293 -> 20,837,466 | F14: 1,655,883
C15: 종량제물품 공급관리 수탁 대행사업 | D15: ='나. 지출예산 총괄표'!H142+'나. 지출예산 총괄표'!H300 -> 101,745 | E15: ='나. 지출예산 총괄표'!I142+'나. 지출예산 총괄표'!I300 -> 106,284 | F15: △4,539
C16: 도시형 폐기물 처리시설 수탁 대행사업 | D16: ='나. 지출예산 총괄표'!H157+'나. 지출예산 총괄표'!H304 -> 6,530,023 | E16: ='나. 지출예산 총괄표'!I157+'나. 지출예산 총괄표'!I304 -> 5,770,937 | F16: 759,086
B17: 행정운영활동 | C17: 계 | D17: =D18+D19 -> 15,922,581 | E17: =E18+E19 -> 18,018,433 | F17: △2,095,852
C18: 일반행정운영 관리 | D18: ='나. 지출예산 총괄표'!H182+'나. 지출예산 총괄표'!H312 -> 5,330,734 | E18: ='나. 지출예산 총괄표'!I182+'나. 지출예산 총괄표'!I312 -> 4,960,895 | F18: 369,839
C19: 인력운영비 | D19: ='나. 지출예산 총괄표'!H226 -> 10,591,847 | E19: ='나. 지출예산 총괄표'!I226 -> 13,057,538 | F19: △2,465,691
B20: 영업외활동 | D20: 0 | E20: 0 | F20: 0
B21: 법인세등 | D21: =D22 -> 0 | E21: =E22 -> 0 | F21: 0
C22: 법인세등 | D22: 0 | E22: 0 | F22: 0
B23: 무형자산및기타비유동자산취득 | D23: =D24 -> 0 | E23: =E24 -> 0 | F23: =D23-E23 -> 0
C24: 보증금 | D24: 0 | E24: 0 | F24: =D24-E24 -> 0
B25: 유동부채상환 | D25: =SUM(D26:D27) -> 0 | E25: =SUM(E26:E27) -> 0 | F25: =E25-D25 -> 0
C26: 선수금상환 | D26: 0 | E26: 0 | F26: 0
C27: 기타유동부채상환 | D27: 0 | E27: 0 | F27: 0
B28: 기타자본적지출 | D28: =D29 -> 0 | E28: 0 | F28: =D28-E28 -> 0
C29: 기타자본적지출 | D29: 0 | E29: 0 | F29: =D29-E29 -> 0
B30: 투자자산 | D30: =D31 -> 0 | E30: =SUM(E31) -> 0 | F30: 0
C31: 투자자산 | E31: 0 | F31: 0
B32: 예비비 | D32: =D33 -> 500,000 | E32: =E33 -> 500,000 | F32: =D32-E32 -> 0
C33: 자본예비비 | D33: 500,000 | E33: 500,000 | F33: =D33-E33 -> 0
B34: 전년이월금 | D34: =D35 -> 0 | E34: =E35 -> 0 | F34: =D34-E34 -> 0
C35: 사고이월금 | D35: 0 | E35: 0 | F35: =D35-E35 -> 0

Sheet 사고이월
A1: 2023년도 세출예산 사고이월 사업조서
L2: (단위 : 원)
E3: 사 업 명 | F3: 예 산 액 (A) | G3: 지출원인 행 위 액 (B) | H3: 지출(예정)액 (C ) | I3: 지출잔액 (A-C) | J3: 이월액 (D) | K3: 불용액 (A-C-D) | L3: 이월사유 (예산성립시기)
A4: 관 | B4: 항 | C4: 세항 | D4: 목
A5: 계 | F5: =F6+F11 -> 2,769,800,000 | G5: 2,451,618,700 | H5: 1,753,886,610 | I5: 1,015,913,390 | J5: 697,732,090 | K5: 318,181,300
A6: 700 사업비용 | F6: 22,000,000 | G6: 20,805,000 | H6: 0 | I6: 22,000,000 | J6: 20,805,000 | K6: 1,195,000
B7: 710 영업비용 | F7: 22,000,000 | G7: 20,805,000 | H7: 0 | I7: 22,000,000 | J7: 20,805,000 | K7: 1,195,000
C8: 722 대행사업비 | F8: 22,000,000 | G8: 20,805,000 | H8: 0 | I8: 22,000,000 | J8: 20,805,000 | K8: 1,195,000
D9: 201 일반운영비 | F9: =SUM(F10:F10) -> 22,000,000 | G9: 20,805,000 | H9: 0 | I9: 22,000,000 | J9: 20,805,000 | K9: 1,195,000
D10: 11 지급수수료 | E10: 통합환경인허가 용역 | F10: 22,000,000 | G10: 20,805,000 | H10: 0 | I10: =SUM(F10-H10) -> 22,000,000 | J10: 20,805,000 | K10: =F10-H10-J10 -> 1,195,000 | L10: ○ 2023년 12월 계약하여 2024년 3월 완료 예정
A11: 200 자본적지출 | F11: =F12+F19 -> 2,747,800,000 | G11: 2,430,813,700 | H11: 1,753,886,610 | I11: 993,913,390 | J11: 676,927,090 | K11: 316,986,300
B12: 230 유형자산취득 | F12: =F13 -> 1,997,800,000 | G12: 1,852,144,610 | H12: 1,292,942,610 | I12: 704,857,390 | J12: 559,202,000 | K12: 145,655,390
C13: 235 기계장치 | F13: 1,997,800,000 | G13: 1,852,144,610 | H13: 1,292,942,610 | I13: 704,857,390 | J13: 559,202,000 | K13: 145,655,390
D14: 401 시설비 및 부대비 | F14: 1,997,800,000 | G14: 1,852,144,610 | H14: 1,292,942,610 | I14: 704,857,390 | J14: 559,202,000 | K14: 145,655,390
D15: 01 시설비 | E15: 여수시도시형폐기물종합처리시설 악취방지 개선공사(1차) | F15: 1,997,800,000 | G15: 1,852,144,610 | H15: 1,292,942,610 | I15: =F15-H15 -> 704,857,390 | J15: 559,202,000 | K15: 145,655,390 | L15: ○ 악취방지시설 개선공사 지연 - 탈취기 납품기한 연장(2023.10.25. → 2024.01.31.) - 기계, 토목 공사 연장(2023.12.31. → 2024.03.31.) - 전기공사 연장(2023.12.31. → 2024.02.29.)
D16: 01 시설비 | E16: 친환경 복합 탈취기 구매 | F16: 1,048,000,000 | G16: 1,048,000,000 | H16: 838,400,000 | I16: =SUM(F16-H16) -> 209,600,000 | J16: 209,600,000 | K16: =F16-H16-J16 -> 0 | L16: ○ 악취방지시설 개선공사 지연으로 탈취기 납품기한 연장 - 납품기한 : 2023.10.25. → 2024.01.31.
E17: 악취방지시설 개선공사(기계, 토목) | F17: 439,572,000 | G17: 439,572,000 | H17: 240,975,000 | I17: =SUM(F17-H17) -> 198,597,000 | J17: 198,597,000 | K17: =F17-H17-J17 -> 0 | L17: ○ 악취방지시설 개선공사 지연으로 공사기간 연장 - 공사기간 : 2023.12.31. → 2024.03.31.
E18: 악취방지시설 개선공사(전기) | F18: 151,005,000 | G18: 151,005,000 | H18: 0 | I18: =SUM(F18-H18) -> 151,005,000 | J18: 151,005,000 | K18: =F18-H18-J18 -> 0 | L18: ○ 악취방지시설 개선공사 총액 변경 및 지연으로 공사기간 연장 - 계약금액 : 122,785,730 → 151,005,000 - 공사기간 : 2023.12.31. → 2024.02.29.
C19: 245 수탁자산 | F19: =F20 -> 750,000,000 | G19: 578,669,090 | H19: 460,944,000 | I19: 289,056,000 | J19: 117,725,090 | K19: 171,330,910
D20: 405 자산취득비 | F20: 750,000,000 | G20: 578,669,090 | H20: 460,944,000 | I20: 289,056,000 | J20: 117,725,090 | K20: 171,330,910
D21: 12 수탁자산취득비 | E21: 2023년 청소차량(압축진개 5대) 구매 | F21: 750,000,000 | G21: 578,669,090 | H21: 460,944,000 | I21: =F21-H21 -> 289,056,000 | J21: =G21-H21 -> 117,725,090 | K21: =F21-H21-J21 -> 171,330,910 | L21: ○ 청소차량 도장 적체로 인한 납품 기간 연장 2024년 1월 납품 예정
